Workbook

Sheet Overview
C3: NCHRP Project 15-78
B4: Cross Section Decision-Making Spreadsheet Tool - Reconstruction Projects
B7: Build: 2022-09-14
B8: FOREWORD
B9: This software supports users applying the decision-making framework developed by NCHRP Project 17-87 for developing cross sections and evaluating tradeoffs. This is a research-grade software tool that does not provide the enhanced user interface and extensive error checking that commercial software would provide.
B11: ACKNOWLEDGMENT OF SPONSORSHIP
B12: This work was sponsored by the American Association of State Highway and Transportation Officials, in cooperation with the Federal Highway Administration, and was conducted in the National Cooperative Highway Research Program (NCHRP), which is administered by the Transportation Research Board of the National Academies of Sciences, Engineering, and Medicine.
B14: DISCLAIMER
B15: This is unedited material as submitted by the contractor for NCHRP Project 15-78, Guidebook for Urban and Suburban Roadway Cross-Sectional Reallocation. The opinions and conclusions expressed or implied in the material are those of the research agency. They are not necessarily those of the Transportation Research Board; the National Academies of Sciences, Engineering, and Medicine; or the program sponsors.
B17: No warranty is made by the developers or their employer as to the accuracy, completeness, or reliability of this software and its associated equations and documentation. No responsibility is assumed by the developers for incorrect results or damages resulting from the use of this software.
B19: COPYRIGHT
B20: This material and the copyrights therein are owned by the National Academies of Sciences, Engineering, and Medicine.
B22: INSTRUCTIONS
B23: Detailed instructions for using the spreadsheet are provided on the Table of Contents tab.
B26: VERSION HISTORY
B27: 2022-09-14 | C27: First beta version

Sheet Table of Contents
B2: NCHRP Project 15-78
B3: Decision-Making Framework Tool - Reconstruction Projects
B5: This spreadsheet tool is provided as a decision-making support tool to accompany the NCHRP Project 15-78 Guidebook. It is strongly encouraged to use this tool alongside the referenced sections of the guidebook, as this tool is intended to help implement the framework presented in the guidebook. The objective of this research is to develop a guidebook and decision-making framework for roadway designers, planners, and others for identifying, comparing, evaluating, and justifying context-based cross-sectional reallocations of existing urban and suburban roadway space for multimodal safety, access, and mobility.
B7: This Reconstruction spreadsheet tool is intended for road reconstruction projects where it is assumed the curb lines can be moved. For repaving-only projects, refer to the Repaving spreadsheet tool.
B10: This tool includes the following tabs:
B11: Step 1: User Input | C11: Start here and enter all project information. Once complete, press the "Generate minimum safe dimension" button. You will be automatically directed to the next appropriate tab (either 2.1 or 2.2).
B12: Step 2A: Insufficient Space | C12: Use this tab to explore options to fit the desired project and minimum safe facilities within the available ROW. If unavailable to fit within ROW, you can adjust your desired ADT or speed, which may relax some width requirements.
B13: Step 2B: Sufficient Space | C13: If available cross-section elements fit within ROW, use this tab to guide decision-making about how best to use the remaining ROW width.
B14: Steps: 3A - 2D | C14: These pages will display print the results, including the cross-section summary, impact summary, and capacity analysis.
B15: Matrix | C15: This page includes the decision-support matrix.
B17: Throughout the tool, cell color is an indicator of how to interact with various fields:
B18: Make a selection or type directly in blue cells.
B19: Results/ automatically calculated. (do not edit)
B20: Cells with red text include notes to keep in mind when designing your cross-section.
B23: Considerations for Use:
B24: - Separate workbooks are provided for repaving projects and for reconstruction projects. For the former, curb lines are used as a constraint on the cross-section, and it is assumed that some changes would be infeasible (e.g., widening sidewalks). For the latter, the relevant constraint is available right of way. - For considering a two-way to one-way conversion, the user should simply zero out appropriate values in the direction unaccounted for. For the reverse, the user should restart with Step 1. - Yellow buttons throughout the workbook are important and must be used in order to generate the correct results. - Workbook must be reset between uses. Press the button below or in Step 1 to reset.

Sheet Step 1 User Input
C1: Existing Cross Section and Project Information
C3: INSTRUCTIONS
C5: Use this workbook for reconstruction projects only. Repaving projects should use the accompaning workbook. Press button at right to reset workbook between iterations.
C7: Make a selection or type directly in blue cells.
C8: Results/ automatically calculated. (do not edit)
C11: Step 1.1 | D11: Existing Cross Section
C13: INSTRUCTIONS
C14: Indicate inclusion (Type "Y" or "N") of street element and current dimension (in feet). If cross section changes meaningfully along the project corridor, consider redefining subcorridors to evaluate separately. Subcorridors should be evaluated in separate workbooks. If cross section varies slightly along the corridor, enter the relevant components for the minimum (i.e., most constrained) corridor.
C15: Press button to generate total ROW when dimensions are complete. DO NOT FORGET THIS STEP.
E16: bm | F16: m | I16: v | J16: b ↕ | K16: b | M16: v | N16: u | O16: v | P16: v | Q16: v | R16: v | S16: v | T16: u | U16: J | V16: q | W16: v | X16: v | Y16: v | Z16: v | AA16: u | AB16: v | AD16: b | AE16: b ↕ | AF16: v | AI16: m | AJ16: bm
C17: Cross-section Elements | D17: Additional ROW | E17: Shared-Use Path | F17: Sidewalk | G17: Pedestrian buffer | H17: Curb & Gutter | I17: Curbside Parking | J17: Two-Way bike lane | K17: Bike lane | L17: Bike Separation | M17: Floating Parking | N17: Bus lane | O17: Travel lane 1 | P17: Travel lane 2 | Q17: Travel lane 3 | R17: Travel lane 4 | S17: Roadway Width - No Centerline | T17: Center Bus Lane | U17: Median | V17: TWLTL | W17: Travel lane 4 | X17: Travel lane 3 | Y17: Travel lane 2 | Z17: Travel lane 1 | AA17: Bus lane | AB17: Floating Parking | AC17: Bike Separation | AD17: Bike lane | AE17: Two-Way bike lane | AF17: Curbside Parking | AG17: Curb & Gutter | AH17: Pedestrian buffer | AI17: Sidewalk | AJ17: Shared-Use Path | AK17: Additional ROW
C18: Is this included in the cross section? (Y or N)
C19: Current Dimension (in feet)
C20: Right-of-Way (ROW)
C23: Step 1.2 | D23: Project Information
C25: INSTRUCTIONS
C26: Fill out ALL blue cells with the relevant project information.
C28: PROJECT INFORMATION | E28: Guidance/Support
C29: Basic Project Information
C30: Community | E30: Enter the city, town, or most precise location(s) of the project.
C31: Roadway name
C32: Project extents
C33: Project corridor length
C34: Scoping & Needs
C35: Project details
C36: Type of project: Can you move curb lines? | E36: If you are not able to move curb lines (i.e., this is a restriping project only), then please use the alternate workbook provided for this project.
C37: The curb-to-curb distance in feet: | D37: =SUM(H19:AG19) -> 0 | E37: Verify. If incorrect, make edits in cross-section above.
C38: The available right-of-way in feet: | D38: =D20 -> 0 | E38: Verify. If incorrect, make edits in cross-section above.
C39: What is the existing land use context? | E39: Refer to Guidebook Chapter 3 for a discussion of applicable land use contexts. This entry is provided for reference but is not used in tool calculations.
C40: What is the planned land use context? | E40: Refer to Guidebook Chapter 3 for a discussion of applicable land use contexts. This entry is used to provide minimum safe recommendations regarding pedestrian facilities.
C41: What is the roadway's primary intended function? | E41: Refer to Guidebook Chapter 5 for a discussion on roadway primary function. This selection will not affect minimum safe dimension recommendations but will prompt you to consider appropriate design decisions (e.g., speeds).
C42: The road directionality: | D42: =IF(ISBLANK(D20),"-",IF(OR(S18="Y",AND(O18="Y",Z18="Y")),"two-way","one-way")) -> - | E42: Verify. If incorrect, make edits in cross-section above.
C43: Number of lanes per direction: | D43: =IF(S18="Y","No Centerline",MAX(COUNTIF(N18:R18,"Y"),COUNTIF(W18:Z18,"Y"))) -> 0 | E43: Verify. If incorrect, make edits in cross-section above.
C44: Presence of a median: | D44: =IF(U18="Y","Yes","No") -> No | E44: Verify. If incorrect, make edits in cross-section above.
C45: Width of the median: | D45: =U19 -> 0 | E45: Verify. If incorrect, make edits in cross-section above.
C46: Presence of a Two-Way-Left-Turn Lane (TWLTL): | D46: =IF(V18="Y","Yes","No") -> No | E46: Verify. If incorrect, make edits in cross-section above.
C47: Width of the TWLTL: | D47: =V19 -> 0 | E47: Verify. If incorrect, make edits in cross-section above.
C48: Is this a freight corridor? | E48: Used to adjust lane widths.
C49: Is there heavy bus lane use on this corridor? | E49: Used to adjust lane widths.
C50: What is the controlling downstream intersection type? | E50: Used for the operational assessment.
C51: Existing conditions & data
C52: What is the posted speed limit?
C53: What is the 85th percentile speed? (If known) | E53: Leave blank if unknown.
C54: What is the average daily traffic?*
C55: Is on-street parking present on the east/north side? | D55: =IF(OR(I18="Y",M18="Y"),"Y","N") -> N
C56: Is on-street parking present on the west/south side? | D56: =IF(OR(AB18="Y",AF18="Y"),"Y","N") -> N
C57: Project Goals Do project goals include any of the following outcomes?
C58: Safety
C59: Economic
C60: Environmental
C61: Social
C62: Mode Shift
C63: Background Planning Please select the following for which relevant plans exist and pertain to this corridor. | E63: Refer to Guidebook Chapters 4 and 5 for a information on background planning.
C64: Climate Action Plan
C65: Active Transportation Plan (Bike/Ped Plan)
C66: Long-Term Transit Service Plan
C67: Safety Action Plan
C68: Complete Streets Policy
C69: Vision Zero Policy
C70: Freight Corridor
C71: *If this value changes meaningfully along the project corridor, consider redefining subcorridors to evaluate separately. Subcorridors should be evaluated in separate workbooks.
C72: ** If this value varies slightly, enter the minimum (i.e., most constrained) value.
C75: Step 1.3 | D75: Next Steps
C77: Minimum Safe Dimension | D77: =IF(OR(COUNTBLANK(D39:D41)>0,COUNTBLANK(D48:D50)>0,COUNTBLANK(D52)>0,COUNTBLANK(D54)>0,D20=""),"-",IF(ISERROR('Calculation A'!C131),"-",'Calculation A'!C120)) -> -
C78: Instructions | D78: =IF(D77="-","-",_xlfn.IFS('Calculation A'!C122<0,"Minimum dimension not available. Proceed to Step 2A.",'Calculation A'!C122>=0,"Minimum dimension available. Skip Step 2A. Proceed to Step 2B")) -> -

Sheet Step 2A Insufficient Space
C1: Step 2A.1 | D1: Minimum Safe Dimension
C3: INSTRUCTIONS
C4: Do not use this tab unless directed to I Step 1. Review Minimum Cross Section generated based on inputs from Tab 1.
C6: Minimum Safe Dimension | D6: ='Calculation A'!C120 -> 
C7: Available ROW | D7: ='Calculation A'!C121 -> 0
C8: Needed Space | D8: =-'Calculation A'!C122 -> 
C9: Does minimum safe dimension fit? | D9: ='Calculation A'!C123 -> 
C11: MINIMUM CROSS SECTION
C12: Automatically populated based on minimum safe dimension.
E14: bm | F14: m | I14: v | J14: b ↕ | K14: b | M14: v | N14: u | O14: v | P14: v | Q14: v | R14: u | S14: J | T14: q | U14: v | V14: v | W14: u | X14: v | Z14: b | AA14: b ↕ | AB14: v | AE14: m | AF14: bm
C15: Cross-section Elements | D15: Additional ROW | E15: Shared Use Path | F15: Sidewalk | G15: Pedestrian buffer | H15: Curb & Gutter | I15: Curbside Parking | J15: Two-way bike lane | K15: Bike lane | L15: Bike Separation | M15: Floating Parking | N15: Bus lane | O15: Travel lane 1 | P15: Travel lane 2 | Q15: Roadway Width - No Centerline | R15: Center Bus Lane | S15: Median | T15: TWLTL | U15: Travel lane 2 | V15: Travel lane 1 | W15: Bus lane | X15: Floating Parking | Y15: Bike Separation | Z15: Bike lane | AA15: Two-way bike lane | AB15: Curbside Parking | AC15: Curb & Gutter | AD15: Pedestrian buffer | AE15: Sidewalk | AF15: Shared Use Path | AG15: Additional ROW
C16: Included? | D16: ='Calculation A'!C129 -> N | E16: ='Calculation A'!D129 -> N | F16: ='Calculation A'!E129 -> Y | G16: ='Calculation A'!F129 -> Y | H16: ='Calculation A'!G129 -> N | I16: ='Calculation A'!H129 -> N | J16: ='Calculation A'!I129 -> N | K16: ='Calculation A'!J129 ->  | L16: ='Calculation A'!K129 ->  | M16: ='Calculation A'!L129 -> N | N16: ='Calculation A'!M129 -> N | O16: ='Calculation A'!N129 ->  | P16: ='Calculation A'!O129 ->  | Q16: ='Calculation A'!P129 ->  | R16: ='Calculation A'!Q129 -> N | S16: ='Calculation A'!R129 -> N | T16: ='Calculation A'!S129 -> N | U16: ='Calculation A'!T129 ->  | V16: ='Calculation A'!U129 ->  | W16: ='Calculation A'!V129 -> N | X16: ='Calculation A'!W129 -> N | Y16: ='Calculation A'!X129 ->  | Z16: ='Calculation A'!Y129 ->  | AA16: ='Calculation A'!Z129 -> N | AB16: ='Calculation A'!AA129 -> N | AC16: ='Calculation A'!AB129 -> N | AD16: ='Calculation A'!AC129 -> Y | AE16: ='Calculation A'!AD129 -> Y | AF16: ='Calculation A'!AE129 -> N | AG16: ='Calculation A'!AF129 -> N
C17: Current Dimension | D17: ='Calculation A'!C130 ->  | E17: ='Calculation A'!D130 ->  | F17: ='Calculation A'!E130 ->  | G17: ='Calculation A'!F130 ->  | H17: ='Calculation A'!G130 ->  | I17: ='Calculation A'!H130 ->  | J17: ='Calculation A'!I130 ->  | K17: ='Calculation A'!J130 ->  | L17: ='Calculation A'!K130 ->  | M17: ='Calculation A'!L130 ->  | N17: ='Calculation A'!M130 ->  | O17: ='Calculation A'!N130 ->  | P17: ='Calculation A'!O130 ->  | Q17: ='Calculation A'!P130 ->  | R17: ='Calculation A'!Q130 ->  | S17: ='Calculation A'!R130 ->  | T17: ='Calculation A'!S130 ->  | U17: ='Calculation A'!T130 ->  | V17: ='Calculation A'!U130 ->  | W17: ='Calculation A'!V130 ->  | X17: ='Calculation A'!W130 ->  | Y17: ='Calculation A'!X130 ->  | Z17: ='Calculation A'!Y130 ->  | AA17: ='Calculation A'!Z130 ->  | AB17: ='Calculation A'!AA130 ->  | AC17: ='Calculation A'!AB130 ->  | AD17: ='Calculation A'!AC130 ->  | AE17: ='Calculation A'!AD130 ->  | AF17: ='Calculation A'!AE130 ->  | AG17: ='Calculation A'!AF130 -> 
C18: Total Width | D18: ='Calculation A'!C131 -> 
C21: Step 2A.2 | D21: Possible Cross Section Edits | J21: Key
J22: Positive Impact (Low/Medium/High) | L22: a/aa/aaa
C23: INSTRUCTIONS | J23: Negative Impact (Low/Medium/High) | L23: r/rr/rrr
C24: Review possible cross section edits. This section generates options for reducing cross section width based on current geometry and user inputs. It also outputs the safety, economic, environmental, social, and mode shift impacts. NOTE: Cells with both checks and crosses indicate that a measure has both postive and negative effects. Consult the 'matrix' tab to read the explanations. | J24: No Significant Impact | L24: x
C25: Press button to generate feasible options. | J25: See Matrix tab for detailed Impacts
E27: Impacts
C28: Measure to reduce cross section | D28: Feasible? | E28: Safety | H28: Economic | K28: Environmental | N28: Social | Q28: Mode Shift
C29: Reduce speeds | D29: =IF('Calculation A'!C75>20,"Y","N") -> N | E29: aa | H29: x | K29: aa | N29: a | Q29: a
C30: Reduce volumes | D30: =IF('Calculation A'!C83<1500,"N","Y") -> Y | E30: aaa | H30: rr | K30: rr | N30: aa | Q30: aaa
C31: Remove travel lanes | D31: =IF(OR(P16="Y",U16="Y"),"Y","N") ->  | E31: Near Term: aaa Long term: aa | H31: Near Term: rr Long term: a | K31: Near Term: rr Long term: aa/rr | N31: aa | Q31: aaa
C32: Narrow travel lanes | D32: =IF(OR(O16="Y",V16="Y"),"Y","N") ->  | E32: aa | H32: x | K32: aa | N32: a | Q32: a
C33: Remove median | D33: =IF(S16="Y","Y","N") -> N | E33: rrr/aaa | H33: a/r | K33: aa/rr | N33: rrr | Q33: x
C34: Remove parking | D34: =IF(OR(I16="Y",M16="Y",X16="Y",AB16="Y"),"Y","N") -> N | E34: a/r | H34: rr | K34: Near Term: rr Long term: aa | N34: r | Q34: aaa
C35: Narrow parking | D35: =IF(OR(I16="Y",M16="Y",X16="Y",AB16="Y"),"Y","N") -> N | E35: a/r | H35: x | K35: x | N35: x | Q35: x
C36: Narrow bus lanes | D36: =IF(OR(N16="Y",R16="Y",W16="Y"),"Y","N") -> N | E36: r | H36: x | K36: x | N36: x | Q36: x
C37: Remove TWLTL | D37: =IF(T16="Y","Y","N") -> N | E37: rr | H37: r | K37: a | N37: x | Q37: a
C38: Narrow median | D38: =IF(S16="Y","Y","N") -> N | E38: r | H38: r | K38: x | N38: x | Q38: x
C39: Remove bus lanes | D39: =IF(OR(N16="Y",R16="Y",W16="Y"),"Y","N") -> N | E39: r | H39: rr | K39: rr | N39: rr | Q39: rrr
C40: Narrow bike lanes | D40: =IF(OR(K16="Y",Z16="Y",J16="Y",AA16="Y"),"Y","N") ->  | E40: rr | H40: rr | K40: rr | N40: rr | Q40: rr
C41: Narrow pedestrian infrastructure | D41: =IF(OR(AE16="Y",F16="Y"),"Y","N") -> Y | E41: rr | H41: rr | K41: rr | N41: rrr | Q41: rr
C42: Remove bike lanes | D42: =IF(OR(K16="Y",Z16="Y",J16="Y",AA16="Y"),"Y","N") ->  | E42: rrr | H42: rr | K42: rr | N42: rrr | Q42: rrr
C43: Remove pedestrian infrastructure | D43: =IF(OR(AE16="Y",F16="Y"),"Y","N") -> Y | E43: rrr | H43: rrr | K43: rr | N43: rrr | Q43: rrr
C46: Step 2A.3 | D46: Edit Roadway Characteristics and Cross Section Elements
C48: INSTRUCTIONS
C49: Edit roadway characteristics and cross section elements based on suggestions in Step 2. Minimum dimension values are shown below the cross section table.
C51: EDIT ROADWAY CHARACTERISTCS
C52: Leave blank if no change.
D53: Current | E53: Goal
C54: 85th Percentile Speed/Posted Speed | D54: =IF('Step 1 User Input'!D53="",'Step 1 User Input'!D52,'Step 1 User Input'!D53) -> 0 | G54: =IF('Step 1 User Input'!D41="Access","*Note: Your roadway's primary intended function is access. Consider ways to lower speeds and/or volumes. *","*Note: Your roadway's primary intended function is distributor. Ensure speeds and volumes are appropriate for this classification. * ") -> *Note: Your roadway's primary intended function is distributor. Ensure speeds and volumes are appropriate for this classification. *
C55: ADT | D55: ='Step 1 User Input'!D54 -> 0
C56: Safe Parallel Facility for Bikes? | D56: N/A
C59: EDIT CROSS SECTION ELEMENTS
C60: - In this step, edit cross section elements as suggested above. When you include an element, the 'Minimum Dimension' row shows the minimum dimension of the element you have chosen. If it is blank, that means there is no minimum dimension. *For the Minimum Dimension row, green cells indicate that your entered dimension exceeds the recommende minimum dimension. Red cells indicate your entered dimension is below the recommended minimum dimension. - Press button to re-generate cross section from Step 2A.1. This will reset your work with the minimum dimension cross-section suggested in Step 2A.1. To see results of your chosen cross section, press the "Generate Cross Section Width" button below the table.
E62: bm | F62: m | I62: v | J62: b ↕ | K62: b | M62: v | N62: u | O62: v | P62: v | Q62: v | R62: u | S62: J | T62: q | U62: v | V62: v | W62: u | X62: v | Z62: b | AA62: b ↕ | AB62: v | AE62: m | AF62: bm
C63: Cross-section Elements | D63: Additional ROW | E63: Shared Use Path | F63: Sidewalk | G63: Pedestrian buffer | H63: Curb & Gutter | I63: Curbside Parking | J63: Two-way bike lane | K63: Bike lane | L63: Bike Separation | M63: Floating Parking | N63: Bus lane | O63: Travel lane 1 | P63: Travel lane 2 | Q63: Roadway Width - No Centerline | R63: Center Bus Lane | S63: Median | T63: TWLTL | U63: Travel lane 2 | V63: Travel lane 1 | W63: Bus lane | X63: Floating Parking | Y63: Bike Separation | Z63: Bike lane | AA63: Two-way bike lane | AB63: Curbside Parking | AC63: Curb & Gutter | AD63: Pedestrian buffer | AE63: Sidewalk | AF63: Shared Use Path | AG63: Additional ROW
C64: Included?
C65: Current Dimension
C66: Minimum Dimension* | D66: =IF(AND(ISBLANK(D64),ISBLANK(D65)),"-",'Calculation B'!C130) -> - | E66: =IF(AND(ISBLANK(E64),ISBLANK(E65)),"-",'Calculation B'!D130) -> - | F66: =IF(AND(ISBLANK(F64),ISBLANK(F65)),"-",'Calculation B'!E130) -> - | G66: =IF(AND(ISBLANK(G64),ISBLANK(G65)),"-",'Calculation B'!F130) -> - | H66: =IF(AND(ISBLANK(H64),ISBLANK(H65)),"-",'Calculation B'!G130) -> - | I66: =IF(AND(ISBLANK(I64),ISBLANK(I65)),"-",'Calculation B'!H130) -> - | J66: =IF(AND(ISBLANK(J64),ISBLANK(J65)),"-",'Calculation B'!I130) -> - | K66: =IF(AND(ISBLANK(K64),ISBLANK(K65)),"-",'Calculation B'!J130) -> - | L66: =IF(AND(ISBLANK(L64),ISBLANK(L65)),"-",'Calculation B'!K130) -> - | M66: =IF(AND(ISBLANK(M64),ISBLANK(M65)),"-",'Calculation B'!L130) -> - | N66: =IF(AND(ISBLANK(N64),ISBLANK(N65)),"-",'Calculation B'!M130) -> - | O66: =IF(AND(ISBLANK(O64),ISBLANK(O65)),"-",'Calculation B'!N130) -> - | P66: =IF(AND(ISBLANK(P64),ISBLANK(P65)),"-",'Calculation B'!O130) -> - | Q66: =IF(AND(ISBLANK(Q64),ISBLANK(Q65)),"-",'Calculation B'!P130) -> - | R66: =IF(AND(ISBLANK(R64),ISBLANK(R65)),"-",'Calculation B'!Q130) -> - | S66: =IF(AND(ISBLANK(S64),ISBLANK(S65)),"-",'Calculation B'!R130) -> - | T66: =IF(AND(ISBLANK(T64),ISBLANK(T65)),"-",'Calculation B'!S130) -> - | U66: =IF(AND(ISBLANK(U64),ISBLANK(U65)),"-",'Calculation B'!T130) -> - | V66: =IF(AND(ISBLANK(V64),ISBLANK(V65)),"-",'Calculation B'!U130) -> - | W66: =IF(AND(ISBLANK(W64),ISBLANK(W65)),"-",'Calculation B'!V130) -> - | X66: =IF(AND(ISBLANK(X64),ISBLANK(X65)),"-",'Calculation B'!W130) -> - | Y66: =IF(AND(ISBLANK(Y64),ISBLANK(Y65)),"-",'Calculation B'!X130) -> - | Z66: =IF(AND(ISBLANK(Z64),ISBLANK(Z65)),"-",'Calculation B'!Y130) -> - | AA66: =IF(AND(ISBLANK(AA64),ISBLANK(AA65)),"-",'Calculation B'!Z130) -> - | AB66: =IF(AND(ISBLANK(AB64),ISBLANK(AB65)),"-",'Calculation B'!AA130) -> - | AC66: =IF(AND(ISBLANK(AC64),ISBLANK(AC65)),"-",'Calculation B'!AB130) -> - | AD66: =IF(AND(ISBLANK(AD64),ISBLANK(AD65)),"-",'Calculation B'!AC130) -> - | AE66: =IF(AND(ISBLANK(AE64),ISBLANK(AE65)),"-",'Calculation B'!AD130) -> - | AF66: =IF(AND(ISBLANK(AF64),ISBLANK(AF65)),"-",'Calculation B'!AE130) -> - | AG66: =IF(AND(ISBLANK(AG64),ISBLANK(AG65)),"-",'Calculation B'!AF130) -> -
C68: INSTRUCTIONS
C69: Press button to generate cross section width. Review results in the below table.
C71: Cross Section Width
C72: Available ROW
C73: Available Space
C77: Step 2A.4 | D77: Next Steps
C79: =IF(ISBLANK(D73),"-","Instructions: "&_xlfn.IFS(D73>0,"Minimum dimension available. Proceed to Step 2B.",D73<0,"Minimum dimension not available. Adjust cross section until available space is greater or equal to 0",D73=0,"Minimum dimension met. Skip Step 2B. Proceed to results in Steps 3A-3D")) -> -

Sheet Step 2B Sufficient Space
C1: Step 2B.1 | D1: Minimum Safe Dimension
C3: INSTRUCTIONS
C4: Do not use this tab unless directed to. Review Minimum Cross Section generated based on inputs from Tab 1.
C6: Minimum Safe Dimension | D6: =IF('Calculation A'!C133="Y",'Calculation A'!C120,'Step 2A Insufficient Space'!D71) -> 
C7: Available ROW | D7: =IF('Calculation A'!C133="Y",'Calculation A'!C121,'Step 2A Insufficient Space'!D72) -> 
C8: Available Space | D8: =D7-D6 -> 
C9: Does minimum safe dimension fit? | D9: =IF(D6<=D7,_xlfn.CONCAT("Yes, the minimum safe dimension fits within the ROW. There is an additional ",D7-D6," feet remaining."),_xlfn.CONCAT("No, the minimum safe dimension does not fit within the ROW. There is ",D8," feet missing.")) -> 
C11: MINIMUM CROSS SECTION
C12: Automatically populated based on minimum safe dimension OR cross section from Step 2A
E14: bm | F14: m | I14: v | J14: b ↕ | K14: b | M14: v | N14: u | O14: v | P14: v | Q14: v | R14: u | S14: J | T14: q | U14: v | V14: v | W14: u | X14: v | Z14: b | AA14: b ↕ | AB14: v | AE14: m | AF14: bm
C15: Cross-section Elements | D15: Additional ROW | E15: Shared Use Path | F15: Sidewalk | G15: Pedestrian buffer | H15: Curb & Gutter | I15: Curbside Parking | J15: Two-way bike lane | K15: Bike lane | L15: Bike Separation | M15: Floating Parking | N15: Bus lane | O15: Travel lane 1 | P15: Travel lane 2 | Q15: Roadway Width - No Centerline | R15: Center Bus Lane | S15: Median | T15: TWLTL | U15: Travel lane 2 | V15: Travel lane 1 | W15: Bus lane | X15: Floating Parking | Y15: Bike Separation | Z15: Bike lane | AA15: Two-way bike lane | AB15: Curbside Parking | AC15: Curb & Gutter | AD15: Pedestrian buffer | AE15: Sidewalk | AF15: Shared Use Path | AG15: Additional ROW
C16: Included? | D16: =IF('Calculation A'!$C$133="Y",'Calculation A'!C129,'Step 2A Insufficient Space'!D64) ->  | E16: =IF('Calculation A'!$C$133="Y",'Calculation A'!D129,'Step 2A Insufficient Space'!E64) ->  | F16: =IF('Calculation A'!$C$133="Y",'Calculation A'!E129,'Step 2A Insufficient Space'!F64) ->  | G16: =IF('Calculation A'!$C$133="Y",'Calculation A'!F129,'Step 2A Insufficient Space'!G64) ->  | H16: =IF('Calculation A'!$C$133="Y",'Calculation A'!G129,'Step 2A Insufficient Space'!H64) ->  | I16: =IF('Calculation A'!$C$133="Y",'Calculation A'!H129,'Step 2A Insufficient Space'!I64) ->  | J16: =IF('Calculation A'!$C$133="Y",'Calculation A'!I129,'Step 2A Insufficient Space'!J64) ->  | K16: =IF('Calculation A'!$C$133="Y",'Calculation A'!J129,'Step 2A Insufficient Space'!K64) ->  | L16: =IF('Calculation A'!$C$133="Y",'Calculation A'!K129,'Step 2A Insufficient Space'!L64) ->  | M16: =IF('Calculation A'!$C$133="Y",'Calculation A'!L129,'Step 2A Insufficient Space'!M64) ->  | N16: =IF('Calculation A'!$C$133="Y",'Calculation A'!M129,'Step 2A Insufficient Space'!N64) ->  | O16: =IF('Calculation A'!$C$133="Y",'Calculation A'!N129,'Step 2A Insufficient Space'!O64) ->  | P16: =IF('Calculation A'!$C$133="Y",'Calculation A'!O129,'Step 2A Insufficient Space'!P64) ->  | Q16: =IF('Calculation A'!$C$133="Y",'Calculation A'!P129,'Step 2A Insufficient Space'!Q64) ->  | R16: =IF('Calculation A'!$C$133="Y",'Calculation A'!Q129,'Step 2A Insufficient Space'!R64) ->  | S16: =IF('Calculation A'!$C$133="Y",'Calculation A'!R129,'Step 2A Insufficient Space'!S64) ->  | T16: =IF('Calculation A'!$C$133="Y",'Calculation A'!S129,'Step 2A Insufficient Space'!T64) ->  | U16: =IF('Calculation A'!$C$133="Y",'Calculation A'!T129,'Step 2A Insufficient Space'!U64) ->  | V16: =IF('Calculation A'!$C$133="Y",'Calculation A'!U129,'Step 2A Insufficient Space'!V64) ->  | W16: =IF('Calculation A'!$C$133="Y",'Calculation A'!V129,'Step 2A Insufficient Space'!W64) ->  | X16: =IF('Calculation A'!$C$133="Y",'Calculation A'!W129,'Step 2A Insufficient Space'!X64) ->  | Y16: =IF('Calculation A'!$C$133="Y",'Calculation A'!X129,'Step 2A Insufficient Space'!Y64) ->  | Z16: =IF('Calculation A'!$C$133="Y",'Calculation A'!Y129,'Step 2A Insufficient Space'!Z64) ->  | AA16: =IF('Calculation A'!$C$133="Y",'Calculation A'!Z129,'Step 2A Insufficient Space'!AA64) ->  | AB16: =IF('Calculation A'!$C$133="Y",'Calculation A'!AA129,'Step 2A Insufficient Space'!AB64) ->  | AC16: =IF('Calculation A'!$C$133="Y",'Calculation A'!AB129,'Step 2A Insufficient Space'!AC64) ->  | AD16: =IF('Calculation A'!$C$133="Y",'Calculation A'!AC129,'Step 2A Insufficient Space'!AD64) ->  | AE16: =IF('Calculation A'!$C$133="Y",'Calculation A'!AD129,'Step 2A Insufficient Space'!AE64) ->  | AF16: =IF('Calculation A'!$C$133="Y",'Calculation A'!AE129,'Step 2A Insufficient Space'!AF64) ->  | AG16: =IF('Calculation A'!$C$133="Y",'Calculation A'!AF129,'Step 2A Insufficient Space'!AG64) -> 
C17: Current Dimension | D17: =IF('Calculation A'!$C$133="Y",IF('Calculation A'!C130=0,"",'Calculation A'!C130),IF('Step 2A Insufficient Space'!D65=0,"",'Step 2A Insufficient Space'!D65)) ->  | E17: =IF('Calculation A'!$C$133="Y",IF('Calculation A'!D130=0,"",'Calculation A'!D130),IF('Step 2A Insufficient Space'!E65=0,"",'Step 2A Insufficient Space'!E65)) ->  | F17: =IF('Calculation A'!$C$133="Y",IF('Calculation A'!E130=0,"",'Calculation A'!E130),IF('Step 2A Insufficient Space'!F65=0,"",'Step 2A Insufficient Space'!F65)) ->  | G17: =IF('Calculation A'!$C$133="Y",IF('Calculation A'!F130=0,"",'Calculation A'!F130),IF('Step 2A Insufficient Space'!G65=0,"",'Step 2A Insufficient Space'!G65)) ->  | H17: =IF('Calculation A'!$C$133="Y",IF('Calculation A'!G130=0,"",'Calculation A'!G130),IF('Step 2A Insufficient Space'!H65=0,"",'Step 2A Insufficient Space'!H65)) ->  | I17: =IF('Calculation A'!$C$133="Y",IF('Calculation A'!H130=0,"",'Calculation A'!H130),IF('Step 2A Insufficient Space'!I65=0,"",'Step 2A Insufficient Space'!I65)) ->  | J17: =IF('Calculation A'!$C$133="Y",IF('Calculation A'!I130=0,"",'Calculation A'!I130),IF('Step 2A Insufficient Space'!J65=0,"",'Step 2A Insufficient Space'!J65)) ->  | K17: =IF('Calculation A'!$C$133="Y",IF('Calculation A'!J130=0,"",'Calculation A'!J130),IF('Step 2A Insufficient Space'!K65=0,"",'Step 2A Insufficient Space'!K65)) ->  | L17: =IF('Calculation A'!$C$133="Y",IF('Calculation A'!K130=0,"",'Calculation A'!K130),IF('Step 2A Insufficient Space'!L65=0,"",'Step 2A Insufficient Space'!L65)) ->  | M17: =IF('Calculation A'!$C$133="Y",IF('Calculation A'!L130=0,"",'Calculation A'!L130),IF('Step 2A Insufficient Space'!M65=0,"",'Step 2A Insufficient Space'!M65)) ->  | N17: =IF('Calculation A'!$C$133="Y",IF('Calculation A'!M130=0,"",'Calculation A'!M130),IF('Step 2A Insufficient Space'!N65=0,"",'Step 2A Insufficient Space'!N65)) ->  | O17: =IF('Calculation A'!$C$133="Y",IF('Calculation A'!N130=0,"",'Calculation A'!N130),IF('Step 2A Insufficient Space'!O65=0,"",'Step 2A Insufficient Space'!O65)) ->  | P17: =IF('Calculation A'!$C$133="Y",IF('Calculation A'!O130=0,"",'Calculation A'!O130),IF('Step 2A Insufficient Space'!P65=0,"",'Step 2A Insufficient Space'!P65)) ->  | Q17: =IF('Calculation A'!$C$133="Y",IF('Calculation A'!P130=0,"",'Calculation A'!P130),IF('Step 2A Insufficient Space'!Q65=0,"",'Step 2A Insufficient Space'!Q65)) ->  | R17: =IF('Calculation A'!$C$133="Y",IF('Calculation A'!Q130=0,"",'Calculation A'!Q130),IF('Step 2A Insufficient Space'!R65=0,"",'Step 2A Insufficient Space'!R65)) ->  | S17: =IF('Calculation A'!$C$133="Y",IF('Calculation A'!R130=0,"",'Calculation A'!R130),IF('Step 2A Insufficient Space'!S65=0,"",'Step 2A Insufficient Space'!S65)) ->  | T17: =IF('Calculation A'!$C$133="Y",IF('Calculation A'!S130=0,"",'Calculation A'!S130),IF('Step 2A Insufficient Space'!T65=0,"",'Step 2A Insufficient Space'!T65)) ->  | U17: =IF('Calculation A'!$C$133="Y",IF('Calculation A'!T130=0,"",'Calculation A'!T130),IF('Step 2A Insufficient Space'!U65=0,"",'Step 2A Insufficient Space'!U65)) ->  | V17: =IF('Calculation A'!$C$133="Y",IF('Calculation A'!U130=0,"",'Calculation A'!U130),IF('Step 2A Insufficient Space'!V65=0,"",'Step 2A Insufficient Space'!V65)) ->  | W17: =IF('Calculation A'!$C$133="Y",IF('Calculation A'!V130=0,"",'Calculation A'!V130),IF('Step 2A Insufficient Space'!W65=0,"",'Step 2A Insufficient Space'!W65)) ->  | X17: =IF('Calculation A'!$C$133="Y",IF('Calculation A'!W130=0,"",'Calculation A'!W130),IF('Step 2A Insufficient Space'!X65=0,"",'Step 2A Insufficient Space'!X65)) ->  | Y17: =IF('Calculation A'!$C$133="Y",IF('Calculation A'!X130=0,"",'Calculation A'!X130),IF('Step 2A Insufficient Space'!Y65=0,"",'Step 2A Insufficient Space'!Y65)) ->  | Z17: =IF('Calculation A'!$C$133="Y",IF('Calculation A'!Y130=0,"",'Calculation A'!Y130),IF('Step 2A Insufficient Space'!Z65=0,"",'Step 2A Insufficient Space'!Z65)) ->  | AA17: =IF('Calculation A'!$C$133="Y",IF('Calculation A'!Z130=0,"",'Calculation A'!Z130),IF('Step 2A Insufficient Space'!AA65=0,"",'Step 2A Insufficient Space'!AA65)) ->  | AB17: =IF('Calculation A'!$C$133="Y",IF('Calculation A'!AA130=0,"",'Calculation A'!AA130),IF('Step 2A Insufficient Space'!AB65=0,"",'Step 2A Insufficient Space'!AB65)) ->  | AC17: =IF('Calculation A'!$C$133="Y",IF('Calculation A'!AB130=0,"",'Calculation A'!AB130),IF('Step 2A Insufficient Space'!AC65=0,"",'Step 2A Insufficient Space'!AC65)) ->  | AD17: =IF('Calculation A'!$C$133="Y",IF('Calculation A'!AC130=0,"",'Calculation A'!AC130),IF('Step 2A Insufficient Space'!AD65=0,"",'Step 2A Insufficient Space'!AD65)) ->  | AE17: =IF('Calculation A'!$C$133="Y",IF('Calculation A'!AD130=0,"",'Calculation A'!AD130),IF('Step 2A Insufficient Space'!AE65=0,"",'Step 2A Insufficient Space'!AE65)) ->  | AF17: =IF('Calculation A'!$C$133="Y",IF('Calculation A'!AE130=0,"",'Calculation A'!AE130),IF('Step 2A Insufficient Space'!AF65=0,"",'Step 2A Insufficient Space'!AF65)) ->  | AG17: =IF('Calculation A'!$C$133="Y",IF('Calculation A'!AF130=0,"",'Calculation A'!AF130),IF('Step 2A Insufficient Space'!AG65=0,"",'Step 2A Insufficient Space'!AG65)) -> 
C18: Total Width | D18: =IF('Calculation A'!$C$133="Y",'Calculation A'!C131,'Step 2A Insufficient Space'!D71) -> 
C21: Step 2B.2 | D21: Possible Cross Section Edits | J21: Key
J22: Positive Impact (Low/Medium/High) | L22: a/aa/aaa
C23: INSTRUCTIONS | J23: Negative Impact (Low/Medium/High) | L23: r/rr/rrr
C24: Review possible cross section edits. This section generates options for increasing cross section width based on current geometry and user inputs. It also outputs the safety, economic, environmental, social, and mode shift impacts. NOTE: Cells with both checks and crosses indicate that a measure has both postive and negative effects. Consult the 'matrix' tab to read the explanations. | J24: No Significant Impact | L24: x
C25: Press button to generate feasible options. | J25: See Matrix tab for detailed Impacts
E27: Impacts
C28: Measure to increase cross section | D28: Feasible? | E28: Safety | H28: Economic | K28: Environmental | N28: Social | Q28: Mode Shift
C29: Reduce speeds | D29: =IF('Calculation A'!C78>20,"Y","N") -> Y | E29: aa | H29: x | K29: aa | N29: a | Q29: a
C30: Reduce volumes | D30: =IF('Calculation A'!C84<1500,"N","Y") ->  | E30: aaa | H30: rr | K30: rr | N30: aa | Q30: aaa
C31: Add pedestrian infrastructure | D31: =IF(OR($F$16="N",$G$16="N",$AD$16="N",$AE$16="N"),"Y","N") ->  | E31: aaa | H31: aaa | K31: aa | N31: aaa | Q31: aaa
C32: Add bike lanes | D32: =IF(OR(OR(J16="Y",AA16="Y"),AND(Z16="Y",K16="Y")),"N","Y") ->  | E32: aaa | H32: aa | K32: aa | N32: aaa | Q32: aaa
C33: Widen pedestrian infrastructure | D33: =IF(OR($F$16="Y",$G$16="Y",$AD$16="Y",$AE$16="Y"),"Y","N") ->  | E33: aa | H33: aa | K33: aa | N33: aaa | Q33: aa
C34: Widen bike lanes | D34: =IF(OR(J16="Y",AA16="Y",$K$16="Y",$Z$16="Y"),"Y","N") ->  | E34: aa | H34: aa | K34: aa | N34: aa | Q34: aa
C35: Add bus lanes | D35: =IF(OR($N$16="N",$W$16="N",R16="N"),"Y","N") ->  | E35: a r | H35: aa | K35: aa | N35: aa | Q35: aaa
C36: One to two way conversion | D36: =IF(AND(Q16="N",OR($O$16="N",$V$16="N")),"Y","N") ->  | E36: a | H36: aaa | K36: x | N36: aaa | Q36: x
C37: Add median | D37: =IF(AND(Q16="N",$S$16="Y"),"N","Y") ->  | E37: aaa/rrr | H37: a/r | K37: aa/rr | N37: aaa | Q37: x
C38: Widen median | D38: =IF(AND(Q16="N",$R$16="Y"),"Y","N") ->  | E38: a | H38: a | K38: x | N38: x | Q38: x
C39: Widen bus lanes | D39: =IF(OR($N$16="Y",$W$16="Y"),"Y","N") ->  | E39: a | H39: x | K39: x | N39: x | Q39: x
C40: Add TWLTL | D40: =IF(AND(AND($O$16="Y",$V$16="Y"),$Q$16="N",$T$16="N"),"Y","N") ->  | E40: aa | H40: a | K40: r | N40: x | Q40: r
C41: Add parking | D41: =IF(OR(AND($I$16="N",$M$16="N"),AND($X$16="N",$AB$16="N")),"Y","N") ->  | E41: r/a | H41: aa | K41: Near Term: aa Long Term: rr | N41: a | Q41: rrr
C42: Widen parking | D42: =IF(OR($I$16="Y",$M$16="Y",$X$16="Y",$AB$16="Y"),"Y","N") ->  | E42: r/a | H42: x | K42: x | N42: x | Q42: x
C43: Widen travel lanes | D43: =IF(OR($O$16="Y",$V$16="Y",Q16="Y"),"Y","N") ->  | E43: rr | H43: x | K43: rr | N43: r | Q43: r
C44: Add travel lanes | D44: =IF(OR(AND($O$16="Y",$V$16="Y",OR($U$16="N",$P$16="N")),AND($O$16="Y",$P$16="N",$Q$16="N"),AND($V$16="Y",$U$16="N",$Q$16="N")),"Y","N") ->  | E44: Near Term: rrr Long Term: rr | H44: Near Term: aa/rr Long Term: r | K44: Near Term: aa Long Term: rr | N44: rr | Q44: rrr
C47: Step 2B.3 | D47: Edit Roadway Characteristics and Cross Section Elements
C49: INSTRUCTIONS
C50: Edit roadway characteristics and cross section elements based on suggestions in Step 2. Minimum dimension values are shown below the cross section table.
C52: EDIT ROADWAY CHARACTERISTCS
C53: Leave blank if no change.
D55: Current | E55: Goal
C56: 85th Percentile Speed/Posted Speed | D56: =IF('Step 1 User Input'!D53="",'Step 1 User Input'!D52,'Step 1 User Input'!D53) -> 0 | G56: =IF('Step 1 User Input'!D41="Access","*Note: Your roadway's primary intended function is access. Consider ways to lower speeds and/or volumes. *","*Note: Your roadway's primary intended function is distributor. Ensure speeds and volumes are appropriate for this classification. * ") -> *Note: Your roadway's primary intended function is distributor. Ensure speeds and volumes are appropriate for this classification. *
C57: ADT | D57: ='Step 1 User Input'!D54 -> 0
C58: Safe Parallel Facility for Bikes? | D58: N/A
C61: EDIT CROSS SECTION ELEMENTS
C62: - In this step, edit cross section elements as suggested above. When you include an element, the 'Minimum Dimension' row shows the minimum dimension of the element you have chosen. If it is blank, that means there is no minimum dimension. *For the Minimum Dimension row, green cells indicate that your entered dimension exceeds the recommende minimum dimension. Red cells indicate your entered dimension is below the recommended minimum dimension. - Press button to re-generate cross section from Step 2A.1. This will reset your work with the minimum dimension cross-section suggested in Step 2A.1. To see results of your chosen cross section, press the "Generate Cross Section Width" button below the table.
E63: bm | F63: m | I63: v | J63: b ↕ | K63: b | M63: v | N63: u | O63: v | P63: v | Q63: v | R63: u | S63: J | T63: q | U63: v | V63: v | W63: u | X63: v | Z63: b | AA63: b ↕ | AB63: v | AE63: m | AF63: bm
C64: Cross-section Elements | D64: Additional ROW | E64: Shared Use Path | F64: Sidewalk | G64: Pedestrian buffer | H64: Curb & Gutter | I64: Curbside Parking | J64: Two-way bike lane | K64: Bike lane | L64: Bike Separation | M64: Floating Parking | N64: Bus lane | O64: Travel lane 1 | P64: Travel lane 2 | Q64: Roadway Width - No Centerline | R64: Center Bus Lane | S64: Median | T64: TWLTL | U64: Travel lane 2 | V64: Travel lane 1 | W64: Bus lane | X64: Floating Parking | Y64: Bike Separation | Z64: Bike lane | AA64: Two-way bike lane | AB64: Curbside Parking | AC64: Curb & Gutter | AD64: Pedestrian buffer | AE64: Sidewalk | AF64: Shared Use Path | AG64: Additional ROW
C65: Included?
C66: Current Dimension
C67: Minimum Dimension* | D67: =IF(AND(ISBLANK(D65),ISBLANK(D66)),"-",'Calculation C'!C130) -> - | E67: =IF(AND(ISBLANK(E65),ISBLANK(E66)),"-",'Calculation C'!D130) -> - | F67: =IF(AND(ISBLANK(F65),ISBLANK(F66)),"-",'Calculation C'!E130) -> - | G67: =IF(AND(ISBLANK(G65),ISBLANK(G66)),"-",'Calculation C'!F130) -> - | H67: =IF(AND(ISBLANK(H65),ISBLANK(H66)),"-",'Calculation C'!G130) -> - | I67: =IF(AND(ISBLANK(I65),ISBLANK(I66)),"-",'Calculation C'!H130) -> - | J67: =IF(AND(ISBLANK(J65),ISBLANK(J66)),"-",'Calculation C'!I130) -> - | K67: =IF(AND(ISBLANK(K65),ISBLANK(K66)),"-",'Calculation C'!J130) -> - | L67: =IF(AND(ISBLANK(L65),ISBLANK(L66)),"-",'Calculation C'!K130) -> - | M67: =IF(AND(ISBLANK(M65),ISBLANK(M66)),"-",'Calculation C'!L130) -> - | N67: =IF(AND(ISBLANK(N65),ISBLANK(N66)),"-",'Calculation C'!M130) -> - | O67: =IF(AND(ISBLANK(O65),ISBLANK(O66)),"-",'Calculation C'!N130) -> - | P67: =IF(AND(ISBLANK(P65),ISBLANK(P66)),"-",'Calculation C'!O130) -> - | Q67: =IF(AND(ISBLANK(Q65),ISBLANK(Q66)),"-",'Calculation C'!P130) -> - | R67: =IF(AND(ISBLANK(R65),ISBLANK(R66)),"-",'Calculation C'!Q130) -> - | S67: =IF(AND(ISBLANK(S65),ISBLANK(S66)),"-",'Calculation C'!R130) -> - | T67: =IF(AND(ISBLANK(T65),ISBLANK(T66)),"-",'Calculation C'!S130) -> - | U67: =IF(AND(ISBLANK(U65),ISBLANK(U66)),"-",'Calculation C'!T130) -> - | V67: =IF(AND(ISBLANK(V65),ISBLANK(V66)),"-",'Calculation C'!U130) -> - | W67: =IF(AND(ISBLANK(W65),ISBLANK(W66)),"-",'Calculation C'!V130) -> - | X67: =IF(AND(ISBLANK(X65),ISBLANK(X66)),"-",'Calculation C'!W130) -> - | Y67: =IF(AND(ISBLANK(Y65),ISBLANK(Y66)),"-",'Calculation C'!X130) -> - | Z67: =IF(AND(ISBLANK(Z65),ISBLANK(Z66)),"-",'Calculation C'!Y130) -> - | AA67: =IF(AND(ISBLANK(AA65),ISBLANK(AA66)),"-",'Calculation C'!Z130) -> - | AB67: =IF(AND(ISBLANK(AB65),ISBLANK(AB66)),"-",'Calculation C'!AA130) -> - | AC67: =IF(AND(ISBLANK(AC65),ISBLANK(AC66)),"-",'Calculation C'!AB130) -> - | AD67: =IF(AND(ISBLANK(AD65),ISBLANK(AD66)),"-",'Calculation C'!AC130) -> - | AE67: =IF(AND(ISBLANK(AE65),ISBLANK(AE66)),"-",'Calculation C'!AD130) -> - | AF67: =IF(AND(ISBLANK(AF65),ISBLANK(AF66)),"-",'Calculation C'!AE130) -> - | AG67: =IF(AND(ISBLANK(AG65),ISBLANK(AG66)),"-",'Calculation C'!AF130) -> -
C69: INSTRUCTIONS
C70: Press button to generate cross section width. Review results in the below table.
C72: Cross Section Width
C73: Available ROW
C74: Available Space
C78: 2B.4 | D78: Next Steps
C80: =IF(ISBLANK(D74),"-","Instructions: "&_xlfn.IFS(D74=0,"The cross section fits in the available ROW. Proceed to tab 3 - Results.",D74>0, "There is still available space remaining. Edit cross section until the cross section matches available ROW.",D74<0, "There is not available space for this cross section. Edit cross section until the cross section matches available ROW.")) -> -

Sheet Step 3A Cross Section Summary
B2: NCHRP 15-78 DECISION-MAKING FRAMEWORK SUMMARY
B4: CROSS SECTION SUMMARY
B6: INSTRUCTIONS: The following page compares the existing cross section to the new cross section generated with this tool. To print: Choose landscape, no margins, Fit All Columns on One Page
B8: Community | C8: ='Step 1 User Input'!D30 -> 0
B9: Roadway Name | C9: ='Step 1 User Input'!D31 -> 0
B10: Project Extents | C10: ='Step 1 User Input'!D32 -> 0
B11: Project Corridor Length | C11: ='Step 1 User Input'!D33 -> 0
B12: Roadway Primary Function | C12: ='Step 1 User Input'!D41 -> 0
B13: Planned Land Use Context | C13: ='Step 1 User Input'!D40 -> 0
B16: Existing Cross Section
D17: bm | E17: m | H17: v | I17: b ↕ | J17: b | L17: v | M17: u | N17: v | O17: v | P17: v | Q17: v | R17: v | S17: u | T17: J | U17: q | V17: v | W17: v | X17: v | Y17: v | Z17: u | AA17: v | AC17: b | AD17: b ↕ | AE17: v | AH17: m | AI17: bm
H18: P | I18: Bike ↕ | J18: Bike | L18: P | M18: B | N18: ↓ | O18: ↓ | P18: ↓ | Q18: ↓ | R18: ↕ | S18: B | V18: ↑ | W18: ↑ | X18: ↑ | Y18: ↑ | Z18: B | AA18: P | AC18: Bike | AD18: Bike ↕ | AE18: P
B19: Cross-section Elements | C19: Additional ROW | D19: ='Calculation D'!D4 -> Shared Use Path | E19: ='Calculation D'!E4 -> Sidewalk | F19: ='Calculation D'!F4 -> Pedestrian buffer | G19: ='Calculation D'!G4 -> Curb & Gutter | H19: ='Calculation D'!H4 -> Curbside Parking | I19: ='Calculation D'!I4 -> Two-way bike lane | J19: ='Calculation D'!J4 -> Bike lane | K19: ='Calculation D'!K4 -> Bike Seperation | L19: ='Calculation D'!L4 -> Floating Parking | M19: ='Calculation D'!M4 -> Bus lane | N19: ='Calculation D'!N4 -> Travel lane | O19: ='Calculation D'!O4 -> Travel lane 2 | P19: ='Calculation D'!P4 -> Travel lane 3 | Q19: ='Calculation D'!Q4 -> Travel lane 4 | R19: ='Calculation D'!R4 -> Roadway Width - No Centerline | S19: ='Calculation D'!S4 -> Center Bus Lane | T19: ='Calculation D'!T4 -> Median | U19: ='Calculation D'!U4 -> TWLTL | V19: ='Calculation D'!V4 -> Travel lane 4 | W19: ='Calculation D'!W4 -> Travel lane 3 | X19: ='Calculation D'!X4 -> Travel lane 2 | Y19: ='Calculation D'!Y4 -> Travel lane 1 | Z19: ='Calculation D'!Z4 -> Bus lane | AA19: ='Calculation D'!AA4 -> Floating Parking | AB19: ='Calculation D'!AB4 -> Bike Seperation | AC19: ='Calculation D'!AC4 -> Bike lane | AD19: ='Calculation D'!AD4 -> Two-way bike lane | AE19: ='Calculation D'!AE4 -> Curbside Parking | AF19: ='Calculation D'!AF4 -> Curb & Gutter | AG19: ='Calculation D'!AG4 -> Pedestrian buffer | AH19: ='Calculation D'!AH4 -> Sidewalk | AI19: ='Calculation D'!AI4 -> Shared Use Path | AJ19: Additional ROW
B20: Included? | C20: ='Calculation D'!C5 -> N | D20: ='Calculation D'!D5 -> N | E20: ='Calculation D'!E5 -> N | F20: ='Calculation D'!F5 -> N | G20: ='Calculation D'!G5 -> N | H20: ='Calculation D'!H5 -> N | I20: ='Calculation D'!I5 -> N | J20: ='Calculation D'!J5 -> N | K20: ='Calculation D'!K5 -> N | L20: ='Calculation D'!L5 -> N | M20: ='Calculation D'!M5 -> N | N20: ='Calculation D'!N5 -> N | O20: ='Calculation D'!O5 -> N | P20: ='Calculation D'!P5 -> N | Q20: ='Calculation D'!Q5 -> N | R20: ='Calculation D'!R5 -> N | T20: ='Calculation D'!T5 -> N | U20: ='Calculation D'!U5 -> N | V20: ='Calculation D'!V5 -> N | W20: ='Calculation D'!W5 -> N | X20: ='Calculation D'!X5 -> N | Y20: ='Calculation D'!Y5 -> N | Z20: ='Calculation D'!Z5 -> N | AA20: ='Calculation D'!AA5 -> N | AB20: ='Calculation D'!AB5 -> N | AC20: ='Calculation D'!AC5 -> N | AD20: ='Calculation D'!AD5 -> N | AE20: ='Calculation D'!AE5 -> N | AF20: ='Calculation D'!AF5 -> N | AG20: ='Calculation D'!AG5 -> N | AH20: ='Calculation D'!AH5 -> N | AI20: ='Calculation D'!AI5 -> N | AJ20: ='Calculation D'!AJ5 -> N
B21: Current Dimension | C21: =IF(C20="Y",'Calculation D'!C6,"") ->  | D21: =IF(D20="Y",'Calculation D'!D6,"") ->  | E21: =IF(E20="Y",'Calculation D'!E6,"") ->  | F21: =IF(F20="Y",'Calculation D'!F6,"") ->  | G21: =IF(G20="Y",'Calculation D'!G6,"") ->  | H21: =IF(H20="Y",'Calculation D'!H6,"") ->  | I21: =IF(I20="Y",'Calculation D'!I6,"") ->  | J21: =IF(J20="Y",'Calculation D'!J6,"") ->  | K21: =IF(K20="Y",'Calculation D'!K6,"") ->  | L21: =IF(L20="Y",'Calculation D'!L6,"") ->  | M21: =IF(M20="Y",'Calculation D'!M6,"") ->  | N21: =IF(N20="Y",'Calculation D'!N6,"") ->  | O21: =IF(O20="Y",'Calculation D'!O6,"") ->  | P21: =IF(P20="Y",'Calculation D'!P6,"") ->  | Q21: =IF(Q20="Y",'Calculation D'!Q6,"") ->  | R21: =IF(R20="Y",'Calculation D'!R6,"") ->  | T21: =IF(T20="Y",'Calculation D'!T6,"") ->  | U21: =IF(U20="Y",'Calculation D'!U6,"") ->  | V21: =IF(V20="Y",'Calculation D'!V6,"") ->  | W21: =IF(W20="Y",'Calculation D'!W6,"") ->  | X21: =IF(X20="Y",'Calculation D'!X6,"") ->  | Y21: =IF(Y20="Y",'Calculation D'!Y6,"") ->  | Z21: =IF(Z20="Y",'Calculation D'!Z6,"") ->  | AA21: =IF(AA20="Y",'Calculation D'!AA6,"") ->  | AB21: =IF(AB20="Y",'Calculation D'!AB6,"") ->  | AC21: =IF(AC20="Y",'Calculation D'!AC6,"") ->  | AD21: =IF(AD20="Y",'Calculation D'!AD6,"") ->  | AE21: =IF(AE20="Y",'Calculation D'!AE6,"") ->  | AF21: =IF(AF20="Y",'Calculation D'!AF6,"") ->  | AG21: =IF(AG20="Y",'Calculation D'!AG6,"") ->  | AH21: =IF(AH20="Y",'Calculation D'!AH6,"") ->  | AI21: =IF(AI20="Y",'Calculation D'!AI6,"") ->  | AJ21: =IF(AJ20="Y",'Calculation D'!AJ6,"") -> 
B23: Proposed Cross Section
D24: bm | E24: m | H24: v | I24: b ↕ | J24: b | L24: v | M24: u | N24: v | O24: v | R24: v | S24: u | T24: J | U24: q | X24: v | Y24: v | Z24: u | AA24: v | AC24: b | AD24: b ↕ | AE24: v | AH24: m | AI24: bm
B25: Cross-section Elements | C25: Additional ROW | D25: ='Calculation D'!D10 -> Shared Use Path | E25: ='Calculation D'!E10 -> Sidewalk | F25: ='Calculation D'!F10 -> Pedestrian buffer | G25: ='Calculation D'!G10 -> Curb & Gutter | H25: ='Calculation D'!H10 -> Curbside Parking | I25: ='Calculation D'!I10 -> Two-way bike lane | J25: ='Calculation D'!J10 -> Bike lane | K25: ='Calculation D'!K10 -> Bike Seperation | L25: ='Calculation D'!L10 -> Floating Parking | M25: ='Calculation D'!M10 -> Bus lane | N25: ='Calculation D'!N10 -> Travel lane | O25: ='Calculation D'!O10 -> Travel lane 2 | R25: ='Calculation D'!R10 -> Roadway Width - No Centerline | S25: ='Calculation D'!S10 -> Center Bus Lane | T25: ='Calculation D'!T10 -> Median | U25: ='Calculation D'!U10 -> TWLTL | X25: ='Calculation D'!X10 -> Travel lane 2 | Y25: ='Calculation D'!Y10 -> Travel lane 1 | Z25: ='Calculation D'!Z10 -> Bus lane | AA25: ='Calculation D'!AA10 -> Floating Parking | AB25: ='Calculation D'!AB10 -> Bike Seperation | AC25: ='Calculation D'!AC10 -> Bike lane | AD25: ='Calculation D'!AD10 -> Two-way bike lane | AE25: ='Calculation D'!AE10 -> Curbside Parking | AF25: ='Calculation D'!AF10 -> Curb & Gutter | AG25: ='Calculation D'!AG10 -> Pedestrian buffer | AH25: ='Calculation D'!AH10 -> Sidewalk | AI25: ='Calculation D'!AI10 -> Shared Use Path | AJ25: Additional ROW
B26: Included? | C26: ='Calculation D'!C11 -> N | D26: ='Calculation D'!D11 -> N | E26: ='Calculation D'!E11 -> N | F26: ='Calculation D'!F11 -> N | G26: ='Calculation D'!G11 -> N | H26: ='Calculation D'!H11 -> N | I26: ='Calculation D'!I11 -> N | J26: ='Calculation D'!J11 -> N | K26: ='Calculation D'!K11 -> N | L26: ='Calculation D'!L11 -> N | M26: ='Calculation D'!M11 -> N | N26: ='Calculation D'!N11 -> N | O26: ='Calculation D'!O11 -> N | R26: ='Calculation D'!R11 -> N | S26: ='Calculation D'!S11 -> N | T26: ='Calculation D'!T11 -> N | U26: ='Calculation D'!U11 -> N | X26: ='Calculation D'!X11 -> N | Y26: ='Calculation D'!Y11 -> N | Z26: ='Calculation D'!Z11 -> N | AA26: ='Calculation D'!AA11 -> N | AB26: ='Calculation D'!AB11 -> N | AC26: ='Calculation D'!AC11 -> N | AD26: ='Calculation D'!AD11 -> N | AE26: ='Calculation D'!AE11 -> N | AF26: ='Calculation D'!AF11 -> N | AG26: ='Calculation D'!AG11 -> N | AH26: ='Calculation D'!AH11 -> N | AI26: ='Calculation D'!AI11 -> N | AJ26: ='Calculation D'!AJ11 -> N
B27: Current Dimension | C27: =IF(C26="Y",'Calculation D'!C12,"") ->  | D27: =IF(D26="Y",'Calculation D'!D12,"") ->  | E27: =IF(E26="Y",'Calculation D'!E12,"") ->  | F27: =IF(F26="Y",'Calculation D'!F12,"") ->  | G27: =IF(G26="Y",'Calculation D'!G12,"") ->  | H27: =IF(H26="Y",'Calculation D'!H12,"") ->  | I27: =IF(I26="Y",'Calculation D'!I12,"") ->  | J27: =IF(J26="Y",'Calculation D'!J12,"") ->  | K27: =IF(K26="Y",'Calculation D'!K12,"") ->  | L27: =IF(L26="Y",'Calculation D'!L12,"") ->  | M27: =IF(M26="Y",'Calculation D'!M12,"") ->  | N27: =IF(N26="Y",'Calculation D'!N12,"") ->  | O27: =IF(O26="Y",'Calculation D'!O12,"") ->  | R27: =IF(R26="Y",'Calculation D'!R12,"") ->  | S27: =IF(S26="Y",'Calculation D'!S12,"") ->  | T27: =IF(T26="Y",'Calculation D'!T12,"") ->  | U27: =IF(U26="Y",'Calculation D'!U12,"") ->  | X27: =IF(X26="Y",'Calculation D'!X12,"") ->  | Y27: =IF(Y26="Y",'Calculation D'!Y12,"") ->  | Z27: =IF(Z26="Y",'Calculation D'!Z12,"") ->  | AA27: =IF(AA26="Y",'Calculation D'!AA12,"") ->  | AB27: =IF(AB26="Y",'Calculation D'!AB12,"") ->  | AC27: =IF(AC26="Y",'Calculation D'!AC12,"") ->  | AD27: =IF(AD26="Y",'Calculation D'!AD12,"") ->  | AE27: =IF(AE26="Y",'Calculation D'!AE12,"") ->  | AF27: =IF(AF26="Y",'Calculation D'!AF12,"") ->  | AG27: =IF(AG26="Y",'Calculation D'!AG12,"") ->  | AH27: =IF(AH26="Y",'Calculation D'!AH12,"") ->  | AI27: =IF(AI26="Y",'Calculation D'!AI12,"") ->  | AJ27: =IF(AJ26="Y",'Calculation D'!AJ12,"") -> 
B28: Min Dimension | C28: ='Calculation D'!C13 -> - | D28: ='Calculation D'!D13 -> - | E28: ='Calculation D'!E13 -> - | F28: ='Calculation D'!F13 -> - | G28: ='Calculation D'!G13 -> - | H28: ='Calculation D'!H13 -> - | I28: ='Calculation D'!I13 -> - | J28: ='Calculation D'!J13 -> - | K28: ='Calculation D'!K13 -> - | L28: ='Calculation D'!L13 -> - | M28: ='Calculation D'!M13 -> - | N28: ='Calculation D'!N13 -> - | O28: ='Calculation D'!O13 -> - | R28: ='Calculation D'!R13 -> - | S28: ='Calculation D'!S13 -> - | T28: ='Calculation D'!T13 -> - | U28: ='Calculation D'!U13 -> - | X28: ='Calculation D'!X13 -> - | Y28: ='Calculation D'!Y13 -> - | Z28: ='Calculation D'!Z13 -> - | AA28: ='Calculation D'!AA13 -> - | AB28: ='Calculation D'!AB13 -> - | AC28: ='Calculation D'!AC13 -> - | AD28: ='Calculation D'!AD13 -> - | AE28: ='Calculation D'!AE13 -> - | AF28: ='Calculation D'!AF13 -> - | AG28: ='Calculation D'!AG13 -> - | AH28: ='Calculation D'!AH13 -> - | AI28: ='Calculation D'!AI13 -> - | AJ28: ='Calculation D'!AJ13 -> -
B30: Cross Section Width | C30: ='Calculation D'!C15 -> 0
B31: Available ROW | C31: ='Calculation D'!C16 -> 0
B32: Available Room | C32: ='Calculation D'!C17 -> 0

Sheet Step 3B Impact Summary
B2: NCHRP 15-78 DECISION-MAKING FRAMEWORK SUMMARY
B3: IMPACT SUMMARY
B5: INSTRUCTIONS: The following page presents the impacts of the cross section modification on safety, economic, environmental, social, and mode shift outcomes. Your goals and background planning are referenced below to allow you to focus on the outcomes most relevant to your project. To print: Choose landscape, no margins, Fit All Columns on One Page
B7: Project Information | E7: Project Goals | H7: Background Planning | K7: Legend
B9: Community | C9: ='Step 1 User Input'!D30 -> 0 | E9: Safety | F9: =IF(ISBLANK('Step 1 User Input'!D58),"-",'Step 1 User Input'!D58) -> - | H9: Climate Action Plan | I9: =IF(ISBLANK('Step 1 User Input'!D64),"-",'Step 1 User Input'!D64) -> - | K9: Green | L9: Indicates low/medium/high positive effect
B10: Roadway Name | C10: ='Step 1 User Input'!D31 -> 0 | E10: Economic | F10: =IF(ISBLANK('Step 1 User Input'!D59),"-",'Step 1 User Input'!D59) -> - | H10: Active Transportation Plan (Bike/Ped Plan) | I10: =IF(ISBLANK('Step 1 User Input'!D65),"-",'Step 1 User Input'!D65) -> - | K10: Orange | L10: Indicates low/medium/high negative effect
B11: Project Extents | C11: ='Step 1 User Input'!D32 -> 0 | E11: Environmental | F11: =IF(ISBLANK('Step 1 User Input'!D60),"-",'Step 1 User Input'!D60) -> - | H11: Long-Term Transit Service Plan | I11: =IF(ISBLANK('Step 1 User Input'!D66),"-",'Step 1 User Input'!D66) -> - | K11: Yellow | L11: Indicates mixed effect
B12: Project Corridor Length | C12: ='Step 1 User Input'!D33 -> 0 | E12: Social | F12: =IF(ISBLANK('Step 1 User Input'!D61),"-",'Step 1 User Input'!D61) -> - | H12: Safety Action Plan | I12: =IF(ISBLANK('Step 1 User Input'!D67),"-",'Step 1 User Input'!D67) -> - | K12: White | L12: Indicates no significant effect
B13: Roadway Primary Function | C13: ='Step 1 User Input'!D41 -> 0 | E13: Mode Shift | F13: =IF(ISBLANK('Step 1 User Input'!D62),"-",'Step 1 User Input'!D62) -> - | H13: Complete Streets Policy | I13: =IF(ISBLANK('Step 1 User Input'!D68),"-",'Step 1 User Input'!D68) -> -
B14: Planned Land Use Context | C14: ='Step 1 User Input'!D40 -> 0 | H14: Vision Zero Policy | I14: =IF(ISBLANK('Step 1 User Input'!D69),"-",'Step 1 User Input'!D69) -> -
H15: Freight Corridor | I15: =IF(ISBLANK('Step 1 User Input'!D70),"-",'Step 1 User Input'!D70) -> -
B17: Impacts
B18: Click button to generate impacts.
D20: Impacts
B21: Measure | C21: Y/N | D21: Safety | G21: Economic | J21: Environmental | M21: Social | P21: Mode Shift
B22: Remove bus lanes | C22: ='Calculation D'!F20 -> N | D22: Low Adverse effect: Conflicts and friction due to the need for buses to pull in and out of traffic or stop in the travel lane. Low Positive effect: Reduced crossing distance for people walking and biking. | G22: Medium Adverse effect: Reduced ability to move passengers to and from jobs and businesses; increased bus cycle time may also require additional buses to be added to maintain headways, adding to operating costs. | J22: Medium Adverse effect: Induces personal vehicle use if it negatively effects transit operations. | M22: Medium Adverse effect: Reduces utility of riding the bus which may promote driving, reduce time spent active (walking to/from transit), increase interaction with others, and reduce consistent, reliable access for zero- or low- car households. | P22: High Adverse effect: Bus reliability and travel times can be significantly slowed by traffic if a bus lane is removed, making transit a less viable and competitive option. In areas where congestion is low, removing a bus lane is likely to have insignificant impacts.
B23: Narrow bus lanes | C23: ='Calculation D'!F21 -> N | D23: Low Adverse effect: If roadway is curved or lane is below 11', or lane is shared with bicycles. | G23: No significant effect | J23: No significant effect | M23: No significant effect | P23: No significant effect
B24: Widen bus lanes | C24: ='Calculation D'!F22 -> N | D24: Low Positive effect: If roadway is curved or lane is below 11', or lane is shared with bicycles. | G24: No significant effect | J24: No significant effect | M24: No significant effect | P24: No significant effect
B25: Add bus lanes | C25: ='Calculation D'!F23 -> N | D25: Low Positive effect: Removes conflicts and friction from buses pulling in and out of traffic or stopping in the travel lane. Low Adverse effect: Increased crossing distance for people walking and biking. | G25: Medium Positive effect: Improved ability to move passengers to and from jobs and businesses; reduced bus cycle time may also require fewer buses to be added to maintain headways, reducing operating costs. | J25: Medium Positive effect: Reduces personal vehicle use if it positively effects transit operations. | M25: Medium Positive effect: Increases utility of riding the bus which may reduce driving, increase time spent active (walking to/from transit), increase interaction with others, and improve consistent, reliable access for zero- or low- car households. | P25: High Positive effect: Bus reliability and travel times can be significantly improved, making transit a more viable and competitive option. In areas where congestion is low, adding a bus lane is likely to have insignificant impacts.
B26: Remove bike lanes | C26: ='Calculation D'!F24 -> N | D26: High Adverse effect: Removed exclusive biking space leads to reduced comfort of bicyclists, likely leading to more riding in the sidewalk or travel lanes, increased conflicts and lack of predictable behavior, and less use and less expectation of bicyclist presence and behavior. The Caltrans Local Roadway Safety Manual cites a 55% CMF for addition of separated bike lanes and 65% CMF for painted bike lanes. | G26: Medium Adverse effect: Decrease in accessibility impacts local businesses and individuals' travel costs and options. | J26: Medium Adverse effect: Due to induced driving causing increased emissions. | M26: High Adverse effect: reduced access to physical activity, reduced incentive for local trips affecting community building, and increased direct exposure to emissions. Reduces ability for some communities (zero- or low-car households, younger/older populations, disabled populations, underserved communities, etc.) to reach the goods and services they need. | P26: High Adverse effect: Unless there is a low stress, direct alternate route, removing a bike lane is likely to make biking an inviable mode for many, decreasing bike mode split.
B27: Narrow bike lanes | C27: ='Calculation D'!F25 -> N | D27: Medium Adverse effect: If reduces width below minimally safe width or reduces the comfort of bicyclists, leading to less use and less expectation of bicyclist presence and behavior; reduced separation from motor vehicles can also lead to decreased visibility of bicyclists. | G27: Low/Medium Adverse effect: If the reduction decreases the comfort of bicyclists it causes a decrease in accessibility that impacts local businesses and individuals' travel costs and options | J27: Medium Adverse effect: If the reduction decreases the comfort of bicyclists, causing a decrease in ridership, it induces driving and related emissions. | M27: Medium Adverse effect: If the reduction decreases the comfort of bicyclists, causing a decrease in ridership, it reduces physical activity and reduces local trips, affecting community building. Reduces ability for some communities (zero- or low-car households, younger/older populations, disabled populations, underserved communities, etc.) to reach the goods and services they need. | P27: Medium Adverse effect: If the reduction decreases the comfort of bicyclists, it is likely to cause a decrease in ridership.
B28: Widen bike lanes | C28: ='Calculation D'!F26 -> N | D28: Medium Positive effect: especially if it increases width above minimally safe width or increases the comfort of bicyclists, leading to greater use and greater expectation of bicyclist presence and behavior; increased separation from motor vehicles can also lead to increased visibility of bicyclists | G28: Low/Medium Positive effect: If the increase improves the comfort of bicyclists it causes an increase in accessibility that impacts local businesses and individuals' travel costs and options. | J28: Medium Positive effect: If the increase improves the comfort of bicyclists causing an increase in ridership, it reduces driving and related emissions. | M28: Medium Positive effect: If the increase improves the comfort of bicyclists, causing an increase in ridership, it increases physical activity and reduces local trips, affecting community building. Increases ability for some communities (zero- or low-car households, younger/older populations, disabled populations, underserved communities, etc.) to reach the goods and services they need. | P28: Medium Positive effect: If the widening increases the comfort of bicyclists, it is likely to cause an increase in ridership.
B29: Add bike lanes | C29: ='Calculation D'!F27 -> N | D29: High Positive effect: Added exclusive biking space leads to increased comfort of bicyclists, leading to increased use and expectation of bicyclist presence and behavior. The Caltrans Loacal Roadway Safety Manual cites a 55% CMF for addition of separated bike lanes and 65% CMF for painted bike lanes. | G29: Medium Positive effect: Increase in accessibility impacts local businesses and individuals' travel costs and options | J29: Medium Positive effect: Reduced driving causing reduced emissions . | M29: High Positive effect: increased access to physical activity, increased incentive for local trips, causing community building, and decreased direct exposure to emissions. Increases ability for some communities (zero- or low-car households, younger/older populations, disabled populations, underserved communities, etc.) to reach the goods and services they need. | P29: High Positive effect: May increase viability of biking for transportation, thereby increasing ridership.
B30: Remove pedestrian infrastructure | C30: ='Calculation D'!F28 -> N | D30: High Adverse effect: Would force people to walk in or along facilities dedicated to and designed for other users; likely also leads to reduced use from pedestrians and less expectation of pedestrian presence. Removes access for those requiring ADA facilities. The Caltrans Local Roadway Safety Manual cites an 80% CRF for addition of sidewalks. | G30: High Adverse effect: Decrease in accessibility impacts local businesses and individuals' travel costs and options; removes space that can be used to support area businesses (sandwich boards, bike parking, benches, etc.) | J30: Medium Adverse effect: Reduced propensity to walk to destinations, inducing driving and related emissions | M30: High Adverse effect: Reduces access and propensity to walk to destinations, which promotes physical activity, socialization, community building, and propensity for local trips. Also decreases destination accessibility, placemaking, inviting atmosphere. Reduces ability for some communities (zero- or low-car households, younger/older populations, disabled populations, underserved communities, etc.) to reach the goods and services they need. | P30: High Adverse effect: Significantly reduces access and propensity to walk to destinations, reducing walking mode split.
B31: Narrow pedestrian infrastructure | C31: ='Calculation D'!F29 -> N | D31: Medium Adverse effect: If it reduces width below minimally safe width or ADA standard widths. | G31: Medium Adverse effect: Decrease in accessibility impacts local businesses and individuals' travel costs and options; removes space that can be used to support area businesses (sandwich boards, bike parking, benches, etc.). | J31: Medium Adverse effect: Reduced propensity to walk to destinations, inducing driving and related emissions | M31: High Adverse effect: Reduces access and propensity to walk to destinations, which promotes physical activity, socialization, community building, and propensity for local trips. Also decreases destination accessibility, placemaking, inviting atmosphere. Reduces ability for some communities (zero- or low-car households, younger/older populations, disabled populations, underserved communities, etc.) to reach the goods and services they need. | P31: Medium Adverse effect: Reduces propensity to walk to destinations, likely reducing walking mode split.
B32: Widen pedestrian infrastructure | C32: ='Calculation D'!F30 -> N | D32: Medium Positive safety effect: If it increases width above minimally safe width or ADA standard widths | G32: Medium Positive effect: Increase in accessibility impacts local businesses and individuals' travel costs and options; provides space that can be used to support area businesses (sandwich boards, bike parking, benches, etc.) | J32: Medium Positive effect: Increased propensity to walk to destinations, reducing driving and related emissions | M32: High Positive effect: Increases access and propensity to walk to destinations, which promotes physical activity, socialization, community building, and propensity for local trips. Also decreases destination accessibility, placemaking, inviting atmosphere. Reduces ability for some communities (zero- or low-car households, younger/older populations, disabled populations, underserved communities, etc.) to reach the goods and services they need. | P32: Medium Positive effect: Increases propensity to walk to destinations, likely increasing walking mode split.
B33: Add pedestrian infrastructure | C33: ='Calculation D'!F31 -> N | D33: High Positive effect: Added separation from motor vehicle traffic; people do not have to walk in or along facilities dedicated to and designed for other users; likely also leads to increased use from pedestrians and increased expectation of pedestrian presence. Adds access for those requiring ADA facilities. The Caltrans Local Roadway Safety Manual cites an 80% CRF for addition of sidewalks. | G33: High Positive effect: Increase in accessibility impacts local businesses and individuals' travel costs and options; provides space that can be used to support area businesses (sandwich boards, bike parking, benches, etc.) | J33: Medium Positive effect: Increased propensity to walk to destinations, reducing driving and related emissions | M33: High Positive effect: Increases access and propensity to walk to destinations, which promotes physical activity, socialization, community building, and propensity for local trips. Also decreases destination accessibility, placemaking, inviting atmosphere. Reduces ability for some communities (zero- or low-car households, younger/older populations, disabled populations, underserved communities, etc.) to reach the goods and services they need. | P33: High Positive effect: Significantly improves access and propensity to walk to destinations, increasing walking mode split.
B34: Remove travel lanes | C34: ='Calculation D'!F32 -> N | D34: Near Term: High Positive effect: Even if it contributes to congestion, queueing at slower speeds would reduce severity of crashes. Shorter crossing distances, reduced crossing exposure for pedestrians, more feasible clearance intervals for bicyclists. If it results in addition of a TWLT, the HSM provides a 0.71 CMF (SE=0.02) for conversion from a four-lane road (two through lanes each direction) to a three-lane road with TWLTL (Sec. 13.4.2.3). May increase propensity for double parking. Long Term: Medium Compound Positive effect: potentially inducing triple divergence in the long term and reducing ADT--the most closely associated factor with crash risk. | G34: Near Term: Medium Adverse effect: Reduced automotive capacity, more delay, higher cost of goods movement and lower mobility. Positive effect: opportunity for placemaking. Long Term: Low Positive effect: Potential for pass-by trips increased with mode shift from reduced vehicle travel lanes | J34: Near Term: Medium Adverse effect: Local air quality effects related to number of stops, stop-and-go traffic, idling (vehicles occupy smaller area for longer period of time). Long Term: Medium Positive effect: Reduced long-term demand for driving and developments associated with driving (pavement, smaller parking lots, less runoff, lower emissions). This probably swamps the short-term adverse effect in the long run. Short-term adverse effects mitigated with change in fleet characteristics (EVs). Long Term: Medium Adverse effect: If buses share a travel lane, congestion can decrease reliability and travel times, thereby decreasing the viability of and attractiveness of transit, reducing the liklihood for mode shift to transit. | M34: Medium Positive effect: Helps with placemaking: street crossings are shorter, vehicle speeds and volumes are likely lower, leading to improved health outcomes over time. This impact is reduced if transit shares the lane and is significantly affected by congestion. | P34: High Positive effect: If removing a lane increases motorist travel times, significantly increases likelihood of switching to different modes. This impact is reduced if transit shares the lane and is also affected by the congestion.
B35: Narrow travel lanes | C35: ='Calculation D'!F33 -> N | D35: Medium Positive effect: Unless existing lane widths were necessary for design vehicles. Can reduce speeds (reduced severity). | G35: No significant effect | J35: Medium Positive effect: Slows speeds and reduces emissions. | M35: Low Positive effect: Vehicle speeds are likely lower. | P35: Low Positive effect: Reduces speeds and travel times, thereby reducing propensity to drive.
B36: Widen travel lanes | C36: ='Calculation D'!F34 -> N | D36: Medium Adverse effect: Unless existing lane widths were inappropriate for design vehicles. Allows/promotes higher speeds (inceased severity. | G36: No significant effect | J36: Medium Adverse effect: Increases speeds, increases emissions | M36: Low Adverse effect: Vehicle speeds are likely higher. | P36: Low Adverse effect: Increases speeds and travel times, thereby increasing propensity to drive.
B37: Add travel lanes | C37: ='Calculation D'!F35 -> N | D37: Near Term: High Adverse effect: Allows/promotes higher speeds (inceased severity). Longer crossing distances. More challenging clearance intervals for bicyclists. May increase propensity for double parking. Long Term: Medium Compound adverse effect: Potentially inducing more driving in the long term and increasing ADT--the most closely associated factor with crash risk. | G37: Near Term: Medium Positive effect: Increased automotive capacity, lower cost of goods movement and improved mobility. Adverse effect: Less opportunity for placemaking. Long Term: Low Adverse effect: Potential for reduced pass-by trips with induced driving demand (as opposed to other modes) | J37: Near Term: Medium Positive effect: Improved local air quality effects related to number of stops, stop-and-go traffic, idling(vehicles occupy smaller area for longer period of time). Long Term: Medium Adverse effect: Induced demand and developments associated with driving (more pavement, bigger parking lots, more runoff, more emissions). Short-term positive effects mitigated with change in fleet characteristics (EVs). Long Term: Medium Positive effect: If buses share a travel lane, decreased congestion can improve reliability and travel times, increasing attractiveness of transit, reducing the amount of induced demand. | M37: Medium Adverse effect: Impacts opportunities for placemaking: street crossings are longer, vehicle speeds and volumes are likely higher, induced demand can increase driving, neagatively effecting health outcomes over time. This impact is reduced if transit shares the lane and is significantly affected by congestion. | P37: High Adverse effect: If adding a lane decreases motorist travel times, significantly decreases likelihood of switching to different modes. This impact is reduced if transit shares the lane and is also affected by congestion.
B38: One to Two Way Conversion | C38: ='Calculation D'!F36 -> N | D38: Low Positive impact: Converting streets from one-way to two-way can increase safety by slowing speeds, decreasing risk of a double threat for pedestrians, and creating more pedestrian visibility during left-turns; two-way streets have more conflict points than one way streets, negating some safety benefits and leading to the "low" benefit rating. | G38: High Positive effect: Converting streets from one-way to two-way increase access to and awareness of businesses. Studies show high impact to business revenue and property values for converted streets. | J38: No significant effect | M38: High Positive effect: Slower speeds and improved access often improves neighborhood livability and increases biking and walking traffic. Case studies have indicate correlation with a decline in crime in areas near converted streets. | P38: No sigificant effect: Likely increases access for people driving but also slows speeds and creates a more friendly environment for people walking and biking.
B39: Remove TWLTL | C39: ='Calculation D'!F37 -> N | D39: Medium Adverse effect: Removing a two way left turn lane may increase the frequency of rear end crashes and reduces the opportunties for pedestrian refuge islands but positively reduces crossing distance if refuge islands did not exist; removing a TWLT may generate a desire for additional motor vehicle lanes to maintain similar traffic may often allows for a four to three lane conversion, which can decreate pedestrian exposure and crossing distance;motor vehicle safety benefits are most seen in environments with many acc ess points. Removes opportunities to have a wide center planted median in areas along a TWLT without access points. | G39: Low Adverse effect: Decreases motor vehicle access to businesses/services in areas where there are driveways/access points. | J39: Low Positive effect: Decreased capacity/motor vehicle access may lead to decreased volumes over time. | M39: No significant effect | P39: Low Positive effect: Decreased capacity/motor vehicle access may lead to decreased volumes over time
B40: Add TWLTL | C40: ='Calculation D'!F38 -> N | D40: Medium Positive effect: Adding a two way left turn lane may decrease the frequency of rear end crashes; two way left turn lanes can provide space for pedestrian refuge islands but adversely creates longer crossing distances if refuge islands are not provided; often allows for a four to three lane conversion, which can decreate pedestrian exposure and crossing distance; benefits are most seen in environments with many access points. In areas without access points, a TWLT can be turned into a wide center planted median. | G40: Low Positive effect: Increases motor vehicle access to businesses/services in areas where there are driveways/access points. | J40: Low Adverse effect: Increased capacity/motor vehicle access may lead to increased volumes over time. | M40: No significant effect | P40: Low Adverse effect: Increased capacity/motor vehicle access may lead to increased volumes over time
B41: Remove median | C41: ='Calculation D'!F39 -> N | D41: High Adverse effect: Motorized vehicle crash rate increases. Greatly increased potential for head-on collisions. Vehicle-vehicle conflict points increased. Veh-ped conflict points increased; eliminates median refuge for crossings.Increases vehicle-bicycle crash frequency at signalized intersections.Increases vehicle-bicycle conflict points. High Positive effect: Decrease in speeds, affects all modes. | G41: Low Positive effect: Could increase sales for auto-dependent businesses such as gas stations if access is improved. Low Adverse effect: Could reduce sales receipts if people are less willing to shop as a result of fewer pedestrian crossing opportunities (and perceived safety and comfort along a street). | J41: Medium Positive effect: May decrease VMT/emissions due to less direct access to sites with off-site parking. Medium Adverse effect: If landscaped median - stormwater management/drainage effects (increase runoff area). | M41: Medium/High Adverse effect: Decreases pedestrian street crossing quality of service. Creates potential barrier(s) in pedestrian network. | P41: No significant effect
B42: Narrow median | C42: ='Calculation D'!F40 -> N | D42: Low Adverse effect: If the median is reduced to be less than 6 feet wide, it can not serve as a pedestrian refuge. Narrowing the median also generally provides less separation. (HSM Sec. 13.4.2.7) | G42: Low Adverse effect: Reduces opportunity for planted median (opportunity for placemaking). | J42: No significant effect | M42: No significant effect | P42: No significant effect
B43: Widen median | C43: ='Calculation D'!F41 -> N | D43: Low Positive effect: If the median is widened to be 6 ft or greater, it can serve as a pedestrian refuge. Widening the median also generally provides greater separation and improved safety results. (HSM Sec. 13.4.2.7) | G43: Low Positive effect: Wide planted median is opportunity for placemaking. | J43: No significant effect | M43: No significant effect | P43: No significant effect
B44: Add median | C44: ='Calculation D'!F42 -> N | D44: High Positive effect: Motorized vehicle crash rate decreases. Greatly reduced potential for head-on collisions.Vehicle-vehicle conflict points decreased. Veh-ped conflict points decreased; provides median refuge for crossings. Reduces vehicle-bicycle crash frequency at signalized intersections. Decreases vehicle-bicycle conflict points. High Adverse effect: Increase in speeds, affects all modes. | G44: Low Positive effect: Could improve sales receipts if people are more willing to shop as a result of sufficient pedestrian crossing opportunities (and perceived safety and comfort along a street) Low Adverse effect: decrease sales for auto-dependent businesses such as gas stations if access is affected. | J44: Medium Positive effect: If landscaped median: stormwater management/drainage benefits (reduce runoff area). Medium Adverse effect: May increase VMT/emissions due to less direct access to sites with off-site parking. | M44: Medium/High Positive effect: Increases pedestrian street crossing quality of service. Increases continuity of pedestrian network. Improves opportunities for treated midblock crossings. | P44: No significant effect
B45: Remove parking | C45: ='Calculation D'!F43 -> N | D45: Low Positive effect: Decreased conflicts from parking maneuvers; reduced access to parking may decrease driving demand/VMT, thereby reducing crashes. Low Adverse effect: All else is equal, increased likelihood of double parking (hazardous behavior); street parking can act as traffic calming . | G45: Medium Adverse effect: decreased meter revenue, may make customer access (finding parking) more difficult for businesses without off-street parking, and may remove space for loading/unloading delivery vehicle.s | J45: Medium Near-Term: Adverse effect: Increased circling for parking and associated emissions -- provided all else equal, and that street parking constitutes a meaningful share of area parking. Long-Term: Positive effect: Decreased parking access can reduce demand for driving over time, reducing VMT/emissions. | M45: Low Adverse effect: All else equal, increases amount of time spent circling for parking, with decreased utility for motorists. | P45: High Positive effect: Decreasing parking supply can increase barriers to driving, increases likelihood of switching to different modes.
B46: Narrow parking | C46: ='Calculation D'!F44 -> N | D46: Low Positive effect: Reduce pedestrian crossing exposure. Low Adverse effect: If bicycle facilities are adjacent, it may increase likelihood of "dooring"; may increase conflicts between pe. | G46: No significant effect unless narrowing affects ability to use parking as loading zones, in which case there would be a medium negative effect | J46: No significant effect | M46: No significant effect | P46: No significant effect
B47: Widen parking | C47: ='Calculation D'!F45 -> N | D47: Low Adverse effect: Increase pedestrian crossing exposure. Low Positive effect: If bicycle facilities are adjacent, it may decrease likelihood of "dooring"; may decrease conflicts between people entering/exiting their vehicles and moving motor vehicles. | G47: No significant effect unless widening allows parking to be used as a loading zone, in which case there would be a medium positive effect | J47: No significant effect | M47: No significant effect | P47: No significant effect
B48: Add parking | C48: ='Calculation D'!F46 -> N | D48: Low Adverse effect: Increased conflicts from parking maneuvers; increased access to parking may increase driving demand/VMT, thereby increasing crashes. Potential sight distance issues for driveways or at intersections Low Positive effect: All else is equal, decreased likelihood of double parking (hazardous behavior); street parking can act as traffic calming and serves as a buffer to sidewalks and some bicycle facilities | G48: Medium Positive effect: Increased access to commercial uses, if managed appropriately, ability to serve for loading/unloading delivery vehicles, and may improve customer access (finding parking) for businesses without off-street parking. | J48: Medium Positive effect: Decreased circling for parking and associated emissions -- provided all else equal, and that street parking constitutes a meaningful share of area parking. Long-Term: Adverse effect: Increased parking access can induce demand for driving over time, increasing VMT/emissions. | M48: Low Positive effect: All else equal, decreases amount of time spent circling for parking, with increased utility for motorists. | P48: High Adverse effect: Increasing parking supply can decrease barriers to driving, increasing propensity of driving.

Sheet Step 3C Visualizer
B2: NCHRP 15-78 DECISION-MAKING FRAMEWORK SUMMARY | AL2: NCHRP 15-78 DECISION-MAKING FRAMEWORK SUMMARY
B4: EXISTING CROSS SECTION VISUALIZER | AL4: PROPOSED CROSS SECTION VISUALIZER
B6: INSTRUCTIONS: The following page presents a visualizer of the existing cross section. | AL6: INSTRUCTIONS: The following page presents a visualizer of the proposed cross section.
B9: Existing Cross Section | AL9: Proposed Cross Section
D11: bm | E11: m | H11: v | I11: b | J11: b | L11: v | M11: u | N11: v | O11: v | P11: v | Q11: v | R11: v | S11: u | T11: J | U11: q | V11: v | W11: v | X11: v | Y11: v | Z11: u | AA11: v | AC11: b | AD11: b | AE11: v | AH11: m | AI11: bm | AN11: bm | AO11: m | AR11: v | AS11: b | AT11: b | AV11: v | AW11: u | AX11: v | AY11: v | AZ11: v | BA11: v | BB11: v | BC11: u | BD11: J | BE11: q | BF11: v | BG11: v | BH11: v | BI11: v | BJ11: u | BK11: v | BM11: b | BN11: b | BO11: v | BR11: m | BS11: bm
C12: ROW | D12: SUP | E12: SW | F12: Bu | H12: P | I12: Bike ↕ | J12: Bike | K12: Sep | L12: P | M12: B | N12: ↓ | O12: ↓ | P12: ↓ | Q12: ↓ | R12: ↕ | S12: B | T12: M | U12: TWLTL | V12: ↑ | W12: ↑ | X12: ↑ | Y12: ↑ | Z12: B | AA12: P | AB12: Sep | AC12: Bike | AD12: Bike ↕ | AE12: P | AG12: Bu | AH12: SW | AI12: SUP | AJ12: ROW | AM12: ROW | AN12: SUP | AO12: SW | AP12: Bu | AR12: P | AS12: Bike ↕ | AT12: Bike | AU12: Sep | AV12: P | AW12: B | AX12: ↓ | AY12: ↓ | AZ12: ↓ | BA12: ↓ | BB12: ↕ | BC12: B | BD12: M | BE12: TWLTL | BF12: ↑ | BG12: ↑ | BH12: ↑ | BI12: ↑ | BJ12: B | BK12: P | BL12: Sep | BM12: Bike | BN12: Bike ↕ | BO12: P | BQ12: Bu | BR12: SW | BS12: SUP | BT12: ROW
C13: ='Calculation D'!C6 -> 0 | D13: ='Calculation D'!D6 -> 0 | E13: ='Calculation D'!E6 -> 0 | F13: ='Calculation D'!F6 -> 0 | G13: ='Calculation D'!G6 -> 0 | H13: ='Calculation D'!H6 -> 0 | I13: ='Calculation D'!I6 -> 0 | J13: ='Calculation D'!J6 -> 0 | K13: ='Calculation D'!K6 -> 0 | L13: ='Calculation D'!L6 -> 0 | M13: ='Calculation D'!M6 -> 0 | N13: ='Calculation D'!N6 -> 0 | O13: ='Calculation D'!O6 -> 0 | P13: ='Calculation D'!P6 -> 0 | Q13: ='Calculation D'!Q6 -> 0 | R13: ='Calculation D'!R6 -> 0 | S13: ='Calculation D'!S6 -> 0 | T13: ='Calculation D'!T6 -> 0 | U13: ='Calculation D'!U6 -> 0 | V13: ='Calculation D'!V6 -> 0 | W13: ='Calculation D'!W6 -> 0 | X13: ='Calculation D'!X6 -> 0 | Y13: ='Calculation D'!Y6 -> 0 | Z13: ='Calculation D'!Z6 -> 0 | AA13: ='Calculation D'!AA6 -> 0 | AB13: ='Calculation D'!AB6 -> 0 | AC13: ='Calculation D'!AC6 -> 0 | AD13: ='Calculation D'!AD6 -> 0 | AE13: ='Calculation D'!AE6 -> 0 | AF13: ='Calculation D'!AF6 -> 0 | AG13: ='Calculation D'!AG6 -> 0 | AH13: ='Calculation D'!AH6 -> 0 | AI13: ='Calculation D'!AI6 -> 0 | AJ13: ='Calculation D'!AJ6 -> 0 | AM13: ='Calculation D'!C12 -> 0 | AN13: ='Calculation D'!D12 -> 0 | AO13: ='Calculation D'!E12 -> 0 | AP13: ='Calculation D'!F12 -> 0 | AQ13: ='Calculation D'!G12 -> 0 | AR13: ='Calculation D'!H12 -> 0 | AS13: ='Calculation D'!I12 -> 0 | AT13: ='Calculation D'!J12 -> 0 | AU13: ='Calculation D'!K12 -> 0 | AV13: ='Calculation D'!L12 -> 0 | AW13: ='Calculation D'!M12 -> 0 | AX13: ='Calculation D'!N12 -> 0 | AY13: ='Calculation D'!O12 -> 0 | AZ13: ='Calculation D'!P12 -> 0 | BA13: ='Calculation D'!Q12 -> 0 | BB13: ='Calculation D'!R12 -> 0 | BC13: ='Calculation D'!S12 -> 0 | BD13: ='Calculation D'!T12 -> 0 | BE13: ='Calculation D'!U12 -> 0 | BF13: ='Calculation D'!V12 -> 0 | BG13: ='Calculation D'!W12 -> 0 | BH13: ='Calculation D'!X12 -> 0 | BI13: ='Calculation D'!Y12 -> 0 | BJ13: ='Calculation D'!Z12 -> 0 | BK13: ='Calculation D'!AA12 -> 0 | BL13: ='Calculation D'!AB12 -> 0 | BM13: ='Calculation D'!AC12 -> 0 | BN13: ='Calculation D'!AD12 -> 0 | BO13: ='Calculation D'!AE12 -> 0 | BP13: ='Calculation D'!AF12 -> 0 | BQ13: ='Calculation D'!AG12 -> 0 | BR13: ='Calculation D'!AH12 -> 0 | BS13: ='Calculation D'!AI12 -> 0 | BT13: ='Calculation D'!AJ12 -> 0
G14: ="Curb-to-Curb Distance: "& SUM(G13:AF13) -> Curb-to-Curb Distance: 0 | AQ14: ="Curb-to-Curb Distance: "& SUM(AQ13:BP13) -> Curb-to-Curb Distance: 0
C15: ="Right-of-Way: "& SUM(C13:AJ13) -> Right-of-Way: 0 | AM15: ="Right-of-Way: "& SUM(AM13:BT13) -> Right-of-Way: 0
D70: 0
D72: 0

Sheet Step 3D Int Capacity Summary
B2: NCHRP 15-78 DECISION-MAKING FRAMEWORK SUMMARY
B4: INTERSECTION CAPACITY SUMMARY
B6: INSTRUCTIONS: The following page presents the capacity impacts of the cross section modification on maximum peak-hour volume-to-capacity ratio, 16-hour efficiency, 16-hour excess capacity, and hours below capacity. The only inputs to this analysis is ADT and the controlling downstream intersection; factors such as lane widths are not considered. To print: Choose landscape, no margins, Fit All Columns on One Page
B8: Community | C8: ='Step 1 User Input'!D30 -> 0
B9: Roadway Name | C9: ='Step 1 User Input'!D31 -> 0
B10: Project Extents | C10: ='Step 1 User Input'!D32 -> 0
B11: Project Corridor Length | C11: ='Step 1 User Input'!D33 -> 0
B12: Roadway Primary Function | C12: ='Step 1 User Input'!D41 -> 0
B13: Planned Land Use Context | C13: ='Step 1 User Input'!D40 -> 0
B15: Existing Cross Section | F15: Proposed Cross Section
B17: INSTRUCTIONS | F17: INSTRUCTIONS
B18: Use button to calculate values. Edit values in blue cells if needed. Use button to reset values, if needed. | F18: Use button to calculate values. Edit values in blue cells if needed. Use button to reset values, if needed.
B20: Inputs | F20: Inputs
B21: ADT | C21: ='Step 1 User Input'!D54 -> 0 | D21: Pulled from Step 1. | F21: ADT | H21: Instructions: Pulled from Steps 1, 2A, or 2B. Edit if incorrect.
B22: Controlling Downstream Intersection | D22: Instructions: Calculated from existing cross section. Edit if incorrect. | F22: Controlling Downstream Intersection | H22: Instructions: Calculated from new cross section. Edit if incorrect.
B23: D factor | D23: Instructions: Edit default value if known. The D factor is the percentage of the peak hour travel in the peak direction. | F23: D factor | H23: Instructions: Edit default value if known. The D factor is the percentage of the peak hour travel in the peak direction.
B24: K factor | D24: Instructions: Edit default value if known.The K factor is the percentage of AADT during the peak hour for both directions of travel. | F24: K factor | H24: Instructions: Edit default value if known.The K factor is the percentage of AADT during the peak hour for both directions of travel.
B26: Analysis Results | F26: Analysis Results
B27: Maximum peak hour volume-to-capacity (d/c) ratio | C27: =_xlfn.IFS(C22='Calculation E'!F4,'Calculation E'!L38,'Step 3D Int Capacity Summary'!C22='Calculation E'!G4,'Calculation E'!M38,'Step 3D Int Capacity Summary'!C22='Calculation E'!H4,'Calculation E'!N38,'Step 3D Int Capacity Summary'!C22='Calculation E'!I4,'Calculation E'!O38) ->  | F27: Maximum peak hour volume-to-capacity (d/c) ratio | G27: =_xlfn.IFS(G22='Calculation F'!F4,'Calculation F'!L38,'Step 3D Int Capacity Summary'!G22='Calculation F'!G4,'Calculation F'!M38,'Step 3D Int Capacity Summary'!G22='Calculation F'!H4,'Calculation F'!N38,'Step 3D Int Capacity Summary'!G22='Calculation F'!I4,'Calculation F'!O38) -> 
B28: 16-hour efficiency | C28: =_xlfn.IFS(C22='Calculation E'!F4,'Calculation E'!R38,'Step 3D Int Capacity Summary'!C22='Calculation E'!G4,'Calculation E'!S38,'Step 3D Int Capacity Summary'!C22='Calculation E'!H4,'Calculation E'!T38,'Step 3D Int Capacity Summary'!C22='Calculation E'!I4,'Calculation E'!U38) ->  | F28: 16-hour efficiency | G28: =_xlfn.IFS(G22='Calculation F'!F4,'Calculation F'!R38,'Step 3D Int Capacity Summary'!G22='Calculation F'!G4,'Calculation F'!S38,'Step 3D Int Capacity Summary'!G22='Calculation F'!H4,'Calculation F'!T38,'Step 3D Int Capacity Summary'!G22='Calculation F'!I4,'Calculation F'!U38) -> 
B29: 16-hour excess capacity | C29: =_xlfn.IFS(C22='Calculation E'!F4,'Calculation E'!X40,'Step 3D Int Capacity Summary'!C22='Calculation E'!G4,'Calculation E'!Y40,'Step 3D Int Capacity Summary'!C22='Calculation E'!H4,'Calculation E'!Z40,'Step 3D Int Capacity Summary'!C22='Calculation E'!I4,'Calculation E'!AA40) ->  | F29: 16-hour excess capacity | G29: =_xlfn.IFS(G22='Calculation F'!F4,'Calculation F'!X40,'Step 3D Int Capacity Summary'!G22='Calculation F'!G4,'Calculation F'!Y40,'Step 3D Int Capacity Summary'!G22='Calculation F'!H4,'Calculation F'!Z40,'Step 3D Int Capacity Summary'!G22='Calculation F'!I4,'Calculation F'!AA40) -> 
B30: Total hours below capacity | C30: =_xlfn.IFS(C22='Calculation E'!F4,'Calculation E'!AD38,'Step 3D Int Capacity Summary'!C22='Calculation E'!G4,'Calculation E'!AE38,'Step 3D Int Capacity Summary'!C22='Calculation E'!H4,'Calculation E'!AF38,'Step 3D Int Capacity Summary'!C22='Calculation E'!I4,'Calculation E'!AG38) ->  | F30: Total hours below capacity | G30: =_xlfn.IFS(G22='Calculation F'!F4,'Calculation F'!AD38,'Step 3D Int Capacity Summary'!G22='Calculation F'!G4,'Calculation F'!AE38,'Step 3D Int Capacity Summary'!G22='Calculation F'!H4,'Calculation F'!AF38,'Step 3D Int Capacity Summary'!G22='Calculation F'!I4,'Calculation F'!AG38) -> 

Sheet Calculation A
B7: Existing Cross Section - FROM USER INPUT
B8: Instructions: Indicate inclusion ('Y') of street element and current dimension (in feet)
B10: Cross-section Elements | C10: ='Step 1 User Input'!D17 -> Additional ROW | D10: ='Step 1 User Input'!E17 -> Shared-Use Path | E10: ='Step 1 User Input'!F17 -> Sidewalk | F10: ='Step 1 User Input'!G17 -> Pedestrian buffer | G10: ='Step 1 User Input'!H17 -> Curb & Gutter | H10: ='Step 1 User Input'!I17 -> Curbside Parking | I10: ='Step 1 User Input'!J17 -> Two-Way bike lane | J10: ='Step 1 User Input'!K17 -> Bike lane | K10: ='Step 1 User Input'!L17 -> Bike Separation | L10: ='Step 1 User Input'!M17 -> Floating Parking | M10: ='Step 1 User Input'!N17 -> Bus lane | N10: ='Step 1 User Input'!O17 -> Travel lane 1 | O10: ='Step 1 User Input'!P17 -> Travel lane 2 | P10: ='Step 1 User Input'!Q17 -> Travel lane 3 | Q10: ='Step 1 User Input'!R17 -> Travel lane 4 | R10: ='Step 1 User Input'!S17 -> Roadway Width - No Centerline | S10: ='Step 1 User Input'!T17 -> Center Bus Lane | T10: ='Step 1 User Input'!U17 -> Median | U10: ='Step 1 User Input'!V17 -> TWLTL | V10: ='Step 1 User Input'!W17 -> Travel lane 4 | W10: ='Step 1 User Input'!X17 -> Travel lane 3 | X10: ='Step 1 User Input'!Y17 -> Travel lane 2 | Y10: ='Step 1 User Input'!Z17 -> Travel lane 1 | Z10: ='Step 1 User Input'!AA17 -> Bus lane | AA10: ='Step 1 User Input'!AB17 -> Floating Parking | AB10: ='Step 1 User Input'!AC17 -> Bike Separation | AC10: ='Step 1 User Input'!AD17 -> Bike lane | AD10: ='Step 1 User Input'!AE17 -> Two-Way bike lane | AE10: ='Step 1 User Input'!AF17 -> Curbside Parking | AF10: ='Step 1 User Input'!AG17 -> Curb & Gutter | AG10: ='Step 1 User Input'!AH17 -> Pedestrian buffer | AH10: ='Step 1 User Input'!AI17 -> Sidewalk | AI10: ='Step 1 User Input'!AJ17 -> Shared-Use Path | AJ10: ='Step 1 User Input'!AK17 -> Additional ROW
B11: Included? | C11: =IF(ISBLANK('Step 1 User Input'!D18),"N",'Step 1 User Input'!D18) -> N | D11: =IF(ISBLANK('Step 1 User Input'!E18),"N",'Step 1 User Input'!E18) -> N | E11: =IF(ISBLANK('Step 1 User Input'!F18),"N",'Step 1 User Input'!F18) -> N | F11: =IF(ISBLANK('Step 1 User Input'!G18),"N",'Step 1 User Input'!G18) -> N | G11: =IF(ISBLANK('Step 1 User Input'!H18),"N",'Step 1 User Input'!H18) -> N | H11: =IF(ISBLANK('Step 1 User Input'!I18),"N",'Step 1 User Input'!I18) -> N | I11: =IF(ISBLANK('Step 1 User Input'!J18),"N",'Step 1 User Input'!J18) -> N | J11: =IF(ISBLANK('Step 1 User Input'!K18),"N",'Step 1 User Input'!K18) -> N | K11: =IF(ISBLANK('Step 1 User Input'!L18),"N",'Step 1 User Input'!L18) -> N | L11: =IF(ISBLANK('Step 1 User Input'!M18),"N",'Step 1 User Input'!M18) -> N | M11: =IF(ISBLANK('Step 1 User Input'!N18),"N",'Step 1 User Input'!N18) -> N | N11: =IF(ISBLANK('Step 1 User Input'!O18),"N",'Step 1 User Input'!O18) -> N | O11: =IF(ISBLANK('Step 1 User Input'!P18),"N",'Step 1 User Input'!P18) -> N | P11: =IF(ISBLANK('Step 1 User Input'!Q18),"N",'Step 1 User Input'!Q18) -> N | Q11: =IF(ISBLANK('Step 1 User Input'!R18),"N",'Step 1 User Input'!R18) -> N | R11: =IF(ISBLANK('Step 1 User Input'!S18),"N",'Step 1 User Input'!S18) -> N | S11: =IF(ISBLANK('Step 1 User Input'!T18),"N",'Step 1 User Input'!T18) -> N | T11: =IF(ISBLANK('Step 1 User Input'!U18),"N",'Step 1 User Input'!U18) -> N | U11: =IF(ISBLANK('Step 1 User Input'!V18),"N",'Step 1 User Input'!V18) -> N | V11: =IF(ISBLANK('Step 1 User Input'!W18),"N",'Step 1 User Input'!W18) -> N | W11: =IF(ISBLANK('Step 1 User Input'!X18),"N",'Step 1 User Input'!X18) -> N | X11: =IF(ISBLANK('Step 1 User Input'!Y18),"N",'Step 1 User Input'!Y18) -> N | Y11: =IF(ISBLANK('Step 1 User Input'!Z18),"N",'Step 1 User Input'!Z18) -> N | Z11: =IF(ISBLANK('Step 1 User Input'!AA18),"N",'Step 1 User Input'!AA18) -> N | AA11: =IF(ISBLANK('Step 1 User Input'!AB18),"N",'Step 1 User Input'!AB18) -> N | AB11: =IF(ISBLANK('Step 1 User Input'!AC18),"N",'Step 1 User Input'!AC18) -> N | AC11: =IF(ISBLANK('Step 1 User Input'!AD18),"N",'Step 1 User Input'!AD18) -> N | AD11: =IF(ISBLANK('Step 1 User Input'!AE18),"N",'Step 1 User Input'!AE18) -> N | AE11: =IF(ISBLANK('Step 1 User Input'!AF18),"N",'Step 1 User Input'!AF18) -> N | AF11: =IF(ISBLANK('Step 1 User Input'!AG18),"N",'Step 1 User Input'!AG18) -> N | AG11: =IF(ISBLANK('Step 1 User Input'!AH18),"N",'Step 1 User Input'!AH18) -> N | AH11: =IF(ISBLANK('Step 1 User Input'!AI18),"N",'Step 1 User Input'!AI18) -> N | AI11: =IF(ISBLANK('Step 1 User Input'!AJ18),"N",'Step 1 User Input'!AJ18) -> N | AJ11: =IF(ISBLANK('Step 1 User Input'!AK18),"N",'Step 1 User Input'!AK18) -> N
B12: Current Dimension | C12: ='Step 1 User Input'!D19 -> 0 | D12: ='Step 1 User Input'!E19 -> 0 | E12: ='Step 1 User Input'!F19 -> 0 | F12: ='Step 1 User Input'!G19 -> 0 | G12: ='Step 1 User Input'!H19 -> 0 | H12: ='Step 1 User Input'!I19 -> 0 | I12: ='Step 1 User Input'!J19 -> 0 | J12: ='Step 1 User Input'!K19 -> 0 | K12: ='Step 1 User Input'!L19 -> 0 | L12: ='Step 1 User Input'!M19 -> 0 | M12: ='Step 1 User Input'!N19 -> 0 | N12: ='Step 1 User Input'!O19 -> 0 | O12: ='Step 1 User Input'!P19 -> 0 | P12: ='Step 1 User Input'!Q19 -> 0 | Q12: ='Step 1 User Input'!R19 -> 0 | R12: ='Step 1 User Input'!S19 -> 0 | S12: ='Step 1 User Input'!T19 -> 0 | T12: ='Step 1 User Input'!U19 -> 0 | U12: ='Step 1 User Input'!V19 -> 0 | V12: ='Step 1 User Input'!W19 -> 0 | W12: ='Step 1 User Input'!X19 -> 0 | X12: ='Step 1 User Input'!Y19 -> 0 | Y12: ='Step 1 User Input'!Z19 -> 0 | Z12: ='Step 1 User Input'!AA19 -> 0 | AA12: ='Step 1 User Input'!AB19 -> 0 | AB12: ='Step 1 User Input'!AC19 -> 0 | AC12: ='Step 1 User Input'!AD19 -> 0 | AD12: ='Step 1 User Input'!AE19 -> 0 | AE12: ='Step 1 User Input'!AF19 -> 0 | AF12: ='Step 1 User Input'!AG19 -> 0 | AG12: ='Step 1 User Input'!AH19 -> 0 | AH12: ='Step 1 User Input'!AI19 -> 0 | AI12: ='Step 1 User Input'!AJ19 -> 0 | AJ12: ='Step 1 User Input'!AK19 -> 0
B13: Total ROW: | C13: ='Step 1 User Input'!D20 -> 0
B16: Question | C16: Response/Input Value
B17: PROJECT INFORMATION - FROM USER INPUT
B18: Basic Project Information
B19: ='Step 1 User Input'!C30 -> Community | C19: ='Step 1 User Input'!D30 -> 0
B20: ='Step 1 User Input'!C31 -> Roadway name | C20: ='Step 1 User Input'!D31 -> 0
B21: ='Step 1 User Input'!C32 -> Project extents | C21: ='Step 1 User Input'!D32 -> 0
B22: ='Step 1 User Input'!C33 -> Project corridor length | C22: ='Step 1 User Input'!D33 -> 0
B23: Step 1: Scoping & Needs
B24: Project details
B25: ='Step 1 User Input'!C36 -> Type of project: Can you move curb lines? | C25: ='Step 1 User Input'!D36 -> 0
B26: ='Step 1 User Input'!C37 -> The curb-to-curb distance in feet: | C26: ='Step 1 User Input'!D37 -> 0
B27: ='Step 1 User Input'!C38 -> The available right-of-way in feet: | C27: ='Step 1 User Input'!D38 -> 0
B28: ='Step 1 User Input'!C39 -> What is the existing land use context? | C28: ='Step 1 User Input'!D39 -> 0
B29: ='Step 1 User Input'!C40 -> What is the planned land use context? | C29: ='Step 1 User Input'!D40 -> 0
B30: ='Step 1 User Input'!C41 -> What is the roadway's primary intended function? | C30: ='Step 1 User Input'!D41 -> 0
B31: ='Step 1 User Input'!C42 -> The road directionality: | C31: ='Step 1 User Input'!D42 -> -
B32: ='Step 1 User Input'!C43 -> Number of lanes per direction: | C32: ='Step 1 User Input'!D43 -> 0
B33: ='Step 1 User Input'!C44 -> Presence of a median: | C33: ='Step 1 User Input'!D44 -> No
B34: ='Step 1 User Input'!C45 -> Width of the median: | C34: ='Step 1 User Input'!D45 -> 0
B35: ='Step 1 User Input'!C46 -> Presence of a Two-Way-Left-Turn Lane (TWLTL): | C35: ='Step 1 User Input'!D46 -> No
B36: ='Step 1 User Input'!C47 -> Width of the TWLTL: | C36: ='Step 1 User Input'!D47 -> 0
B37: ='Step 1 User Input'!C48 -> Is this a freight corridor? | C37: ='Step 1 User Input'!D48 -> 0
B38: ='Step 1 User Input'!C49 -> Is there heavy bus lane use on this corridor? | C38: ='Step 1 User Input'!D49 -> 0
B39: ='Step 1 User Input'!C50 -> What is the controlling downstream intersection type? | C39: ='Step 1 User Input'!D50 -> 0
B40: Existing conditions & data
B41: ='Step 1 User Input'!C52 -> What is the posted speed limit? | C41: ='Step 1 User Input'!D52 -> 0
B42: ='Step 1 User Input'!C53 -> What is the 85th percentile speed? (If known) | C42: =IF('Step 1 User Input'!D53=0,"",'Step 1 User Input'!D53) -> 
B43: ='Step 1 User Input'!C54 -> What is the average daily traffic?* | C43: ='Step 1 User Input'!D54 -> 0
B44: ='Step 1 User Input'!C55 -> Is on-street parking present on the east/north side? | C44: ='Step 1 User Input'!D55 -> N
B45: ='Step 1 User Input'!C56 -> Is on-street parking present on the west/south side? | C45: ='Step 1 User Input'!D56 -> N
B46: Project Goals
B47: ='Step 1 User Input'!C58 -> Safety | C47: ='Step 1 User Input'!D58 -> 0
B48: ='Step 1 User Input'!C59 -> Economic | C48: ='Step 1 User Input'!D59 -> 0
B49: ='Step 1 User Input'!C60 -> Environmental | C49: ='Step 1 User Input'!D60 -> 0
B50: ='Step 1 User Input'!C61 -> Social | C50: ='Step 1 User Input'!D61 -> 0
B51: ='Step 1 User Input'!C62 -> Mode Shift | C51: ='Step 1 User Input'!D62 -> 0
B52: Background planning - Please select the following for which relevant plans exist and pertain to this corridor.
B53: ='Step 1 User Input'!C64 -> Climate Action Plan | C53: ='Step 1 User Input'!D64 -> 0
B54: ='Step 1 User Input'!C65 -> Active Transportation Plan (Bike/Ped Plan) | C54: ='Step 1 User Input'!D65 -> 0
B55: ='Step 1 User Input'!C66 -> Long-Term Transit Service Plan | C55: ='Step 1 User Input'!D66 -> 0
B56: ='Step 1 User Input'!C67 -> Safety Action Plan | C56: ='Step 1 User Input'!D67 -> 0
B57: ='Step 1 User Input'!C68 -> Complete Streets Policy | C57: ='Step 1 User Input'!D68 -> 0
B58: ='Step 1 User Input'!C69 -> Vision Zero Policy | C58: ='Step 1 User Input'!D69 -> 0
B59: ='Step 1 User Input'!C70 -> Freight Corridor | C59: ='Step 1 User Input'!D70 -> 0
B62: Minimum Safe Facility Parameters Calculations
B64: One-way/Two-way | C64: =C31 -> -
B65: SUP east/north | C65: ="N" -> N | D65: SUP not recommended for MSD
B66: SUP west/south | C66: ="N" -> N | D66: SUP not recommended for MSD
B67: Two-Way bike lane east/north | C67: ="N" -> N | D67: Two-way bike lane not recommended for MSD
B68: Two-Way bike lane west/south | C68: ="N" -> N | D68: Two-way bike lane not recommended for MSD
B69: Bike lane needed east/north | C69: =IF(OR(C67="Y",C68="Y"),"N",IF(AND(NOT(C74="No Centerline"),N11="Y"),"Y","N")) -> 
B70: Bike lane needed west/south | C70: =IF(OR(C67="Y",C68="Y"),"N",IF(AND(NOT(C74="No Centerline"),Y11="Y"),"Y","N")) -> 
B71: Number of lanes - Actual | C71: =C32 -> 0
B72: Number of lanes - Recommended | C72: =_xlfn.IFS(C32="No Centerline","No Centerline",C32=1,1,OR(C32=2,C32=3,C32=4),1) -> 
B73: Number of lanes - Recommended - formatted | C73: =_xlfn.IFS(C72="No Centerline","No Centerline",C72=1,"2x1",C72=2,"2x1") -> 
B74: Number of lanes - for bike lane lookup | C74: =_xlfn.IFS(C75<=20,IF(C72="No Centerline","No Centerline","No Centerline***"),AND(C75>20,C75<=25,C72="No Centerline"),IF(C83=1500,"No Centerline","2x1"),AND(C75>20,C75<=25,C72=1),IF(OR(C83=3000,C83=6000,C83=999999),"2x1","No Centerline***"),AND(C75>20,C75<=25,C72=2),_xlfn.IFS(C83=1500,"No Centerline***",OR(C83=3000,C83=6000),"2x1***",C83=999999,"2x2"),AND(C75>20,C75<=25,OR(C72=3,C72=4)),_xlfn.IFS(C83=1500,"No Centerline***",OR(C83=3000,C83=6000),"2x1***",C83=999999,"2x2***"),C75>25,"Any") -> 
B75: Vehicle Speed | C75: =IF(C42="",_xlfn.IFS($C$41<=20,20,AND($C$41>20,$C$41<=25),25,AND($C$41>25,$C$41<=30),30,AND($C$41>30,$C$41<=35),35,$C$41>=35,">35"),_xlfn.IFS($C$42<=20,20,AND($C$42>20,$C$42<=25),25,AND($C$42>25,$C$42<=30),30,AND($C$42>30,$C$42<=35),35,$C$42>=35,">35")) -> 20
B76: Curbside parking allowed? (east/north side) | C76: =IF(AND(OR(C67="Y",C69="Y"),C75>30),"N","Y") -> 
B77: Curbside parking allowed? (west/south side) | C77: =IF(AND(OR(C68="Y",C70="Y"),C75>30),"N","Y") -> 
B78: Curbside Parking Present? (east/north side) | C78: N | D78: Parking lane not required for MSD
B79: Curbside Parking Present? (west/south side) | C79: N | D79: Parking lane not required for MSD
B80: Floating Parking Protects Bike Lane? (east/north side) | C80: N | D80: Parking lane not required for MSD
B81: Floating Parking Protects Bike Lane?(west/south side) | C81: N | D81: Parking lane not required for MSD
B82: ADT To Use | C82: =C43 -> 0
B83: Traffic Volumes (ADT) | C83: =IF(C64="two-way",_xlfn.IFS(C75<=20,_xlfn.IFS(C82<=2000,2000,AND(C82>2000,C82<=4000),4000,C82>4000,999999),AND(C75>20,C75<=25),_xlfn.IFS(C82<=1500,1500,AND(C82>1500,C82<=3000),3000,AND(C82>3000,C82<=6000),6000,C82>6000,999999),AND(C75>25,C75<=30),_xlfn.IFS(C82<=6000,6000,C82>6000,999999),AND(C75>30,C75<=35),999999,C75>35,999999),_xlfn.IFS(C75<=20,_xlfn.IFS(C82*2<=2000,2000,AND(C82*2>2000,C82*2<=4000),4000,C82*2>4000,999999),AND(C75>20,C75<=25),_xlfn.IFS(C82*2<=1500,1500,AND(C82*2>1500,C82*2<=3000),3000,AND(C82*2>3000,C82*2<=6000),6000,C82*2>6000,999999),AND(C75>25,C75<=30),_xlfn.IFS(C82*2<=6000,6000,C82*2>6000,999999),AND(C75>30,C75<=35),999999,C75>35,999999)) -> 2000
B84: Expected Pedestrian Volumes | C84: =VLOOKUP($C$29,selections!$Q$16:$S$21,3,FALSE) -> 
B87: Results
B88: Pedestrian
B89: Pedestrian Facility Width (east/north) | C89: =INDEX('main lookups'!A$1:Q$80,MATCH(_xlfn.CONCAT(C75,C84,C78),'main lookups'!$G$1:$G$73,0),14) -> 
B90: Pedestrian Buffer Width (east/north) | C90: =INDEX('main lookups'!A$1:Q$80,MATCH(_xlfn.CONCAT(C75,C84,C78),'main lookups'!$G$1:$G$73,0),15) -> 
B91: Pedestrian Facility Width (west/south) | C91: =INDEX('main lookups'!A$1:Q$80,MATCH(_xlfn.CONCAT(C75,C84,C79),'main lookups'!$G$1:$G$73,0),14) -> 
B92: Pedestrian Buffer Width (west/south) | C92: =INDEX('main lookups'!A$1:Q$80,MATCH(_xlfn.CONCAT(C75,C84,C79),'main lookups'!$G$1:$G$73,0),15) -> 
B93: SUP Buffer Width (east/north) | C93: =IF(C65="Y",INDEX('main lookups'!A$1:Q$80,MATCH(_xlfn.CONCAT(C75,C84,C78),'main lookups'!$G$1:$G$73,0),15),0) -> 0
B94: SUP Buffer Width (west/north) | C94: =IF(C66="Y",INDEX('main lookups'!A$1:Q$80,MATCH(_xlfn.CONCAT(C75,C84,C79),'main lookups'!$G$1:$G$73,0),15),0) -> 0
B96: Bicycle
B97: Two-Way Bicycle Lane Width (east/north) | C97: =IF(C67="Y",VLOOKUP("Two-Way bike lane",'ancillary lookups'!$F$14:$G$16,2,FALSE),0) -> 0
B98: Two-Way Bicycle Buffer (east/north) | C98: =_xlfn.IFS(AND(C67="Y",C80="Y"),VLOOKUP("Separation, Parking",'ancillary lookups'!F14:G16,2,FALSE),AND(C67="Y",C80="N"),VLOOKUP("Separation, No Parking",'ancillary lookups'!F14:G16,2,FALSE),C67="N",0) -> 0
B99: Bicycle Facility Type (east/north) | C99: =IF(OR(C97>0,C102>0),"None",IF(C69="Y",INDEX('main lookups'!A$1:Q$80,MATCH(_xlfn.CONCAT(C75,C83,SUBSTITUTE(C74,"***",""),C80),'main lookups'!$H$1:$H$73,0),10),"None")) -> 
B100: Bicycle Lane Width (east/north) | C100: =IF(C99="None",0,INDEX('main lookups'!A$1:Q$80,MATCH(_xlfn.CONCAT(C75,C83,SUBSTITUTE(C74,"***",""),C80),'main lookups'!$H$1:$H$73,0),11)) -> 
B101: Bicycle Buffer (east/north) | C101: =IF(C99="None",0,INDEX('main lookups'!A$1:Q$80,MATCH(_xlfn.CONCAT(C75,C83,SUBSTITUTE(C74,"***",""),C80),'main lookups'!$H$1:$H$73,0),12)) -> 
B102: Two-Way Bicycle Lane Width (east/north) | C102: =IF(C68="Y",VLOOKUP("Two-Way bike lane",'ancillary lookups'!$F$14:$G$16,2,FALSE),0) -> 0
B103: Two-Way Bicycle Buffer (east/north) | C103: =_xlfn.IFS(AND(C68="Y",C81="Y"),VLOOKUP("Separation, Parking",'ancillary lookups'!F14:G16,2,FALSE),AND(C68="Y",C81="N"),VLOOKUP("Separation, No Parking",'ancillary lookups'!F14:G16,2,FALSE),C68="N",0) -> 0
B104: Bicycle Facility Type (east/north) | C104: =IF(OR(C97>0,C102>0),"None",IF(C70="Y",INDEX('main lookups'!A$1:Q$80,MATCH(_xlfn.CONCAT(C75,C83,SUBSTITUTE(C74,"***",""),C81),'main lookups'!$H$1:$H$73,0),10),"None")) -> 
B105: Bicycle Lane Width (west/south) | C105: =IF(C104="None",0,INDEX('main lookups'!A$1:Q$80,MATCH(_xlfn.CONCAT(C75,C83,SUBSTITUTE(C74,"***",""),C81),'main lookups'!$H$1:$H$73,0),11)) -> 
B106: Bicycle Buffer (west/south) | C106: =IF(C104="None",0,INDEX('main lookups'!A$1:Q$80,MATCH(_xlfn.CONCAT(C75,C83,SUBSTITUTE(C74,"***",""),C81),'main lookups'!$H$1:$H$73,0),12)) -> 
B107: Total Bicycle | C107: =SUM(C100,C101,C105,C106) -> 
B109: Vehicle Lane Width
B110: Roadway Width - No Centerline | C110: =IF(C71="No Centerline",INDEX('ancillary lookups'!$B$27:$C$34,MATCH("Mixed traffic",'ancillary lookups'!$B$27:$B$34,0),2),0) -> 0
B111: Vehicle Lane 1 Width | C111: =_xlfn.IFS(C37="Yes",VLOOKUP("Vehicle Lane - Freight",'ancillary lookups'!F3:$G$9,2,FALSE),C38="Yes",VLOOKUP("Vehicle Lane - Bus",'ancillary lookups'!F3:$G$9,2,FALSE),AND(C37="No",C38="No"),VLOOKUP(B112,'ancillary lookups'!F3:$G$9,2,FALSE)) -> 
B112: Vehicle Lane Width | C112: =VLOOKUP(B112,'ancillary lookups'!F3:$G$7,2,FALSE) -> 10
B113: Parking Lane Width (east/north) | C113: =IF(OR(C80="Y",C78="Y"),INDEX('main lookups'!A$1:Q$80,MATCH(_xlfn.CONCAT(C75,C83,C74,"Y"),'main lookups'!$H$1:$H$73,0),17),0) -> 0
B114: Parking Lane Width (west/south) | C114: =IF(OR(C79="Y",C81="Y"),INDEX('main lookups'!A$1:Q$80,MATCH(_xlfn.CONCAT(C75,C83,C74,"Y"),'main lookups'!$H$1:$H$73,0),17),0) -> 0
B115: Bus Lane Width | C115: =INDEX('ancillary lookups'!$F$2:$G$4,MATCH("Bus Lane",'ancillary lookups'!$F$2:$F$4,0),2) -> 11
B116: TWLTL Width | C116: =INDEX('ancillary lookups'!$F$2:$G$4,MATCH("TWLTL",'ancillary lookups'!$F$2:$F$4,0),2) -> 11
B117: Median Width | C117: =C34 -> 0
B118: Shared Use Path | C118: =INDEX('ancillary lookups'!$F$2:$G$9,MATCH("Shared Use Path",'ancillary lookups'!$F$2:$F$9,0),2) -> 10
B120: Minimum Safe Dimension | C120: =SUM(C130:AF130) -> 
B121: Available ROW | C121: =C27 -> 0
B122: Available Room | C122: =C121-C120 -> 
B123: Does minimum safe dimension fit? | C123: =IF(C120<=C27,_xlfn.CONCAT("Yes, the minimum safe dimension fits within the ROW. There is an additional ",C27-C120," feet remaining."),_xlfn.CONCAT("No, the minimum safe dimension does not fit within the ROW. There is ",C120-C27," feet missing.")) -> 
B125: Minimum Cross Section
B126: Automatically populated based on minimum safe dimension.
B128: Cross-section Elements | C128: Waterline | D128: Shared Use Path | E128: Sidewalk | F128: Pedestrian buffer | G128: Curb & Gutter | H128: Curbside Parking | I128: Two-way bike lane | J128: Bike lane | K128: Separation | L128: Floating Parking | M128: Bus lane | N128: Travel lane 1 | O128: Travel lane 2 | P128: Roadway Width - No Centerline | Q128: Center Bus Lane | R128: Median | S128: TWLTL | T128: Travel lane 2 | U128: Travel lane 1 | V128: Bus lane | W128: Floating Parking | X128: Separation | Y128: Bike lane | Z128: Two-Way bike lane | AA128: Curbside Parking | AB128: Curb & Gutter | AC128: Pedestrian buffer | AD128: Sidewalk | AE128: Shared Use Path | AF128: Waterline
B129: Included? | C129: =C11 -> N | D129: =C65 -> N | E129: Y | F129: Y | G129: =G11 -> N | H129: =C78 -> N | I129: =IF(C67="Y","Y","N") -> N | J129: =IF(C100>0,"Y","N") ->  | K129: =IF(C98>0,"Y",IF(C101>0,"Y","N")) ->  | L129: =C80 -> N | M129: =M11 -> N | N129: =IF(C72="No Centerline","N",N11) ->  | O129: =IF(OR(C72="No Centerline",C72=1),"N",O11) ->  | P129: =IF(C72="No Centerline","Y","N") ->  | Q129: =IF(S11="Y","Y","N") -> N | R129: N | S129: ="N" -> N | T129: =IF(OR(C72="No Centerline",C72=1),"N",X11) ->  | U129: =IF(C72="No Centerline","N",Y11) ->  | V129: =Z11 -> N | W129: =C81 -> N | X129: =IF(C103>0,"Y",IF(C106>0,"Y","N")) ->  | Y129: =IF(C105>0,"Y","N") ->  | Z129: =IF(C68="Y","Y","N") -> N | AA129: =C79 -> N | AB129: =AF11 -> N | AC129: Y | AD129: Y | AE129: =C66 -> N | AF129: =IF(AJ11="Y","Y","N") -> N
B130: Current Dimension | C130: =IF(C129="Y",C12,"") ->  | D130: ="" ->  | E130: =C89 ->  | F130: =IF(C65="Y",C93,C90) ->  | G130: =IF(G129="Y",G12,"") ->  | H130: =IF(H129="Y",C113,"") ->  | I130: =IF(I129="Y",C97,"") ->  | J130: =IF(J129="Y",C100,"") ->  | K130: =IF(K129="Y",IF(C98>0,C98,C101),"") ->  | L130: =IF(L129="Y",C113,"") ->  | M130: =IF(M129="Y",C115,"") ->  | N130: =IF(N129="Y",$C$111,"") ->  | O130: =IF(O129="Y",$C$112,"") ->  | P130: =IF(P129="Y",$C$110,"") ->  | Q130: =IF(Q129="Y",C115,"") ->  | R130: =IF(R129="Y",C117,"") ->  | S130: =IF(S129="Y",U11,"") ->  | T130: =IF(T129="Y",$C$111,"") ->  | U130: =IF(U129="Y",$C$111,"") ->  | V130: =IF(V129="Y",C115,"") ->  | W130: =IF(W129="Y",C114,"") ->  | X130: =IF(X129="Y",IF(C103>0,C103,C106),"") ->  | Y130: =IF(Y129="Y",C105,"") ->  | Z130: =IF(Z129="Y",C102,"") ->  | AA130: =IF(AA129="Y",C114,"") ->  | AB130: =IF(AB129="Y",AF12,"") ->  | AC130: =IF(C66="Y",C94,C92) ->  | AD130: =C91 ->  | AE130: ="" ->  | AF130: =IF(AF129="Y",AJ12,"") -> 
B131: Total ROW: | C131: =SUM(C130:AF130) -> 
B133: Proceed to 2.2? | C133: =IF(C122>=0,"Y","N") -> 

Sheet Calculation B
B7: Existing Cross Section - FROM USER INPUT
B8: Instructions: Indicate inclusion ('Y') of street element and current dimension (in feet)
B10: Cross-section Elements | C10: ='Step 2A Insufficient Space'!D63 -> Additional ROW | D10: ='Step 2A Insufficient Space'!E63 -> Shared Use Path | E10: ='Step 2A Insufficient Space'!F63 -> Sidewalk | F10: ='Step 2A Insufficient Space'!G63 -> Pedestrian buffer | G10: ='Step 2A Insufficient Space'!H63 -> Curb & Gutter | H10: ='Step 2A Insufficient Space'!I63 -> Curbside Parking | I10: ='Step 2A Insufficient Space'!J63 -> Two-way bike lane | J10: ='Step 2A Insufficient Space'!K63 -> Bike lane | K10: ='Step 2A Insufficient Space'!L63 -> Bike Separation | L10: ='Step 2A Insufficient Space'!M63 -> Floating Parking | M10: ='Step 2A Insufficient Space'!N63 -> Bus lane | N10: ='Step 2A Insufficient Space'!O63 -> Travel lane 1 | O10: ='Step 2A Insufficient Space'!P63 -> Travel lane 2 | P10: ='Step 2A Insufficient Space'!Q63 -> Roadway Width - No Centerline | Q10: ='Step 2A Insufficient Space'!R63 -> Center Bus Lane | R10: ='Step 2A Insufficient Space'!S63 -> Median | S10: ='Step 2A Insufficient Space'!T63 -> TWLTL | T10: ='Step 2A Insufficient Space'!U63 -> Travel lane 2 | U10: ='Step 2A Insufficient Space'!V63 -> Travel lane 1 | V10: ='Step 2A Insufficient Space'!W63 -> Bus lane | W10: ='Step 2A Insufficient Space'!X63 -> Floating Parking | X10: ='Step 2A Insufficient Space'!Y63 -> Bike Separation | Y10: ='Step 2A Insufficient Space'!Z63 -> Bike lane | Z10: ='Step 2A Insufficient Space'!AA63 -> Two-way bike lane | AA10: ='Step 2A Insufficient Space'!AB63 -> Curbside Parking | AB10: ='Step 2A Insufficient Space'!AC63 -> Curb & Gutter | AC10: ='Step 2A Insufficient Space'!AD63 -> Pedestrian buffer | AD10: ='Step 2A Insufficient Space'!AE63 -> Sidewalk | AE10: ='Step 2A Insufficient Space'!AF63 -> Shared Use Path | AF10: ='Step 2A Insufficient Space'!AG63 -> Additional ROW
B11: Included? | C11: ='Step 2A Insufficient Space'!D64 -> 0 | D11: ='Step 2A Insufficient Space'!E64 -> 0 | E11: ='Step 2A Insufficient Space'!F64 -> 0 | F11: ='Step 2A Insufficient Space'!G64 -> 0 | G11: ='Step 2A Insufficient Space'!H64 -> 0 | H11: ='Step 2A Insufficient Space'!I64 -> 0 | I11: ='Step 2A Insufficient Space'!J64 -> 0 | J11: ='Step 2A Insufficient Space'!K64 -> 0 | K11: ='Step 2A Insufficient Space'!L64 -> 0 | L11: ='Step 2A Insufficient Space'!M64 -> 0 | M11: ='Step 2A Insufficient Space'!N64 -> 0 | N11: ='Step 2A Insufficient Space'!O64 -> 0 | O11: ='Step 2A Insufficient Space'!P64 -> 0 | P11: ='Step 2A Insufficient Space'!Q64 -> 0 | Q11: ='Step 2A Insufficient Space'!R64 -> 0 | R11: ='Step 2A Insufficient Space'!S64 -> 0 | S11: ='Step 2A Insufficient Space'!T64 -> 0 | T11: ='Step 2A Insufficient Space'!U64 -> 0 | U11: ='Step 2A Insufficient Space'!V64 -> 0 | V11: ='Step 2A Insufficient Space'!W64 -> 0 | W11: ='Step 2A Insufficient Space'!X64 -> 0 | X11: ='Step 2A Insufficient Space'!Y64 -> 0 | Y11: ='Step 2A Insufficient Space'!Z64 -> 0 | Z11: ='Step 2A Insufficient Space'!AA64 -> 0 | AA11: ='Step 2A Insufficient Space'!AB64 -> 0 | AB11: ='Step 2A Insufficient Space'!AC64 -> 0 | AC11: ='Step 2A Insufficient Space'!AD64 -> 0 | AD11: ='Step 2A Insufficient Space'!AE64 -> 0 | AE11: ='Step 2A Insufficient Space'!AF64 -> 0 | AF11: ='Step 2A Insufficient Space'!AG64 -> 0
B12: Current Dimension | C12: ='Step 2A Insufficient Space'!D65 -> 0 | D12: ='Step 2A Insufficient Space'!E65 -> 0 | E12: ='Step 2A Insufficient Space'!F65 -> 0 | F12: ='Step 2A Insufficient Space'!G65 -> 0 | G12: ='Step 2A Insufficient Space'!H65 -> 0 | H12: ='Step 2A Insufficient Space'!I65 -> 0 | I12: ='Step 2A Insufficient Space'!J65 -> 0 | J12: ='Step 2A Insufficient Space'!K65 -> 0 | K12: ='Step 2A Insufficient Space'!L65 -> 0 | L12: ='Step 2A Insufficient Space'!M65 -> 0 | M12: ='Step 2A Insufficient Space'!N65 -> 0 | N12: ='Step 2A Insufficient Space'!O65 -> 0 | O12: ='Step 2A Insufficient Space'!P65 -> 0 | P12: ='Step 2A Insufficient Space'!Q65 -> 0 | Q12: ='Step 2A Insufficient Space'!R65 -> 0 | R12: ='Step 2A Insufficient Space'!S65 -> 0 | S12: ='Step 2A Insufficient Space'!T65 -> 0 | T12: ='Step 2A Insufficient Space'!U65 -> 0 | U12: ='Step 2A Insufficient Space'!V65 -> 0 | V12: ='Step 2A Insufficient Space'!W65 -> 0 | W12: ='Step 2A Insufficient Space'!X65 -> 0 | X12: ='Step 2A Insufficient Space'!Y65 -> 0 | Y12: ='Step 2A Insufficient Space'!Z65 -> 0 | Z12: ='Step 2A Insufficient Space'!AA65 -> 0 | AA12: ='Step 2A Insufficient Space'!AB65 -> 0 | AB12: ='Step 2A Insufficient Space'!AC65 -> 0 | AC12: ='Step 2A Insufficient Space'!AD65 -> 0 | AD12: ='Step 2A Insufficient Space'!AE65 -> 0 | AE12: ='Step 2A Insufficient Space'!AF65 -> 0 | AF12: ='Step 2A Insufficient Space'!AG65 -> 0
B13: Total ROW:
B16: Question | C16: Response/Input Value | D16: Support
B17: PROJECT INFORMATION - FROM USER INPUT
B18: Basic Project Information
B19: ='Step 1 User Input'!C30 -> Community | C19: ='Step 1 User Input'!D30 -> 0
B20: ='Step 1 User Input'!C31 -> Roadway name | C20: ='Step 1 User Input'!D31 -> 0
B21: ='Step 1 User Input'!C32 -> Project extents | C21: ='Step 1 User Input'!D32 -> 0
B22: ='Step 1 User Input'!C33 -> Project corridor length | C22: ='Step 1 User Input'!D33 -> 0
B23: Step 1: Scoping & Needs
B24: Project details
B25: ='Step 1 User Input'!C36 -> Type of project: Can you move curb lines? | C25: ='Step 1 User Input'!D36 -> 0
B26: ='Step 1 User Input'!C37 -> The curb-to-curb distance in feet: | C26: ='Step 1 User Input'!D37 -> 0
B27: ='Step 1 User Input'!C38 -> The available right-of-way in feet: | C27: ='Step 1 User Input'!D38 -> 0
B28: ='Step 1 User Input'!C39 -> What is the existing land use context? | C28: ='Step 1 User Input'!D39 -> 0
B29: ='Step 1 User Input'!C40 -> What is the planned land use context? | C29: ='Step 1 User Input'!D40 -> 0
B30: ='Step 1 User Input'!C41 -> What is the roadway's primary intended function? | C30: ='Step 1 User Input'!D41 -> 0
B31: ='Step 1 User Input'!C42 -> The road directionality: | C31: =IF(OR(P11="Y",AND(N11="Y",U11="Y")),"two-way","one-way") -> one-way
B32: ='Step 1 User Input'!C43 -> Number of lanes per direction: | C32: =IF(P11="Y","No Centerline",MAX(COUNTIF(M11:O11,"Y"),COUNTIF(T11:V11,"Y"))) -> 0
B33: ='Step 1 User Input'!C44 -> Presence of a median: | C33: =IF(R11="Y","Yes","No") -> No
B34: ='Step 1 User Input'!C45 -> Width of the median: | C34: =R12 -> 0
B35: ='Step 1 User Input'!C46 -> Presence of a Two-Way-Left-Turn Lane (TWLTL): | C35: =IF(S11="Y","Yes","No") -> No
B36: ='Step 1 User Input'!C47 -> Width of the TWLTL: | C36: =S12 -> 0
B37: ='Step 1 User Input'!C48 -> Is this a freight corridor? | C37: ='Step 1 User Input'!D48 -> 0
B38: ='Step 1 User Input'!C49 -> Is there heavy bus lane use on this corridor? | C38: ='Step 1 User Input'!D49 -> 0
B39: ='Step 1 User Input'!C50 -> What is the controlling downstream intersection type? | C39: ='Step 1 User Input'!D50 -> 0
B40: Existing conditions & data
B41: ='Step 1 User Input'!C52 -> What is the posted speed limit? | C41: ='Step 1 User Input'!D52 -> 0
B42: ='Step 1 User Input'!C53 -> What is the 85th percentile speed? (If known) | C42: =IF('Step 2A Insufficient Space'!E54="",'Step 1 User Input'!D53,'Step 2A Insufficient Space'!E54) -> 0
B43: ='Step 1 User Input'!C54 -> What is the average daily traffic?* | C43: =IF('Step 2A Insufficient Space'!E55="",'Step 1 User Input'!D54,'Step 2A Insufficient Space'!E55) -> 0
B44: ='Step 1 User Input'!C55 -> Is on-street parking present on the east/north side? | C44: =IF(OR(H11="Y",L11="Y"),"Y","N") -> N
B45: ='Step 1 User Input'!C56 -> Is on-street parking present on the west/south side? | C45: =IF(OR(W11="Y",AA11="Y"),"Y","N") -> N
B46: Project Goals
B47: ='Step 1 User Input'!C58 -> Safety | C47: ='Step 1 User Input'!D58 -> 0
B48: ='Step 1 User Input'!C59 -> Economic | C48: ='Step 1 User Input'!D59 -> 0
B49: ='Step 1 User Input'!C60 -> Environmental | C49: ='Step 1 User Input'!D60 -> 0
B50: ='Step 1 User Input'!C61 -> Social | C50: ='Step 1 User Input'!D61 -> 0
B51: ='Step 1 User Input'!C62 -> Mode Shift | C51: ='Step 1 User Input'!D62 -> 0
B52: Background planning - Please select the following for which relevant plans exist and pertain to this corridor.
B53: ='Step 1 User Input'!C64 -> Climate Action Plan | C53: ='Step 1 User Input'!D64 -> 0
B54: ='Step 1 User Input'!C65 -> Active Transportation Plan (Bike/Ped Plan) | C54: ='Step 1 User Input'!D65 -> 0
B55: ='Step 1 User Input'!C66 -> Long-Term Transit Service Plan | C55: ='Step 1 User Input'!D66 -> 0
B56: ='Step 1 User Input'!C67 -> Safety Action Plan | C56: ='Step 1 User Input'!D67 -> 0
B57: ='Step 1 User Input'!C68 -> Complete Streets Policy | C57: ='Step 1 User Input'!D68 -> 0
B58: ='Step 1 User Input'!C69 -> Vision Zero Policy | C58: ='Step 1 User Input'!D69 -> 0
B59: ='Step 1 User Input'!C70 -> Freight Corridor | C59: ='Step 1 User Input'!D70 -> 0
B62: Minimum Safe Facility Parameters Calculations
B63: Safe Parallel Facility? | C63: =IF('Step 2A Insufficient Space'!E56="Y","Y","N") -> N
B64: One-way/Two-way | C64: =C31 -> one-way
B65: SUP east/north | C65: =D11 -> 0
B66: SUP west/south | C66: =AE11 -> 0
B67: Two-Way bike lane east/north | C67: =I11 -> 0
B68: Two-Way bike lane west/south | C68: =Z11 -> 0
B69: Bike lane needed east/north | C69: =IF(J11="Y","Y",IF(OR(C63="Y",C65="Y",C67="Y",C68="Y"),"N",IF(AND(NOT(C74="No Centerline"),N11="Y"),"Y","N"))) -> 
B70: Bike lane needed west/south | C70: =IF(Y11="Y","Y",IF(OR(C63="Y",C66="Y",C67="Y",C68="Y"),"N",IF(AND(NOT(C74="No Centerline"),U11="Y"),"Y","N"))) -> 
B71: Number of lanes - Actual | C71: =C32 -> 0
B72: Number of lanes - Recommended | C72: =_xlfn.IFS(C32="No Centerline","No Centerline",C32=1,1,OR(C32=2,C32=3,C32=4),2) -> 
B73: Number of lanes - Recommended - formatted | C73: =_xlfn.IFS(C72="No Centerline","No Centerline",C72=1,"2x1",C72=2,"2x2") -> 
B74: Number of lanes - for bike lane lookup | C74: =_xlfn.IFS(C75<=20,IF(C72="No Centerline","No Centerline","No Centerline***"),AND(C75>20,C75<=25,C72="No Centerline"),IF(C83=1500,"No Centerline","2x1"),AND(C75>20,C75<=25,C72=1),IF(OR(C83=3000,C83=6000,C83=999999),"2x1","No Centerline***"),AND(C75>20,C75<=25,C72=2),_xlfn.IFS(C83=1500,"No Centerline***",OR(C83=3000,C83=6000),"2x1***",C83=999999,"2x2"),AND(C75>20,C75<=25,OR(C72=3,C72=4)),_xlfn.IFS(C83=1500,"No Centerline***",OR(C83=3000,C83=6000),"2x1***",C83=999999,"2x2***"),C75>25,"Any") -> 
B75: Vehicle Speed | C75: =IF(OR(C42=0,C42=""),_xlfn.IFS($C$41<=20,20,AND($C$41>20,$C$41<=25),25,AND($C$41>25,$C$41<=30),30,AND($C$41>30,$C$41<=35),35,$C$41>=35,">35"),_xlfn.IFS($C$42<=20,20,AND($C$42>20,$C$42<=25),25,AND($C$42>25,$C$42<=30),30,AND($C$42>30,$C$42<=35),35,$C$42>=35,">35")) -> 20
B76: Curbside parking allowed? (east/north side) | C76: =IF(AND(OR(C67="Y",C69="Y"),OR(AND(C75>20,C75<=25,C83=999999),C75>25)),"N","Y") -> 
B77: Curbside parking allowed? (west/south side) | C77: =IF(AND(OR(C68="Y",C70="Y"),OR(,AND(C75>20,C75<=25,,C83=999999),C75>25)),"N","Y") -> 
B78: Curbside Parking Present? (east/north side) | C78: =IF(H11="Y","Y","N") -> N
B79: Curbside Parking Present? (west/south side) | C79: =IF(AA11="Y","Y","N") -> N
B80: Floating Parking Protects Bike Lane? (east/north side) | C80: =IF(L11="Y","Y","N") -> N
B81: Floating Parking Protects Bike Lane?(west/south side) | C81: =IF(W11="Y","Y","N") -> N
B82: ADT To Use | C82: =C43 -> 0
B83: Traffic Volumes (ADT) | C83: =IF(C64="two-way",_xlfn.IFS(C75<=20,_xlfn.IFS(C82<=2000,2000,AND(C82>2000,C82<=4000),4000,C82>4000,999999),AND(C75>20,C75<=25),_xlfn.IFS(C82<=1500,1500,AND(C82>1500,C82<=3000),3000,AND(C82>3000,C82<=6000),6000,C82>6000,999999),AND(C75>25,C75<=30),_xlfn.IFS(C82<=6000,6000,C82>6000,999999),AND(C75>30,C75<=35),999999,C75>35,999999),_xlfn.IFS(C75<=20,_xlfn.IFS(C82*2<=2000,2000,AND(C82*2>2000,C82*2<=4000),4000,C82*2>4000,999999),AND(C75>20,C75<=25),_xlfn.IFS(C82*2<=1500,1500,AND(C82*2>1500,C82*2<=3000),3000,AND(C82*2>3000,C82*2<=6000),6000,C82*2>6000,999999),AND(C75>25,C75<=30),_xlfn.IFS(C82*2<=6000,6000,C82*2>6000,999999),AND(C75>30,C75<=35),999999,C75>35,999999)) -> 2000
B84: Expected Pedestrian Volumes | C84: =VLOOKUP($C$29,selections!$Q$16:$S$21,3,FALSE) -> 
B87: Results
B88: Pedestrian
B89: Pedestrian Facility Width (east/north) | C89: =IF(C65="N",INDEX('main lookups'!A$1:Q$80,MATCH(_xlfn.CONCAT(C75,C84,C78),'main lookups'!$G$1:$G$73,0),14),0) -> 0
B90: Pedestrian Buffer Width (east/north) | C90: =IF(C65="N",INDEX('main lookups'!A$1:Q$80,MATCH(_xlfn.CONCAT(C75,C84,C78),'main lookups'!$G$1:$G$73,0),15),0) -> 0
B91: Pedestrian Facility Width (west/south) | C91: =IF(C66="N",INDEX('main lookups'!A$1:Q$80,MATCH(_xlfn.CONCAT(C75,C84,C79),'main lookups'!$G$1:$G$73,0),14),0) -> 0
B92: Pedestrian Buffer Width (west/south) | C92: =IF(C66="N",INDEX('main lookups'!A$1:Q$80,MATCH(_xlfn.CONCAT(C75,C84,C79),'main lookups'!$G$1:$G$73,0),15),0) -> 0
B93: SUP Buffer Width (east/north) | C93: =IF(C65="Y",INDEX('main lookups'!A$1:Q$80,MATCH(_xlfn.CONCAT(C75,C84,C78),'main lookups'!$G$1:$G$73,0),15),0) -> 0
B94: SUP Buffer Width (west/north) | C94: =IF(C66="Y",INDEX('main lookups'!A$1:Q$80,MATCH(_xlfn.CONCAT(C75,C84,C79),'main lookups'!$G$1:$G$73,0),15),0) -> 0
B96: Bicycle
B97: Two-Way Bicycle Lane Width (east/north) | C97: =IF(C67="Y",VLOOKUP("Two-Way bike lane",'ancillary lookups'!$F$14:$G$16,2,FALSE),0) -> 0
B98: Two-Way Bicycle Buffer (east/north) | C98: =IF(C67="N",0,MAX(_xlfn.IFS(AND(C67="Y",C80="Y"),VLOOKUP("Separation, Parking",'ancillary lookups'!F14:G16,2,FALSE),AND(C67="Y",C80="N"),VLOOKUP("Separation, No Parking",'ancillary lookups'!F14:G16,2,FALSE)),C101)) -> 
B99: Bicycle Facility Type (east/north) | C99: =IF(C69="Y",IFERROR(INDEX('main lookups'!A$1:Q$80,MATCH(_xlfn.CONCAT(C75,C83,SUBSTITUTE(C74,"***",""),C80),'main lookups'!$H$1:$H$73,0),10),"None"),"None") -> 
B100: Bicycle Lane Width (east/north) | C100: =IF(C99="None",0,INDEX('main lookups'!A$1:Q$80,MATCH(_xlfn.CONCAT(C75,C83,SUBSTITUTE(C74,"***",""),C80),'main lookups'!$H$1:$H$73,0),11)) -> 
B101: Bicycle Buffer (east/north) | C101: =IF(C99="None",0,INDEX('main lookups'!A$1:Q$80,MATCH(_xlfn.CONCAT(C75,C83,SUBSTITUTE(C74,"***",""),C80),'main lookups'!$H$1:$H$73,0),12)) -> 
B102: Two-Way Bicycle Lane Width (west/south) | C102: =IF(C68="Y",VLOOKUP("Two-Way bike lane",'ancillary lookups'!$F$14:$G$16,2,FALSE),0) -> 0
B103: Two-Way Bicycle Buffer (west/south) | C103: =IF(C68="N",0,MAX(_xlfn.IFS(AND(C68="Y",C81="Y"),VLOOKUP("Separation, Parking",'ancillary lookups'!F14:G16,2,FALSE),AND(C68="Y",C81="N"),VLOOKUP("Separation, No Parking",'ancillary lookups'!F14:G16,2,FALSE)),C106)) -> 
B104: Bicycle Facility Type (west/south) | C104: =IF(C70="Y",IFERROR(INDEX('main lookups'!A$1:Q$80,MATCH(_xlfn.CONCAT(C75,C83,SUBSTITUTE(C74,"***",""),C81),'main lookups'!$H$1:$H$73,0),10),"None"),"None") -> 
B105: Bicycle Lane Width (west/south) | C105: =IF(C104="None",0,INDEX('main lookups'!A$1:Q$80,MATCH(_xlfn.CONCAT(C75,C83,SUBSTITUTE(C74,"***",""),C81),'main lookups'!$H$1:$H$73,0),11)) -> 
B106: Bicycle Buffer (west/south) | C106: =IF(C104="None",0,INDEX('main lookups'!A$1:Q$80,MATCH(_xlfn.CONCAT(C75,C83,SUBSTITUTE(C74,"***",""),C81),'main lookups'!$H$1:$H$73,0),12)) -> 
B107: Total Bicycle | C107: =SUM(C100,C101,C105,C106) -> 
B109: Vehicle Lane Width
B110: Roadway Width - No Centerline | C110: =IF(C71="No Centerline",INDEX('ancillary lookups'!$B$27:$C$34,MATCH("Mixed traffic",'ancillary lookups'!$B$27:$B$34,0),2),0) -> 0
B111: Vehicle Lane 1 Width | C111: =_xlfn.IFS(C37="Yes",VLOOKUP("Vehicle Lane - Freight",'ancillary lookups'!F3:$G$9,2,FALSE),C38="Yes",VLOOKUP("Vehicle Lane - Bus",'ancillary lookups'!F3:$G$9,2,FALSE),AND(C37="No",C38="No"),VLOOKUP(B112,'ancillary lookups'!F3:$G$9,2,FALSE)) -> 
B112: Vehicle Lane Width | C112: =VLOOKUP(B112,'ancillary lookups'!F3:$G$7,2,FALSE) -> 10
B113: Parking Lane Width (east/north) | C113: =IF(OR(C80="Y",C78="Y"),INDEX('main lookups'!A$1:Q$80,MATCH(_xlfn.CONCAT(C75,C83,C74,"Y"),'main lookups'!$H$1:$H$73,0),17),0) -> 0
B114: Parking Lane Width (west/south) | C114: =IF(OR(C79="Y",C81="Y"),INDEX('main lookups'!A$1:Q$80,MATCH(_xlfn.CONCAT(C75,C83,C74,"Y"),'main lookups'!$H$1:$H$73,0),17),0) -> 0
B115: Bus Lane Width | C115: =INDEX('ancillary lookups'!$F$2:$G$9,MATCH("Bus Lane",'ancillary lookups'!$F$2:$F$9,0),2) -> 11
B116: TWLT Width | C116: =INDEX('ancillary lookups'!$F$2:$G$9,MATCH("TWLTL",'ancillary lookups'!$F$2:$F$9,0),2) -> 11
B117: Median Width | C117: =C34 -> 0
B118: Shared Use Path | C118: =INDEX('ancillary lookups'!$F$2:$G$9,MATCH("Shared Use Path",'ancillary lookups'!$F$2:$F$9,0),2) -> 10
B120: Minimum Safe Dimension | C120: =SUM(C130:AF130) -> 0
B121: Available ROW | C121: =C27 -> 0
B122: Available Room | C122: =C121-C120 -> 0
B123: Does minimum safe dimension fit? | C123: =IF(C120<=C27,_xlfn.CONCAT("Yes, the minimum safe dimension fits within the ROW. There is an additional ",C27-C120," feet remaining."),_xlfn.CONCAT("No, the minimum safe dimension does not fit within the ROW. There is ",C120-C27," feet missing.")) -> Yes, the minimum safe dimension fits within the ROW. There is an additional 0 feet remaining.
B125: Minimum Cross Section
B126: Automatically populated based on minimum safe dimension.
B128: Cross-section Elements | C128: Waterline | D128: Shared Use Path | E128: Sidewalk | F128: Pedestrian buffer | G128: Curb & Gutter | H128: Curbside Parking | I128: Two-way bike lane | J128: Bike lane | K128: Separation | L128: Floating Parking | M128: Bus lane | N128: Travel lane | O128: Travel lane 2 | P128: Roadway Width - No Centerline | Q128: Center Bus Lane | R128: Median | S128: TWLTL | T128: Travel lane 2 | U128: Travel lane 1 | V128: Bus lane | W128: Floating Parking | X128: Separation | Y128: Bike lane | Z128: Two-way bike lane | AA128: Curbside Parking | AB128: Curb & Gutter | AC128: Pedestrian buffer | AD128: Sidewalk | AE128: Shared Use Path | AF128: Waterline
B129: Included? | C129: =IF(C11=0,"N",C11) -> N | D129: =IF(C65=0,"N",C65) -> N | E129: =IF(C65="N","Y","N") -> N | F129: Y | G129: =IF(G11=0,"N",G11) -> N | H129: =IFERROR(IF(C76="Y",C78,"N"),"N") -> N | I129: =IF(I11="Y","Y",IF(C67=0,"N",C67)) -> N | J129: =IFERROR(IF(J11="Y","Y",C69),"N") -> N | K129: =IF(OR(I129="Y",J129="Y"),"Y",IFERROR(IF(OR(C67="Y",C69="Y"),"Y","N"),"N")) -> N | L129: =C80 -> N | M129: =IF(M11=0,"N",M11) -> N | N129: =IFERROR(IF(C72="No Centerline","N",N11),"N") -> N | O129: =IFERROR(IF(OR(C72="No Centerline",C72=1),"N",O11),"N") -> N | P129: =IF(P11=0,"N",P11) -> N | Q129: =IF(Q11=0,"N",Q11) -> N | R129: =IF(R11=0,"N",R11) -> N | S129: =IF(S11=0,"N",S11) -> N | T129: =IFERROR(IF(OR(C72="No Centerline",C72=1),"N",T11),"N") -> N | U129: =IFERROR(IF(C72="No Centerline","N",U11),"N") -> N | V129: =IF(V11=0,"N",V11) -> N | W129: =C81 -> N | X129: =IF(OR(Y129="Y",Z129="Y"),"Y",IFERROR(IF(OR(C68="Y",C70="Y"),"Y","N"),"N")) -> N | Y129: =IFERROR(IF(Y11="Y","Y",C70),"N") -> N | Z129: =IF(Z11="Y","Y",IF(C68=0,"N",C68)) -> N | AA129: =IFERROR(IF(C77="Y",C79,"N"),"N") -> N | AB129: =IF(AB11=0,"N",AB11) -> N | AC129: Y | AD129: =IF(C66="N","Y","N") -> N | AE129: =IF(C66=0,"N",C66) -> N | AF129: =IF(AF11=0,"N",AF11) -> N
B130: Minimum Dimension | C130: ="-" -> - | D130: =IF(D129="Y",C118,"-") -> - | E130: =IF(E129="Y",C89,"-") -> - | F130: =IF(C65="Y",IF(C93=0,"-",C93),IF(F129="Y",IF(C90=0,"-",C90),"-")) -> - | G130: ="-" -> - | H130: =IFERROR(_xlfn.IFS(H129="Y",C113,C76="N","Not allowed",H129="N","-"),"-") -> - | I130: =IF(I129="Y",C97,"-") -> - | J130: =IF(J129="Y",C100,"-") -> - | K130: =IF(K129="Y",IF(C98>0,C98,C101),"-") -> - | L130: =IF(L129="Y",C113,"-") -> - | M130: =IF(M129="Y",C115,"-") -> - | N130: =IF(N129="Y",$C$111,"-") -> - | O130: =IF(O129="Y",$C$112,"-") -> - | P130: =IF(P129="Y",$C$110,"-") -> - | Q130: =IF(Q129="Y",C115,"-") -> - | R130: ="-" -> - | S130: =IF(S129="Y",C116,"-") -> - | T130: =IF(T129="Y",$C$112,"-") -> - | U130: =IF(U129="Y",$C$111,"-") -> - | V130: =IF(V129="Y",C115,"-") -> - | W130: =IF(W129="Y",C114,"-") -> - | X130: =IF(X129="Y",IF(C103>0,C103,C106),"-") -> - | Y130: =IF(Y129="Y",C105,"-") -> - | Z130: =IF(Z129="Y",C102,"-") -> - | AA130: =IFERROR(_xlfn.IFS(AA129="Y",C114,C77="N","Not allowed",AA129="N","-"),"-") -> - | AB130: ="-" -> - | AC130: =IF(C66="Y",IF(C94=0,"-",C94),IF(AC129="Y",IF(C92=0,"-",C92),"-")) -> - | AD130: =IF(AD129="Y",C91,"-") -> - | AE130: =IF(AE129="Y",C118,"-") -> - | AF130: ="-" -> -
B131: Total ROW: | C131: =SUM(C130:AF130) -> 0

Sheet Calculation C
B7: Existing Cross Section - FROM USER INPUT
B8: Instructions: Indicate inclusion ('Y') of street element and current dimension (in feet)
B10: Cross-section Elements | C10: ='Step 2B Sufficient Space'!D64 -> Additional ROW | D10: ='Step 2B Sufficient Space'!E64 -> Shared Use Path | E10: ='Step 2B Sufficient Space'!F64 -> Sidewalk | F10: ='Step 2B Sufficient Space'!G64 -> Pedestrian buffer | G10: ='Step 2B Sufficient Space'!H64 -> Curb & Gutter | H10: ='Step 2B Sufficient Space'!I64 -> Curbside Parking | I10: ='Step 2B Sufficient Space'!J64 -> Two-way bike lane | J10: ='Step 2B Sufficient Space'!K64 -> Bike lane | K10: ='Step 2B Sufficient Space'!L64 -> Bike Separation | L10: ='Step 2B Sufficient Space'!M64 -> Floating Parking | M10: ='Step 2B Sufficient Space'!N64 -> Bus lane | N10: ='Step 2B Sufficient Space'!O64 -> Travel lane 1 | O10: ='Step 2B Sufficient Space'!P64 -> Travel lane 2 | P10: ='Step 2B Sufficient Space'!Q64 -> Roadway Width - No Centerline | Q10: ='Step 2B Sufficient Space'!R64 -> Center Bus Lane | R10: ='Step 2B Sufficient Space'!S64 -> Median | S10: ='Step 2B Sufficient Space'!T64 -> TWLTL | T10: ='Step 2B Sufficient Space'!U64 -> Travel lane 2 | U10: ='Step 2B Sufficient Space'!V64 -> Travel lane 1 | V10: ='Step 2B Sufficient Space'!W64 -> Bus lane | W10: ='Step 2B Sufficient Space'!X64 -> Floating Parking | X10: ='Step 2B Sufficient Space'!Y64 -> Bike Separation | Y10: ='Step 2B Sufficient Space'!Z64 -> Bike lane | Z10: ='Step 2B Sufficient Space'!AA64 -> Two-way bike lane | AA10: ='Step 2B Sufficient Space'!AB64 -> Curbside Parking | AB10: ='Step 2B Sufficient Space'!AC64 -> Curb & Gutter | AC10: ='Step 2B Sufficient Space'!AD64 -> Pedestrian buffer | AD10: ='Step 2B Sufficient Space'!AE64 -> Sidewalk | AE10: ='Step 2B Sufficient Space'!AF64 -> Shared Use Path | AF10: ='Step 2B Sufficient Space'!AG64 -> Additional ROW
B11: Included? | C11: ='Step 2B Sufficient Space'!D65 -> 0 | D11: ='Step 2B Sufficient Space'!E65 -> 0 | E11: ='Step 2B Sufficient Space'!F65 -> 0 | F11: ='Step 2B Sufficient Space'!G65 -> 0 | G11: ='Step 2B Sufficient Space'!H65 -> 0 | H11: ='Step 2B Sufficient Space'!I65 -> 0 | I11: ='Step 2B Sufficient Space'!J65 -> 0 | J11: ='Step 2B Sufficient Space'!K65 -> 0 | K11: ='Step 2B Sufficient Space'!L65 -> 0 | L11: ='Step 2B Sufficient Space'!M65 -> 0 | M11: ='Step 2B Sufficient Space'!N65 -> 0 | N11: ='Step 2B Sufficient Space'!O65 -> 0 | O11: ='Step 2B Sufficient Space'!P65 -> 0 | P11: ='Step 2B Sufficient Space'!Q65 -> 0 | Q11: ='Step 2B Sufficient Space'!R65 -> 0 | R11: ='Step 2B Sufficient Space'!S65 -> 0 | S11: ='Step 2B Sufficient Space'!T65 -> 0 | T11: ='Step 2B Sufficient Space'!U65 -> 0 | U11: ='Step 2B Sufficient Space'!V65 -> 0 | V11: ='Step 2B Sufficient Space'!W65 -> 0 | W11: ='Step 2B Sufficient Space'!X65 -> 0 | X11: ='Step 2B Sufficient Space'!Y65 -> 0 | Y11: ='Step 2B Sufficient Space'!Z65 -> 0 | Z11: ='Step 2B Sufficient Space'!AA65 -> 0 | AA11: ='Step 2B Sufficient Space'!AB65 -> 0 | AB11: ='Step 2B Sufficient Space'!AC65 -> 0 | AC11: ='Step 2B Sufficient Space'!AD65 -> 0 | AD11: ='Step 2B Sufficient Space'!AE65 -> 0 | AE11: ='Step 2B Sufficient Space'!AF65 -> 0 | AF11: ='Step 2B Sufficient Space'!AG65 -> 0
B12: Current Dimension | C12: ='Step 2B Sufficient Space'!D66 -> 0 | D12: ='Step 2B Sufficient Space'!E66 -> 0 | E12: ='Step 2B Sufficient Space'!F66 -> 0 | F12: ='Step 2B Sufficient Space'!G66 -> 0 | G12: ='Step 2B Sufficient Space'!H66 -> 0 | H12: ='Step 2B Sufficient Space'!I66 -> 0 | I12: ='Step 2B Sufficient Space'!J66 -> 0 | J12: ='Step 2B Sufficient Space'!K66 -> 0 | K12: ='Step 2B Sufficient Space'!L66 -> 0 | L12: ='Step 2B Sufficient Space'!M66 -> 0 | M12: ='Step 2B Sufficient Space'!N66 -> 0 | N12: ='Step 2B Sufficient Space'!O66 -> 0 | O12: ='Step 2B Sufficient Space'!P66 -> 0 | P12: ='Step 2B Sufficient Space'!Q66 -> 0 | Q12: ='Step 2B Sufficient Space'!R66 -> 0 | R12: ='Step 2B Sufficient Space'!S66 -> 0 | S12: ='Step 2B Sufficient Space'!T66 -> 0 | T12: ='Step 2B Sufficient Space'!U66 -> 0 | U12: ='Step 2B Sufficient Space'!V66 -> 0 | V12: ='Step 2B Sufficient Space'!W66 -> 0 | W12: ='Step 2B Sufficient Space'!X66 -> 0 | X12: ='Step 2B Sufficient Space'!Y66 -> 0 | Y12: ='Step 2B Sufficient Space'!Z66 -> 0 | Z12: ='Step 2B Sufficient Space'!AA66 -> 0 | AA12: ='Step 2B Sufficient Space'!AB66 -> 0 | AB12: ='Step 2B Sufficient Space'!AC66 -> 0 | AC12: ='Step 2B Sufficient Space'!AD66 -> 0 | AD12: ='Step 2B Sufficient Space'!AE66 -> 0 | AE12: ='Step 2B Sufficient Space'!AF66 -> 0 | AF12: ='Step 2B Sufficient Space'!AG66 -> 0
B13: Total ROW: | C13: =SUM(C12:AF12) -> 0
B16: Question | C16: Response/Input Value
B17: PROJECT INFORMATION - FROM USER INPUT
B18: Basic Project Information
B19: ='Step 1 User Input'!C30 -> Community | C19: ='Step 1 User Input'!D30 -> 0
B20: ='Step 1 User Input'!C31 -> Roadway name | C20: ='Step 1 User Input'!D31 -> 0
B21: ='Step 1 User Input'!C32 -> Project extents | C21: ='Step 1 User Input'!D32 -> 0
B22: ='Step 1 User Input'!C33 -> Project corridor length | C22: ='Step 1 User Input'!D33 -> 0
B23: Step 1: Scoping & Needs
B24: Project details
B25: ='Step 1 User Input'!C36 -> Type of project: Can you move curb lines? | C25: ='Step 1 User Input'!D36 -> 0
B26: ='Step 1 User Input'!C37 -> The curb-to-curb distance in feet: | C26: ='Step 1 User Input'!D37 -> 0
B27: ='Step 1 User Input'!C38 -> The available right-of-way in feet: | C27: ='Step 1 User Input'!D38 -> 0
B28: ='Step 1 User Input'!C39 -> What is the existing land use context? | C28: ='Step 1 User Input'!D39 -> 0
B29: ='Step 1 User Input'!C40 -> What is the planned land use context? | C29: ='Step 1 User Input'!D40 -> 0
B30: ='Step 1 User Input'!C41 -> What is the roadway's primary intended function? | C30: ='Step 1 User Input'!D41 -> 0
B31: ='Step 1 User Input'!C42 -> The road directionality: | C31: =IF(OR(P11="Y",AND(N11="Y",U11="Y")),"two-way","one-way") -> one-way
B32: ='Step 1 User Input'!C43 -> Number of lanes per direction: | C32: =IF(P11="Y","No Centerline",MAX(COUNTIF(M11:O11,"Y"),COUNTIF(T11:V11,"Y"))) -> 0
B33: ='Step 1 User Input'!C44 -> Presence of a median: | C33: =IF(Q11="Y","Yes","No") -> No
B34: ='Step 1 User Input'!C45 -> Width of the median: | C34: =Q12 -> 0
B35: ='Step 1 User Input'!C46 -> Presence of a Two-Way-Left-Turn Lane (TWLTL): | C35: =IF(R11="Y","Yes","No") -> No
B36: ='Step 1 User Input'!C47 -> Width of the TWLTL: | C36: =R12 -> 0
B37: ='Step 1 User Input'!C48 -> Is this a freight corridor? | C37: ='Step 1 User Input'!D48 -> 0
B38: ='Step 1 User Input'!C49 -> Is there heavy bus lane use on this corridor? | C38: ='Step 1 User Input'!D49 -> 0
B39: ='Step 1 User Input'!C50 -> What is the controlling downstream intersection type? | C39: ='Step 1 User Input'!D50 -> 0
B40: Existing conditions & data
B41: ='Step 1 User Input'!C52 -> What is the posted speed limit? | C41: ='Step 1 User Input'!D52 -> 0
B42: ='Step 1 User Input'!C53 -> What is the 85th percentile speed? (If known) | C42: =IF('Step 2B Sufficient Space'!E56="",'Step 1 User Input'!D53,'Step 2B Sufficient Space'!E56) -> 0
B43: ='Step 1 User Input'!C54 -> What is the average daily traffic?* | C43: =IF('Step 2B Sufficient Space'!E57="",'Step 1 User Input'!D54,'Step 2B Sufficient Space'!E57) -> 0
B44: ='Step 1 User Input'!C55 -> Is on-street parking present on the east/north side? | C44: =IF(OR(G11="Y",K11="Y"),"Y","N") -> N
B45: ='Step 1 User Input'!C56 -> Is on-street parking present on the west/south side? | C45: =IF(OR(V11="Y",Z11="Y"),"Y","N") -> N
B46: Project Goals
B47: ='Step 1 User Input'!C58 -> Safety | C47: ='Step 1 User Input'!D58 -> 0
B48: ='Step 1 User Input'!C59 -> Economic | C48: ='Step 1 User Input'!D59 -> 0
B49: ='Step 1 User Input'!C60 -> Environmental | C49: ='Step 1 User Input'!D60 -> 0
B50: ='Step 1 User Input'!C61 -> Social | C50: ='Step 1 User Input'!D61 -> 0
B51: ='Step 1 User Input'!C62 -> Mode Shift | C51: ='Step 1 User Input'!D62 -> 0
B52: Background planning - Please select the following for which relevant plans exist and pertain to this corridor.
B53: ='Step 1 User Input'!C64 -> Climate Action Plan | C53: ='Step 1 User Input'!D64 -> 0
B54: ='Step 1 User Input'!C65 -> Active Transportation Plan (Bike/Ped Plan) | C54: ='Step 1 User Input'!D65 -> 0
B55: ='Step 1 User Input'!C66 -> Long-Term Transit Service Plan | C55: ='Step 1 User Input'!D66 -> 0
B56: ='Step 1 User Input'!C67 -> Safety Action Plan | C56: ='Step 1 User Input'!D67 -> 0
B57: ='Step 1 User Input'!C68 -> Complete Streets Policy | C57: ='Step 1 User Input'!D68 -> 0
B58: ='Step 1 User Input'!C69 -> Vision Zero Policy | C58: ='Step 1 User Input'!D69 -> 0
B59: ='Step 1 User Input'!C70 -> Freight Corridor | C59: ='Step 1 User Input'!D70 -> 0
B62: Minimum Safe Facility Parameters Calculations
B63: Safe Parallel Facility? | C63: =IF('Step 2B Sufficient Space'!E58="Y","Y","N") -> N
B64: One-way/Two-way | C64: =C31 -> one-way
B65: SUP east/north | C65: =D11 -> 0
B66: SUP west/south | C66: =AE11 -> 0
B67: Two-Way bike lane east/north | C67: =I11 -> 0
B68: Two-Way bike lane west/south | C68: =Z11 -> 0
B69: Bike lane needed east/north | C69: =IF(J11="Y","Y",IF(OR(C63="Y",C65="Y",C67="Y",C68="Y"),"N",IF(AND(NOT(C74="No Centerline"),N11="Y"),"Y","N"))) -> 
B70: Bike lane needed west/south | C70: =IF(Y11="Y","Y",IF(OR(C63="Y",C66="Y",C67="Y",C68="Y"),"N",IF(AND(NOT(C74="No Centerline"),U11="Y"),"Y","N"))) -> 
B71: Number of lanes - Actual | C71: =C32 -> 0
B72: Number of lanes - Recommended | C72: =_xlfn.IFS(C32="No Centerline","No Centerline",C32=1,1,OR(C32=2,C32=3,C32=4),2) -> 
B73: Number of lanes - Recommended - formatted | C73: =_xlfn.IFS(C72="No Centerline","No Centerline",C72=1,"2x1",C72=2,"2x2") -> 
B74: Number of lanes - for bike lane lookup | C74: =_xlfn.IFS(C75<=20,IF(C72="No Centerline","No Centerline","No Centerline***"),AND(C75>20,C75<=25,C72="No Centerline"),IF(C83=1500,"No Centerline","2x1"),AND(C75>20,C75<=25,C72=1),IF(OR(C83=3000,C83=6000,C83=999999),"2x1","No Centerline***"),AND(C75>20,C75<=25,C72=2),_xlfn.IFS(C83=1500,"No Centerline***",OR(C83=3000,C83=6000),"2x1***",C83=999999,"2x2"),AND(C75>20,C75<=25,OR(C72=3,C72=4)),_xlfn.IFS(C83=1500,"No Centerline***",OR(C83=3000,C83=6000),"2x1***",C83=999999,"2x2***"),C75>25,"Any") -> 
B75: Vehicle Speed | C75: =IF(OR(C42="",C42=0),_xlfn.IFS($C$41<=20,20,AND($C$41>20,$C$41<=25),25,AND($C$41>25,$C$41<=30),30,AND($C$41>30,$C$41<=35),35,$C$41>=35,">35"),_xlfn.IFS($C$42<=20,20,AND($C$42>20,$C$42<=25),25,AND($C$42>25,$C$42<=30),30,AND($C$42>30,$C$42<=35),35,$C$42>=35,">35")) -> 20
B76: Curbside parking allowed? (east/north side) | C76: =IF(AND(OR(C67="Y",C69="Y"),OR(AND(C75>20,C75<=25,C83=999999),C75>25)),"N","Y") -> 
B77: Curbside parking allowed? (west/south side) | C77: =IF(AND(OR(C68="Y",C70="Y"),OR(,AND(C75>20,C75<=25,,C83=999999),C75>25)),"N","Y") -> 
B78: Curbside Parking Present? (east/north side) | C78: =IF(H11="Y","Y","N") -> N
B79: Curbside Parking Present? (west/south side) | C79: =IF(AA11="Y","Y","N") -> N
B80: Floating Parking Protects Bike Lane? (east/north side) | C80: =IF(L11="Y","Y","N") -> N
B81: Floating Parking Protects Bike Lane?(west/south side) | C81: =IF(W11="Y","Y","N") -> N
B82: ADT To Use | C82: =C43 -> 0
B83: Traffic Volumes (ADT) | C83: =IF(C64="two-way",_xlfn.IFS(C75<=20,_xlfn.IFS(C82<=2000,2000,AND(C82>2000,C82<=4000),4000,C82>4000,999999),AND(C75>20,C75<=25),_xlfn.IFS(C82<=1500,1500,AND(C82>1500,C82<=3000),3000,AND(C82>3000,C82<=6000),6000,C82>6000,999999),AND(C75>25,C75<=30),_xlfn.IFS(C82<=6000,6000,C82>6000,999999),AND(C75>30,C75<=35),999999,C75>35,999999),_xlfn.IFS(C75<=20,_xlfn.IFS(C82*2<=2000,2000,AND(C82*2>2000,C82*2<=4000),4000,C82*2>4000,999999),AND(C75>20,C75<=25),_xlfn.IFS(C82*2<=1500,1500,AND(C82*2>1500,C82*2<=3000),3000,AND(C82*2>3000,C82*2<=6000),6000,C82*2>6000,999999),AND(C75>25,C75<=30),_xlfn.IFS(C82*2<=6000,6000,C82*2>6000,999999),AND(C75>30,C75<=35),999999,C75>35,999999)) -> 2000
B84: Expected Pedestrian Volumes | C84: =VLOOKUP($C$29,selections!$Q$16:$S$21,3,FALSE) -> 
B87: Results
B88: Pedestrian
B89: Pedestrian Facility Width (east/north) | C89: =IF(C65="N",INDEX('main lookups'!A$1:Q$80,MATCH(_xlfn.CONCAT(C75,C84,C78),'main lookups'!$G$1:$G$73,0),14),0) -> 0
B90: Pedestrian Buffer Width (east/north) | C90: =IF(C65="N",INDEX('main lookups'!A$1:Q$80,MATCH(_xlfn.CONCAT(C75,C84,C78),'main lookups'!$G$1:$G$73,0),15),0) -> 0
B91: Pedestrian Facility Width (west/south) | C91: =IF(C66="N",INDEX('main lookups'!A$1:Q$80,MATCH(_xlfn.CONCAT(C75,C84,C79),'main lookups'!$G$1:$G$73,0),14),0) -> 0
B92: Pedestrian Buffer Width (west/south) | C92: =IF(C66="N",INDEX('main lookups'!A$1:Q$80,MATCH(_xlfn.CONCAT(C75,C84,C79),'main lookups'!$G$1:$G$73,0),15),0) -> 0
B93: SUP Buffer Width (east/north) | C93: =IF(C65="Y",INDEX('main lookups'!A$1:Q$80,MATCH(_xlfn.CONCAT(C75,C84,C78),'main lookups'!$G$1:$G$73,0),15),0) -> 0
B94: SUP Buffer Width (west/north) | C94: =IF(C66="Y",INDEX('main lookups'!A$1:Q$80,MATCH(_xlfn.CONCAT(C75,C84,C79),'main lookups'!$G$1:$G$73,0),15),0) -> 0
B96: Bicycle
B97: Two-Way Bicycle Lane Width (east/north) | C97: =IF(C67="Y",VLOOKUP("Two-Way bike lane",'ancillary lookups'!$F$14:$G$16,2,FALSE),0) -> 0
B98: Two-Way Bicycle Buffer (east/north) | C98: =IF(C67="N",0,MAX(_xlfn.IFS(AND(C67="Y",C80="Y"),VLOOKUP("Separation, Parking",'ancillary lookups'!F14:G16,2,FALSE),AND(C67="Y",C80="N"),VLOOKUP("Separation, No Parking",'ancillary lookups'!F14:G16,2,FALSE)),C101)) -> 
B99: Bicycle Facility Type (east/north) | C99: =IF(C69="Y",IFERROR(INDEX('main lookups'!A$1:Q$80,MATCH(_xlfn.CONCAT(C75,C83,SUBSTITUTE(C74,"***",""),C80),'main lookups'!$H$1:$H$73,0),10),"None"),"None") -> 
B100: Bicycle Lane Width (east/north) | C100: =IF(C99="None",0,INDEX('main lookups'!A$1:Q$80,MATCH(_xlfn.CONCAT(C75,C83,SUBSTITUTE(C74,"***",""),C80),'main lookups'!$H$1:$H$73,0),11)) -> 
B101: Bicycle Buffer (east/north) | C101: =IF(C99="None",0,INDEX('main lookups'!A$1:Q$80,MATCH(_xlfn.CONCAT(C75,C83,SUBSTITUTE(C74,"***",""),C80),'main lookups'!$H$1:$H$73,0),12)) -> 
B102: Two-Way Bicycle Lane Width (east/north) | C102: =IF(C68="Y",VLOOKUP("Two-Way bike lane",'ancillary lookups'!$F$14:$G$16,2,FALSE),0) -> 0
B103: Two-Way Bicycle Buffer (east/north) | C103: =IF(C68="N",0,MAX(_xlfn.IFS(AND(C68="Y",C81="Y"),VLOOKUP("Separation, Parking",'ancillary lookups'!F14:G16,2,FALSE),AND(C68="Y",C81="N"),VLOOKUP("Separation, No Parking",'ancillary lookups'!F14:G16,2,FALSE)),C106)) -> 
B104: Bicycle Facility Type (east/north) | C104: =IF(C70="Y",IFERROR(INDEX('main lookups'!A$1:Q$80,MATCH(_xlfn.CONCAT(C75,C83,SUBSTITUTE(C74,"***",""),C81),'main lookups'!$H$1:$H$73,0),10),"None"),"None") -> 
B105: Bicycle Lane Width (west/south) | C105: =IF(C104="None",0,INDEX('main lookups'!A$1:Q$80,MATCH(_xlfn.CONCAT(C75,C83,SUBSTITUTE(C74,"***",""),C81),'main lookups'!$H$1:$H$73,0),11)) -> 
B106: Bicycle Buffer (west/south) | C106: =IF(C104="None",0,INDEX('main lookups'!A$1:Q$80,MATCH(_xlfn.CONCAT(C75,C83,SUBSTITUTE(C74,"***",""),C81),'main lookups'!$H$1:$H$73,0),12)) -> 
B107: Total Bicycle | C107: =SUM(C100,C101,C105,C106) -> 
B109: Vehicle Lane Width
B110: Roadway Width - No Centerline | C110: =IF(C71="No Centerline",INDEX('ancillary lookups'!$B$27:$C$34,MATCH("Mixed traffic",'ancillary lookups'!$B$27:$B$34,0),2),0) -> 0
B111: Vehicle Lane 1 Width | C111: =_xlfn.IFS(C37="Yes",VLOOKUP("Vehicle Lane - Freight",'ancillary lookups'!F3:$G$9,2,FALSE),C38="Yes",VLOOKUP("Vehicle Lane - Bus",'ancillary lookups'!F3:$G$9,2,FALSE),AND(C37="No",C38="No"),VLOOKUP(B112,'ancillary lookups'!F3:$G$9,2,FALSE)) -> 
B112: Vehicle Lane Width | C112: =VLOOKUP(B112,'ancillary lookups'!F3:$G$9,2,FALSE) -> 10
B113: Parking Lane Width (east/north) | C113: =IF(OR(C80="Y",C78="Y"),INDEX('main lookups'!A$1:Q$80,MATCH(_xlfn.CONCAT(C75,C83,C74,"Y"),'main lookups'!$H$1:$H$73,0),17),0) -> 0
B114: Parking Lane Width (west/south) | C114: =IF(OR(C79="Y",C81="Y"),INDEX('main lookups'!A$1:Q$80,MATCH(_xlfn.CONCAT(C75,C83,C74,"Y"),'main lookups'!$H$1:$H$73,0),17),0) -> 0
B115: Bus Lane Width | C115: =INDEX('ancillary lookups'!$F$2:$G$9,MATCH("Bus Lane",'ancillary lookups'!$F$2:$F$9,0),2) -> 11
B116: TWLT Width | C116: =INDEX('ancillary lookups'!$F$2:$G$9,MATCH("TWLTL",'ancillary lookups'!$F$2:$F$9,0),2) -> 11
B117: Median Width | C117: =C34 -> 0
B118: Shared Use Path | C118: =INDEX('ancillary lookups'!$F$2:$G$9,MATCH("Shared Use Path",'ancillary lookups'!$F$2:$F$9,0),2) -> 10
B120: Minimum Safe Dimension | C120: =SUM(C130:AF130) -> 0
B121: Available ROW | C121: =C27 -> 0
B122: Available Room | C122: =C121-C120 -> 0
B123: Does minimum safe dimension fit? | C123: =IF(C120<=C27,_xlfn.CONCAT("Yes, the minimum safe dimension fits within the ROW. There is an additional ",C27-C120," feet remaining."),_xlfn.CONCAT("No, the minimum safe dimension does not fit within the ROW. There is ",C120-C27," feet missing.")) -> Yes, the minimum safe dimension fits within the ROW. There is an additional 0 feet remaining.
B125: Minimum Cross Section
B126: Automatically populated based on minimum safe dimension.
B128: Cross-section Elements | C128: Waterline | D128: Shared Use Path | E128: Sidewalk | F128: Pedestrian buffer | G128: Curb & Gutter | H128: Curbside Parking | I128: Two-way bike lane | J128: Bike lane | K128: Separation | L128: Floating Parking | M128: Bus lane | N128: Travel lane | O128: Travel lane 2 | P128: Roadway Width - No Centerline | Q128: Center Bus Lane | R128: Median | S128: TWLTL | T128: Travel lane 2 | U128: Travel lane 1 | V128: Bus lane | W128: Floating Parking | X128: Separation | Y128: Bike lane | Z128: Two-way bike lane | AA128: Curbside Parking | AB128: Curb & Gutter | AC128: Pedestrian buffer | AD128: Sidewalk | AE128: Shared Use Path | AF128: Waterline
B129: Included? | C129: =IF(C11=0,"N",C11) -> N | D129: =IF(C65=0,"N",C65) -> N | E129: =IF(C65="N","Y","N") -> N | F129: Y | G129: =IF(G11=0,"N",G11) -> N | H129: =IFERROR(IF(C76="Y",C78,"N"),"N") -> N | I129: =IF(I11="Y","Y",IF(C67=0,"N",C67)) -> N | J129: =IFERROR(IF(J11="Y","Y",C69),"N") -> N | K129: =IF(OR(I129="Y",J129="Y"),"Y",IFERROR(IF(OR(C67="Y",C69="Y"),"Y","N"),"N")) -> N | L129: =C80 -> N | M129: =IF(M11=0,"N",M11) -> N | N129: =IFERROR(IF(C72="No Centerline","N",N11),"N") -> N | O129: =IFERROR(IF(OR(C72="No Centerline",C72=1),"N",O11),"N") -> N | P129: =IF(P11=0,"N",P11) -> N | Q129: =IF(Q11=0,"N",Q11) -> N | R129: =IF(R11=0,"N",R11) -> N | S129: =IF(S11=0,"N",S11) -> N | T129: =IFERROR(IF(OR(C72="No Centerline",C72=1),"N",T11),"N") -> N | U129: =IFERROR(IF(C72="No Centerline","N",U11),"N") -> N | V129: =IF(V11=0,"N",V11) -> N | W129: =C81 -> N | X129: =IF(OR(Y129="Y",Z129="Y"),"Y",IFERROR(IF(OR(C68="Y",C70="Y"),"Y","N"),"N")) -> N | Y129: =IFERROR(IF(Y11="Y","Y",C70),"N") -> N | Z129: =IF(Z11="Y","Y",IF(C68=0,"N",C68)) -> N | AA129: =IFERROR(IF(C77="Y",C79,"N"),"N") -> N | AB129: =IF(AB11=0,"N",AB11) -> N | AC129: Y | AD129: =IF(C66="N","Y","N") -> N | AE129: =IF(C66=0,"N",C66) -> N | AF129: =IF(AF11=0,"N",AF11) -> N
B130: Minimum Dimension | C130: ="-" -> - | D130: =IF(D129="Y",C118,"-") -> - | E130: =IF(E129="Y",C89,"-") -> - | F130: =IF(C65="Y",IF(C93=0,"-",C93),IF(F129="Y",IF(C90=0,"-",C90),"-")) -> - | G130: ="-" -> - | H130: =IFERROR(_xlfn.IFS(H129="Y",C113,C76="N","Not allowed",H129="N","-"),"-") -> - | I130: =IF(I129="Y",C97,"-") -> - | J130: =IF(J129="Y",C100,"-") -> - | K130: =IF(K129="Y",IF(C98>0,C98,IF(C101>0,C101,"-")),"-") -> - | L130: =IF(L129="Y",C113,"-") -> - | M130: =IF(M129="Y",C115,"-") -> - | N130: =IF(N129="Y",$C$111,"-") -> - | O130: =IF(O129="Y",$C$112,"-") -> - | P130: =IF(P129="Y",$C$110,"-") -> - | Q130: =IF(Q129="Y",C115,"-") -> - | R130: ="-" -> - | S130: =IF(S129="Y",C116,"-") -> - | T130: =IF(T129="Y",$C$112,"-") -> - | U130: =IF(U129="Y",$C$111,"-") -> - | V130: =IF(V129="Y",C115,"-") -> - | W130: =IF(W129="Y",C114,"-") -> - | X130: =IF(X129="Y",IF(C103>0,C103,C106),"-") -> - | Y130: =IF(Y129="Y",C105,"-") -> - | Z130: =IF(Z129="Y",C102,"-") -> - | AA130: =IFERROR(_xlfn.IFS(AA129="Y",C114,C77="N","Not allowed",AA129="N","-"),"-") -> - | AB130: ="-" -> - | AC130: =IF(C66="Y",IF(C94=0,"-",C94),IF(AC129="Y",IF(C92=0,"-",C92),"-")) -> - | AD130: =IF(AD129="Y",C91,"-") -> - | AE130: =IF(AE129="Y",C118,"-") -> - | AF130: ="-" -> -
B131: Total ROW: | C131: =SUM(C130:AF130) -> 0

Sheet Calculation D
B1: Step 2A or 2B | C1: =IF('Step 2A Insufficient Space'!C79="Instructions: Minimum dimension met. Skip Step 2B. Proceed to results in Steps 3A-3D",1,0) -> 0 | E1: ADT | F1: =IF('Calculation D'!C1=1,IF(ISBLANK('Step 2A Insufficient Space'!E55),'Step 1 User Input'!D54,'Step 2A Insufficient Space'!E55),IF(ISBLANK('Step 2B Sufficient Space'!E57),'Step 1 User Input'!D54,'Step 2B Sufficient Space'!E57)) -> 0
B2: Existing Cross Section
B4: Cross-section Elements | C4: Additional ROW | D4: Shared Use Path | E4: Sidewalk | F4: Pedestrian buffer | G4: Curb & Gutter | H4: Curbside Parking | I4: Two-way bike lane | J4: Bike lane | K4: Bike Seperation | L4: Floating Parking | M4: Bus lane | N4: Travel lane | O4: Travel lane 2 | P4: Travel lane 3 | Q4: Travel lane 4 | R4: Roadway Width - No Centerline | S4: Center Bus Lane | T4: Median | U4: TWLTL | V4: Travel lane 4 | W4: Travel lane 3 | X4: Travel lane 2 | Y4: Travel lane 1 | Z4: Bus lane | AA4: Floating Parking | AB4: Bike Seperation | AC4: Bike lane | AD4: Two-way bike lane | AE4: Curbside Parking | AF4: Curb & Gutter | AG4: Pedestrian buffer | AH4: Sidewalk | AI4: Shared Use Path | AJ4: Additional ROW | AL4: SW | AN4: P | AO4: Bike | AR4: P | AS4: ↓ | AT4: ↓ | AU4: ↕ | AV4: M | AW4: TWLTL | AX4: ↑ | AY4: ↑ | AZ4: P | BC4: Bike | BD4: P | BF4: SW
B5: Included? | C5: =IF(ISBLANK('Step 1 User Input'!D18),"N",'Step 1 User Input'!D18) -> N | D5: =IF(ISBLANK('Step 1 User Input'!E18),"N",'Step 1 User Input'!E18) -> N | E5: =IF(ISBLANK('Step 1 User Input'!F18),"N",'Step 1 User Input'!F18) -> N | F5: =IF(ISBLANK('Step 1 User Input'!G18),"N",'Step 1 User Input'!G18) -> N | G5: =IF(ISBLANK('Step 1 User Input'!H18),"N",'Step 1 User Input'!H18) -> N | H5: =IF(ISBLANK('Step 1 User Input'!I18),"N",'Step 1 User Input'!I18) -> N | I5: =IF(ISBLANK('Step 1 User Input'!J18),"N",'Step 1 User Input'!J18) -> N | J5: =IF(ISBLANK('Step 1 User Input'!K18),"N",'Step 1 User Input'!K18) -> N | K5: =IF(ISBLANK('Step 1 User Input'!L18),"N",'Step 1 User Input'!L18) -> N | L5: =IF(ISBLANK('Step 1 User Input'!M18),"N",'Step 1 User Input'!M18) -> N | M5: =IF(ISBLANK('Step 1 User Input'!N18),"N",'Step 1 User Input'!N18) -> N | N5: =IF(ISBLANK('Step 1 User Input'!O18),"N",'Step 1 User Input'!O18) -> N | O5: =IF(ISBLANK('Step 1 User Input'!P18),"N",'Step 1 User Input'!P18) -> N | P5: =IF(ISBLANK('Step 1 User Input'!Q18),"N",'Step 1 User Input'!Q18) -> N | Q5: =IF(ISBLANK('Step 1 User Input'!R18),"N",'Step 1 User Input'!R18) -> N | R5: =IF(ISBLANK('Step 1 User Input'!S18),"N",'Step 1 User Input'!S18) -> N | S5: =IF(ISBLANK('Step 1 User Input'!T18),"N",'Step 1 User Input'!T18) -> N | T5: =IF(ISBLANK('Step 1 User Input'!U18),"N",'Step 1 User Input'!U18) -> N | U5: =IF(ISBLANK('Step 1 User Input'!V18),"N",'Step 1 User Input'!V18) -> N | V5: =IF(ISBLANK('Step 1 User Input'!W18),"N",'Step 1 User Input'!W18) -> N | W5: =IF(ISBLANK('Step 1 User Input'!X18),"N",'Step 1 User Input'!X18) -> N | X5: =IF(ISBLANK('Step 1 User Input'!Y18),"N",'Step 1 User Input'!Y18) -> N | Y5: =IF(ISBLANK('Step 1 User Input'!Z18),"N",'Step 1 User Input'!Z18) -> N | Z5: =IF(ISBLANK('Step 1 User Input'!AA18),"N",'Step 1 User Input'!AA18) -> N | AA5: =IF(ISBLANK('Step 1 User Input'!AB18),"N",'Step 1 User Input'!AB18) -> N | AB5: =IF(ISBLANK('Step 1 User Input'!AC18),"N",'Step 1 User Input'!AC18) -> N | AC5: =IF(ISBLANK('Step 1 User Input'!AD18),"N",'Step 1 User Input'!AD18) -> N | AD5: =IF(ISBLANK('Step 1 User Input'!AE18),"N",'Step 1 User Input'!AE18) -> N | AE5: =IF(ISBLANK('Step 1 User Input'!AF18),"N",'Step 1 User Input'!AF18) -> N | AF5: =IF(ISBLANK('Step 1 User Input'!AG18),"N",'Step 1 User Input'!AG18) -> N | AG5: =IF(ISBLANK('Step 1 User Input'!AH18),"N",'Step 1 User Input'!AH18) -> N | AH5: =IF(ISBLANK('Step 1 User Input'!AI18),"N",'Step 1 User Input'!AI18) -> N | AI5: =IF(ISBLANK('Step 1 User Input'!AJ18),"N",'Step 1 User Input'!AJ18) -> N | AJ5: =IF(ISBLANK('Step 1 User Input'!AK18),"N",'Step 1 User Input'!AK18) -> N
B6: Current Dimension | C6: ='Step 1 User Input'!D19 -> 0 | D6: ='Step 1 User Input'!E19 -> 0 | E6: ='Step 1 User Input'!F19 -> 0 | F6: ='Step 1 User Input'!G19 -> 0 | G6: ='Step 1 User Input'!H19 -> 0 | H6: ='Step 1 User Input'!I19 -> 0 | I6: ='Step 1 User Input'!J19 -> 0 | J6: ='Step 1 User Input'!K19 -> 0 | K6: ='Step 1 User Input'!L19 -> 0 | L6: ='Step 1 User Input'!M19 -> 0 | M6: ='Step 1 User Input'!N19 -> 0 | N6: ='Step 1 User Input'!O19 -> 0 | O6: ='Step 1 User Input'!P19 -> 0 | P6: ='Step 1 User Input'!Q19 -> 0 | Q6: ='Step 1 User Input'!R19 -> 0 | R6: ='Step 1 User Input'!S19 -> 0 | S6: ='Step 1 User Input'!T19 -> 0 | T6: ='Step 1 User Input'!U19 -> 0 | U6: ='Step 1 User Input'!V19 -> 0 | V6: ='Step 1 User Input'!W19 -> 0 | W6: ='Step 1 User Input'!X19 -> 0 | X6: ='Step 1 User Input'!Y19 -> 0 | Y6: ='Step 1 User Input'!Z19 -> 0 | Z6: ='Step 1 User Input'!AA19 -> 0 | AA6: ='Step 1 User Input'!AB19 -> 0 | AB6: ='Step 1 User Input'!AC19 -> 0 | AC6: ='Step 1 User Input'!AD19 -> 0 | AD6: ='Step 1 User Input'!AE19 -> 0 | AE6: ='Step 1 User Input'!AF19 -> 0 | AF6: ='Step 1 User Input'!AG19 -> 0 | AG6: ='Step 1 User Input'!AH19 -> 0 | AH6: ='Step 1 User Input'!AI19 -> 0 | AI6: ='Step 1 User Input'!AJ19 -> 0 | AJ6: ='Step 1 User Input'!AK19 -> 0
K7: =COUNTIF(M5:Q5,"=Y")+COUNTIF(V5:Z5,"=Y") -> 0
B8: New Cross Section | J8: lanes for ops | K8: =IF('Step 1 User Input'!D50="Roundabout","Roundabout",IFERROR(_xlfn.IFS(AND(N5="Y",Y5="Y",O5="N",X5="N",U5="N"),"Signal - Two Lane",AND(N5="Y",O5="Y",X5="Y",Y5="Y"),"Signal - Four Lane",AND(N5="Y",Y5="Y",O5="N",X5="N",U5="N"),"Signal - Three Lane"),"Signal - Two Lane")) -> Signal - Two Lane
B10: Cross-section Elements | C10: Additional ROW | D10: Shared Use Path | E10: Sidewalk | F10: Pedestrian buffer | G10: Curb & Gutter | H10: Curbside Parking | I10: Two-way bike lane | J10: Bike lane | K10: Bike Seperation | L10: Floating Parking | M10: Bus lane | N10: Travel lane | O10: Travel lane 2 | R10: Roadway Width - No Centerline | S10: Center Bus Lane | T10: Median | U10: TWLTL | X10: Travel lane 2 | Y10: Travel lane 1 | Z10: Bus lane | AA10: Floating Parking | AB10: Bike Seperation | AC10: Bike lane | AD10: Two-way bike lane | AE10: Curbside Parking | AF10: Curb & Gutter | AG10: Pedestrian buffer | AH10: Sidewalk | AI10: Shared Use Path | AJ10: Additional ROW
B11: Included? | C11: =IF($C$1=1,IF(ISBLANK('Step 2A Insufficient Space'!D64),"N",'Step 2A Insufficient Space'!D64),IF(ISBLANK('Step 2B Sufficient Space'!D66),"N",'Step 2B Sufficient Space'!D66)) -> N | D11: =IF($C$1=1,IF(ISBLANK('Step 2A Insufficient Space'!E64),"N",'Step 2A Insufficient Space'!E64),IF(ISBLANK('Step 2B Sufficient Space'!E65),"N",'Step 2B Sufficient Space'!E65)) -> N | E11: =IF($C$1=1,IF(ISBLANK('Step 2A Insufficient Space'!F64),"N",'Step 2A Insufficient Space'!F64),IF(ISBLANK('Step 2B Sufficient Space'!F65),"N",'Step 2B Sufficient Space'!F65)) -> N | F11: =IF($C$1=1,IF(ISBLANK('Step 2A Insufficient Space'!G64),"N",'Step 2A Insufficient Space'!G64),IF(ISBLANK('Step 2B Sufficient Space'!G65),"N",'Step 2B Sufficient Space'!G65)) -> N | G11: =IF($C$1=1,IF(ISBLANK('Step 2A Insufficient Space'!H64),"N",'Step 2A Insufficient Space'!H64),IF(ISBLANK('Step 2B Sufficient Space'!H65),"N",'Step 2B Sufficient Space'!H65)) -> N | H11: =IF($C$1=1,IF(ISBLANK('Step 2A Insufficient Space'!I64),"N",'Step 2A Insufficient Space'!I64),IF(ISBLANK('Step 2B Sufficient Space'!I65),"N",'Step 2B Sufficient Space'!I65)) -> N | I11: =IF($C$1=1,IF(ISBLANK('Step 2A Insufficient Space'!J64),"N",'Step 2A Insufficient Space'!J64),IF(ISBLANK('Step 2B Sufficient Space'!J65),"N",'Step 2B Sufficient Space'!J65)) -> N | J11: =IF($C$1=1,IF(ISBLANK('Step 2A Insufficient Space'!K64),"N",'Step 2A Insufficient Space'!K64),IF(ISBLANK('Step 2B Sufficient Space'!K65),"N",'Step 2B Sufficient Space'!K65)) -> N | K11: =IF($C$1=1,IF(ISBLANK('Step 2A Insufficient Space'!L64),"N",'Step 2A Insufficient Space'!L64),IF(ISBLANK('Step 2B Sufficient Space'!L65),"N",'Step 2B Sufficient Space'!L65)) -> N | L11: =IF($C$1=1,IF(ISBLANK('Step 2A Insufficient Space'!M64),"N",'Step 2A Insufficient Space'!M64),IF(ISBLANK('Step 2B Sufficient Space'!M65),"N",'Step 2B Sufficient Space'!M65)) -> N | M11: =IF($C$1=1,IF(ISBLANK('Step 2A Insufficient Space'!N64),"N",'Step 2A Insufficient Space'!N64),IF(ISBLANK('Step 2B Sufficient Space'!N65),"N",'Step 2B Sufficient Space'!N65)) -> N | N11: =IF($C$1=1,IF(ISBLANK('Step 2A Insufficient Space'!O64),"N",'Step 2A Insufficient Space'!O64),IF(ISBLANK('Step 2B Sufficient Space'!O65),"N",'Step 2B Sufficient Space'!O65)) -> N | O11: =IF($C$1=1,IF(ISBLANK('Step 2A Insufficient Space'!P64),"N",'Step 2A Insufficient Space'!P64),IF(ISBLANK('Step 2B Sufficient Space'!P65),"N",'Step 2B Sufficient Space'!P65)) -> N | R11: =IF($C$1=1,IF(ISBLANK('Step 2A Insufficient Space'!Q64),"N",'Step 2A Insufficient Space'!Q64),IF(ISBLANK('Step 2B Sufficient Space'!Q65),"N",'Step 2B Sufficient Space'!Q65)) -> N | S11: =IF($C$1=1,IF(ISBLANK('Step 2A Insufficient Space'!R64),"N",'Step 2A Insufficient Space'!R64),IF(ISBLANK('Step 2B Sufficient Space'!R65),"N",'Step 2B Sufficient Space'!R65)) -> N | T11: =IF($C$1=1,IF(ISBLANK('Step 2A Insufficient Space'!S64),"N",'Step 2A Insufficient Space'!S64),IF(ISBLANK('Step 2B Sufficient Space'!S65),"N",'Step 2B Sufficient Space'!S65)) -> N | U11: =IF($C$1=1,IF(ISBLANK('Step 2A Insufficient Space'!T64),"N",'Step 2A Insufficient Space'!T64),IF(ISBLANK('Step 2B Sufficient Space'!T65),"N",'Step 2B Sufficient Space'!T65)) -> N | X11: =IF($C$1=1,IF(ISBLANK('Step 2A Insufficient Space'!U64),"N",'Step 2A Insufficient Space'!U64),IF(ISBLANK('Step 2B Sufficient Space'!U65),"N",'Step 2B Sufficient Space'!U65)) -> N | Y11: =IF($C$1=1,IF(ISBLANK('Step 2A Insufficient Space'!V64),"N",'Step 2A Insufficient Space'!V64),IF(ISBLANK('Step 2B Sufficient Space'!V65),"N",'Step 2B Sufficient Space'!V65)) -> N | Z11: =IF($C$1=1,IF(ISBLANK('Step 2A Insufficient Space'!W64),"N",'Step 2A Insufficient Space'!W64),IF(ISBLANK('Step 2B Sufficient Space'!W65),"N",'Step 2B Sufficient Space'!W65)) -> N | AA11: =IF($C$1=1,IF(ISBLANK('Step 2A Insufficient Space'!X64),"N",'Step 2A Insufficient Space'!X64),IF(ISBLANK('Step 2B Sufficient Space'!X65),"N",'Step 2B Sufficient Space'!X65)) -> N | AB11: =IF($C$1=1,IF(ISBLANK('Step 2A Insufficient Space'!Y64),"N",'Step 2A Insufficient Space'!Y64),IF(ISBLANK('Step 2B Sufficient Space'!Y65),"N",'Step 2B Sufficient Space'!Y65)) -> N | AC11: =IF($C$1=1,IF(ISBLANK('Step 2A Insufficient Space'!Z64),"N",'Step 2A Insufficient Space'!Z64),IF(ISBLANK('Step 2B Sufficient Space'!Z65),"N",'Step 2B Sufficient Space'!Z65)) -> N | AD11: =IF($C$1=1,IF(ISBLANK('Step 2A Insufficient Space'!AA64),"N",'Step 2A Insufficient Space'!AA64),IF(ISBLANK('Step 2B Sufficient Space'!AA65),"N",'Step 2B Sufficient Space'!AA65)) -> N | AE11: =IF($C$1=1,IF(ISBLANK('Step 2A Insufficient Space'!AB64),"N",'Step 2A Insufficient Space'!AB64),IF(ISBLANK('Step 2B Sufficient Space'!AB65),"N",'Step 2B Sufficient Space'!AB65)) -> N | AF11: =IF($C$1=1,IF(ISBLANK('Step 2A Insufficient Space'!AC64),"N",'Step 2A Insufficient Space'!AC64),IF(ISBLANK('Step 2B Sufficient Space'!AC65),"N",'Step 2B Sufficient Space'!AC65)) -> N | AG11: =IF($C$1=1,IF(ISBLANK('Step 2A Insufficient Space'!AD64),"N",'Step 2A Insufficient Space'!AD64),IF(ISBLANK('Step 2B Sufficient Space'!AD65),"N",'Step 2B Sufficient Space'!AD65)) -> N | AH11: =IF($C$1=1,IF(ISBLANK('Step 2A Insufficient Space'!AE64),"N",'Step 2A Insufficient Space'!AE64),IF(ISBLANK('Step 2B Sufficient Space'!AE65),"N",'Step 2B Sufficient Space'!AE65)) -> N | AI11: =IF($C$1=1,IF(ISBLANK('Step 2A Insufficient Space'!AF64),"N",'Step 2A Insufficient Space'!AF64),IF(ISBLANK('Step 2B Sufficient Space'!AF65),"N",'Step 2B Sufficient Space'!AF65)) -> N | AJ11: =IF($C$1=1,IF(ISBLANK('Step 2A Insufficient Space'!AG64),"N",'Step 2A Insufficient Space'!AG64),IF(ISBLANK('Step 2B Sufficient Space'!AG65),"N",'Step 2B Sufficient Space'!AG65)) -> N
B12: Current Dimension | C12: =IF($C$1=1,'Step 2A Insufficient Space'!D65,'Step 2B Sufficient Space'!D66) -> 0 | D12: =IF($C$1=1,'Step 2A Insufficient Space'!E65,'Step 2B Sufficient Space'!E66) -> 0 | E12: =IF($C$1=1,'Step 2A Insufficient Space'!F65,'Step 2B Sufficient Space'!F66) -> 0 | F12: =IF($C$1=1,'Step 2A Insufficient Space'!G65,'Step 2B Sufficient Space'!G66) -> 0 | G12: =IF($C$1=1,'Step 2A Insufficient Space'!H65,'Step 2B Sufficient Space'!H66) -> 0 | H12: =IF($C$1=1,'Step 2A Insufficient Space'!I65,'Step 2B Sufficient Space'!I66) -> 0 | I12: =IF($C$1=1,'Step 2A Insufficient Space'!J65,'Step 2B Sufficient Space'!J66) -> 0 | J12: =IF($C$1=1,'Step 2A Insufficient Space'!K65,'Step 2B Sufficient Space'!K66) -> 0 | K12: =IF($C$1=1,'Step 2A Insufficient Space'!L65,'Step 2B Sufficient Space'!L66) -> 0 | L12: =IF($C$1=1,'Step 2A Insufficient Space'!M65,'Step 2B Sufficient Space'!M66) -> 0 | M12: =IF($C$1=1,'Step 2A Insufficient Space'!N65,'Step 2B Sufficient Space'!N66) -> 0 | N12: =IF($C$1=1,'Step 2A Insufficient Space'!O65,'Step 2B Sufficient Space'!O66) -> 0 | O12: =IF($C$1=1,'Step 2A Insufficient Space'!P65,'Step 2B Sufficient Space'!P66) -> 0 | R12: =IF($C$1=1,'Step 2A Insufficient Space'!Q65,'Step 2B Sufficient Space'!Q66) -> 0 | S12: =IF($C$1=1,'Step 2A Insufficient Space'!R65,'Step 2B Sufficient Space'!R66) -> 0 | T12: =IF($C$1=1,'Step 2A Insufficient Space'!S65,'Step 2B Sufficient Space'!S66) -> 0 | U12: =IF($C$1=1,'Step 2A Insufficient Space'!T65,'Step 2B Sufficient Space'!T66) -> 0 | X12: =IF($C$1=1,'Step 2A Insufficient Space'!U65,'Step 2B Sufficient Space'!U66) -> 0 | Y12: =IF($C$1=1,'Step 2A Insufficient Space'!V65,'Step 2B Sufficient Space'!V66) -> 0 | Z12: =IF($C$1=1,'Step 2A Insufficient Space'!W65,'Step 2B Sufficient Space'!W66) -> 0 | AA12: =IF($C$1=1,'Step 2A Insufficient Space'!X65,'Step 2B Sufficient Space'!X66) -> 0 | AB12: =IF($C$1=1,'Step 2A Insufficient Space'!Y65,'Step 2B Sufficient Space'!Y66) -> 0 | AC12: =IF($C$1=1,'Step 2A Insufficient Space'!Z65,'Step 2B Sufficient Space'!Z66) -> 0 | AD12: =IF($C$1=1,'Step 2A Insufficient Space'!AA65,'Step 2B Sufficient Space'!AA66) -> 0 | AE12: =IF($C$1=1,'Step 2A Insufficient Space'!AB65,'Step 2B Sufficient Space'!AB66) -> 0 | AF12: =IF($C$1=1,'Step 2A Insufficient Space'!AC65,'Step 2B Sufficient Space'!AC66) -> 0 | AG12: =IF($C$1=1,'Step 2A Insufficient Space'!AD65,'Step 2B Sufficient Space'!AD66) -> 0 | AH12: =IF($C$1=1,'Step 2A Insufficient Space'!AE65,'Step 2B Sufficient Space'!AE66) -> 0 | AI12: =IF($C$1=1,'Step 2A Insufficient Space'!AF65,'Step 2B Sufficient Space'!AF66) -> 0 | AJ12: =IF($C$1=1,'Step 2A Insufficient Space'!AG65,'Step 2B Sufficient Space'!AG66) -> 0
B13: Minimum Dimension | C13: =IF($C$1=1,'Step 2A Insufficient Space'!D66,'Step 2B Sufficient Space'!D67) -> - | D13: =IF($C$1=1,'Step 2A Insufficient Space'!E66,'Step 2B Sufficient Space'!E67) -> - | E13: =IF($C$1=1,'Step 2A Insufficient Space'!F66,'Step 2B Sufficient Space'!F67) -> - | F13: =IF($C$1=1,'Step 2A Insufficient Space'!G66,'Step 2B Sufficient Space'!G67) -> - | G13: =IF($C$1=1,'Step 2A Insufficient Space'!H66,'Step 2B Sufficient Space'!H67) -> - | H13: =IF($C$1=1,'Step 2A Insufficient Space'!I66,'Step 2B Sufficient Space'!I67) -> - | I13: =IF($C$1=1,'Step 2A Insufficient Space'!J66,'Step 2B Sufficient Space'!J67) -> - | J13: =IF($C$1=1,'Step 2A Insufficient Space'!K66,'Step 2B Sufficient Space'!K67) -> - | K13: =IF($C$1=1,'Step 2A Insufficient Space'!L66,'Step 2B Sufficient Space'!L67) -> - | L13: =IF($C$1=1,'Step 2A Insufficient Space'!M66,'Step 2B Sufficient Space'!M67) -> - | M13: =IF($C$1=1,'Step 2A Insufficient Space'!N66,'Step 2B Sufficient Space'!N67) -> - | N13: =IF($C$1=1,'Step 2A Insufficient Space'!O66,'Step 2B Sufficient Space'!O67) -> - | O13: =IF($C$1=1,'Step 2A Insufficient Space'!P66,'Step 2B Sufficient Space'!P67) -> - | R13: =IF($C$1=1,'Step 2A Insufficient Space'!Q66,'Step 2B Sufficient Space'!Q67) -> - | S13: =IF($C$1=1,'Step 2A Insufficient Space'!R66,'Step 2B Sufficient Space'!R67) -> - | T13: =IF($C$1=1,'Step 2A Insufficient Space'!S66,'Step 2B Sufficient Space'!S67) -> - | U13: =IF($C$1=1,'Step 2A Insufficient Space'!T66,'Step 2B Sufficient Space'!T67) -> - | X13: =IF($C$1=1,'Step 2A Insufficient Space'!U66,'Step 2B Sufficient Space'!U67) -> - | Y13: =IF($C$1=1,'Step 2A Insufficient Space'!V66,'Step 2B Sufficient Space'!V67) -> - | Z13: =IF($C$1=1,'Step 2A Insufficient Space'!W66,'Step 2B Sufficient Space'!W67) -> - | AA13: =IF($C$1=1,'Step 2A Insufficient Space'!X66,'Step 2B Sufficient Space'!X67) -> - | AB13: =IF($C$1=1,'Step 2A Insufficient Space'!Y66,'Step 2B Sufficient Space'!Y67) -> - | AC13: =IF($C$1=1,'Step 2A Insufficient Space'!Z66,'Step 2B Sufficient Space'!Z67) -> - | AD13: =IF($C$1=1,'Step 2A Insufficient Space'!AA66,'Step 2B Sufficient Space'!AA67) -> - | AE13: =IF($C$1=1,'Step 2A Insufficient Space'!AB66,'Step 2B Sufficient Space'!AB67) -> - | AF13: =IF($C$1=1,'Step 2A Insufficient Space'!AC66,'Step 2B Sufficient Space'!AC67) -> - | AG13: =IF($C$1=1,'Step 2A Insufficient Space'!AD66,'Step 2B Sufficient Space'!AD67) -> - | AH13: =IF($C$1=1,'Step 2A Insufficient Space'!AE66,'Step 2B Sufficient Space'!AE67) -> - | AI13: =IF($C$1=1,'Step 2A Insufficient Space'!AF66,'Step 2B Sufficient Space'!AF67) -> - | AJ13: =IF($C$1=1,'Step 2A Insufficient Space'!AG66,'Step 2B Sufficient Space'!AG67) -> -
K14: =COUNTIF(M11:O11,"=Y")+COUNTIF(X11:Z11,"=Y") -> 0
B15: Cross Section Width | C15: =IF($C$1=1,'Step 2A Insufficient Space'!D71,'Step 2B Sufficient Space'!D72) -> 0 | J15: lanes for ops | K15: =IF('Step 1 User Input'!D50="Roundabout","Roundabout",IFERROR(_xlfn.IFS(AND(N11="Y",Y11="Y",O11="N",X11="N",U11="N"),"Signal - Two Lane",AND(N11="Y",O11="Y",X11="Y",Y11="Y"),"Signal - Four Lane",AND(N11="Y",Y11="Y",O11="N",X11="N",U11="Y"),"Signal - Three Lane"),"Signal - Two Lane")) -> Signal - Two Lane
B16: Available ROW | C16: =IF($C$1=1,'Step 2A Insufficient Space'!D72,'Step 2B Sufficient Space'!D73) -> 0
B17: Excess Space | C17: =IF($C$1=1,'Step 2A Insufficient Space'!D73,'Step 2B Sufficient Space'!D74) -> 0
B20: Bus lanes | C20: Remove | D20: =_xlfn.CONCAT(B20," - ",C20) -> Bus lanes - Remove | E20: Remove bus lanes | F20: =IF(OR(AND(M5="Y",M11="N"),AND(Z5="Y",Z11="N"),AND(S5="Y",S11="N")),"Y","N") -> N
B21: Bus lanes | C21: Narrow | D21: =_xlfn.CONCAT(B21," - ",C21) -> Bus lanes - Narrow | E21: Narrow bus lanes | F21: =IF(OR(AND(M5="Y",M11="Y",M12<M6),AND(S5="Y",S11="Y",S12<S6),AND(Z5="Y",Z11="Y",Z12<S6)),"Y","N") -> N
B22: Bus lanes | C22: Widen | D22: Bus lanes - Widen | E22: Widen bus lanes | F22: =IF(OR(AND(M11="Y",M5="Y",M12>M6),AND(S11="Y",S5="Y",S12>S6),AND(Z11="Y",Z5="Y",Z12>Z6)),"Y","N") -> N
B23: Bus lanes | C23: Add | D23: Bus lanes - Add | E23: Add bus lanes | F23: =IF(OR(AND(M5="N",M11="Y"),AND(S5="N",S11="Y"),AND(Z5="N",Z11="Y")),"Y","N") -> N
B24: Bike Lanes | C24: Remove | D24: Bike Lanes - Remove | E24: Remove bike lanes | F24: =IF(OR(AND(J5="Y",J11="N",AND(I11="N",AD11="N")),AND(AC5="Y",AC11="N",AND(I11="N",AD11="N")),AND(OR(I5="Y",AD5="Y"),OR(AND(I11="N",AD11="N",AC11="N",J11="N")))),"Y","N") -> N
B25: Bike Lanes | C25: Narrow | D25: Bike Lanes - Narrow | E25: Narrow bike lanes | F25: =IF(OR(AND(I5="Y",I11="Y",I12<I6),AND(AD5="Y",AD11="Y",AD12<AD6),AND(J5="Y",J11="Y",J12<J6),AND(K5="Y",K11="Y",K12<K6),AND(AB5="Y",AC11="Y",AC12<AC6),AND(AC5="Y",AB11="Y",AB12<AB6)),"Y","N") -> N
B26: Bike Lanes | C26: Widen | D26: Bike Lanes - Widen | E26: Widen bike lanes | F26: =IF(OR(AND(I5="Y",I11="Y",I12>I6),AND(AD5="Y",AD11="Y",AD12>AD6),AND(J5="Y",J11="Y",J12>J6),AND(AC5="Y",AC11="Y",AC12>AC6)),"Y","N") -> N
B27: Bike Lanes | C27: Add | D27: Bike Lanes - Add | E27: Add bike lanes | F27: =IF(OR(AND(I5="N",AD5="N",J5="N",J11="Y"),AND(I5="N",AD5="N",J5="N",AC5="N",AC11="Y"),AND(I5="N",AC5="N",J5="N",AD5="N",I11="Y"),AND(I5="N",AC5="N",AD5="N",AC11="Y"),AND(I5="N",J5="N",AC5="N",AD5="N",AD11="Y")),"Y","N") -> N
B28: Pedestrian Infrastructure | C28: Remove | D28: Pedestrian Infrastructure - Remove | E28: Remove pedestrian infrastructure | F28: =IF(OR(AND(E5="Y",E11="N"),AND(F5="Y",F11="N"),AND(AH5="Y",AH11="N"),AND(AG5="Y",AG11="N")),"Y","N") -> N
B29: Pedestrian Infrastructure | C29: Narrow | D29: Pedestrian Infrastructure - Narrow | E29: Narrow pedestrian infrastructure | F29: =IF(OR(AND(E5="Y",E11="Y",(E12+F12)<(E6+F6)),AND(AG5="Y",AG11="Y",(AG12+AH12)<(AG6+AH6))),"Y","N") -> N
B30: Pedestrian Infrastructure | C30: Widen | D30: Pedestrian Infrastructure - Widen | E30: Widen pedestrian infrastructure | F30: =IF(OR(AND(E5="Y",E11="Y",(E12+F12)>(E6+F6)),AND(AG5="Y",AG11="Y",(AG12+AH12)>(AG6+AH6))),"Y","N") -> N
B31: Pedestrian Infrastructure | C31: Add | D31: Pedestrian Infrastructure - Add | E31: Add pedestrian infrastructure | F31: =IF(OR(AND(E5="N",E11="Y"),AND(AH5="N",AH11="Y")),"Y","N") -> N
B32: Vehicle Travel Lanes | C32: Remove | D32: Vehicle Travel Lanes - Remove | E32: Remove | F32: =IF(K14<K7,"Y","N") -> N
B33: Vehicle Travel Lanes | C33: Narrow | D33: Vehicle Travel Lanes - Narrow | E33: Narrow | F33: =IF(OR(AND(N5="Y",N11="Y",N12<N6),AND(O5="Y",O11="Y",O12<O6),AND(X5="Y",X11="Y",X12<X6),AND(Y5="Y",Y11="Y",Y12<Y6)),"Y","N") -> N
B34: Vehicle Travel Lanes | C34: Widen | D34: Vehicle Travel Lanes - Widen | E34: Widen | F34: =IF(OR(AND(N5="Y",N11="Y",N12>N6),AND(O5="Y",O11="Y",O12>O6),AND(X5="Y",X11="Y",X12>X6),AND(Y5="Y",Y11="Y",Y12>Y6)),"Y","N") -> N
B35: Vehicle Travel Lanes | C35: Add | D35: Vehicle Travel Lanes - Add | E35: Add | F35: =IF(OR(K14>K7,AND(R5="Y",R11="N")),"Y","N") -> N
B36: Vehicle Travel Lanes | C36: One to Two Way Conversion | D36: Vehicle Travel Lanes - One to Two Way Conversion | E36: One to Two Way Conversion | F36: =IF(OR(AND(N5="N",N11="Y",R11="N"),AND(Y5="N",Y11="Y",R11="N")),"Y","N") -> N
B37: Vehicle Travel Lanes | C37: Remove TWLT | D37: Vehicle Travel Lanes - Remove TWLT | E37: Remove TWLT | F37: =IF(AND(U5="Y",U11="N"),"Y","N") -> N
B38: Vehicle Travel Lanes | C38: Add TWLT | D38: Vehicle Travel Lanes - Add TWLT | E38: Add TWLT | F38: =IF(AND(U5="N",U11="Y"),"Y","N") -> N
B39: Median | C39: Remove | D39: Median - Remove | E39: Remove median | F39: =IF(AND(T5="Y",T11="N"),"Y","N") -> N
B40: Median | C40: Narrow | D40: Median - Narrow | E40: Narrow | F40: =IF(AND(T5="Y",T11="Y",T12<T6),"Y","N") -> N
B41: Median | C41: Widen | D41: Median - Widen | E41: Widen median | F41: =IF(AND(T5="Y",T11="Y",T12>T6),"Y","N") -> N
B42: Median | C42: Add | D42: Median - Add | E42: Add median | F42: =IF(AND(T5="N",T11="Y"),"Y","N") -> N
B43: Parking | C43: Remove | D43: Parking - Remove | E43: Remove parking | F43: =IF(OR(AND(AA5="Y",AA11="N"),AND(AE5="Y",AE11="N"),AND(H5="Y",H11="N"),AND(L5="Y",L11="N")),"Y","N") -> N
B44: Parking | C44: Narrow | D44: Parking - Narrow | E44: Narrow parking | F44: =IF(OR(AND(AA5="Y",AA11="Y",AA12<AA6),AND(AE5="Y",AE11="Y",AE12<AE6),AND(H5="Y",H11="Y",H12<H6),AND(L5="Y",L11="Y",L12<L6)),"Y","N") -> N
B45: Parking | C45: Widen | D45: Parking - Widen | E45: Widen parking | F45: =IF(OR(AND(AA5="Y",AA11="Y",AA12>AA6),AND(AE5="Y",AE11="Y",AE12>AE6),AND(H5="Y",H11="Y",H12>H6),AND(L5="Y",L11="Y",L12>L6)),"Y","N") -> N
B46: Parking | C46: Add | D46: Parking - Add | E46: Add parking | F46: =IF(OR(AND(AA5="N",AA11="Y"),AND(AE5="N",AE11="Y"),AND(H5="N",H11="Y"),AND(L5="N",L11="Y")),"Y","N") -> N

Sheet Calculation E
B1: Existing Cross Section
B4: AADT | C4: ='Step 3D Int Capacity Summary'!C21 -> 0 | F4: Signal - Four Lane | G4: Signal - Two Lane | H4: Signal - Three Lane | I4: Roundabout
B5: d | C5: ='Step 3D Int Capacity Summary'!C23 -> 0 | E5: s | F5: 1800 | G5: 1800 | H5: 1800 | I5: 1250
B6: k | C6: ='Step 3D Int Capacity Summary'!C24 -> 0 | E6: g/C | F6: 0.4 | G6: 0.4 | H6: 0.4
E7: # lanes | F7: 2 | G7: 1 | H7: 1.5 | I7: 1 | K7: Optimum v/c | L7: 0.6
B8: peak hour | C8: =C4*C5*C6 -> 0 | D8: veh/h
E9: CAP | F9: =F5*F6*F7 -> 1440 | G9: =G5*G6*G7 -> 720 | H9: =H5*H6*H7 -> 1080 | I9: =I5 -> 1250 | AJ9: Type | AK9: ='Step 1 User Input'!D41 -> 0
E10: Lane Capacity | F10: =F9/F7 -> 720 | G10: =G9/G7 -> 720 | H10: =H9/H7 -> 720 | I10: =I9/I7 -> 1250 | AR10: Distributor | AS10: Access
C11: Time | D11: % of Daily Traffic | E11: Hourly Demand | F11: Capacity | L11: d/c | Q11: Time | R11: 16-Hour Efficiency | W11: Time | X11: 16-Hour Excess Capacity | AC11: Time | AD11: Hours below Capacity | AJ11: Hour Starting | AK11: Functional Class
F12: Signal - Four Lane | G12: Signal Two-Lane | H12: Signal Three-Lane | I12: Roundabout | L12: Signal - Four Lane | M12: Signal Two-Lane | N12: Signal Three-Lane | O12: Roundabout | R12: Signal - Four Lane | S12: Signal Two-Lane | T12: Signal Three-Lane | U12: Roundabout | X12: Signal - Four Lane | Y12: Signal Two-Lane | Z12: Signal Three-Lane | AA12: Roundabout | AD12: Signal - Four Lane | AE12: Signal Two-Lane | AF12: Signal Three-Lane | AG12: Roundabout | AJ12: Hour Starting | AK12: Rural Interstate | AL12: Rural Principal Arterial | AM12: Rural Minor Arterial | AN12: Rural Major Collector | AO12: Rural Minor Collector | AP12: Urban Interstate | AQ12: Urban Other Frwy & Expwy | AR12: Urban Principal Arterial | AS12: Urban Minor Arterial
C13: 00:00:00 | D13: =IF($AK$9=$AR$10,$AR13,$AS13) -> 0.01 | E13: =D13*$C$4*$C$5 -> 0 | F13: =F$9 -> 1440 | G13: =$G$9 -> 720 | H13: =$H$9 -> 1080 | I13: =$I$9 -> 1250 | L13: =$E13/F$9 -> 0 | M13: 0 | N13: 0 | O13: =$E13/I$5 -> 0 | Q13: 00:00:00 | R13: =IF(L13>$L$7,1,0) -> 0 | S13: =IF(M13>$L$7,1,0) -> 0 | T13: 0 | U13: 0 | W13: 00:00:00 | X13: =IF($E13<F13,F13-$E13,0) -> 1440 | Y13: =IF($E13<G13,G13-$E13,0) -> 720 | Z13: 1080 | AA13: 1250 | AC13: 00:00:00 | AD13: =IF($E13<F13,1,0) -> 1 | AE13: 1 | AF13: 1 | AG13: 1 | AJ13: 00:00:00 | AK13: 0.011 | AL13: 0.009 | AM13: 0.012 | AN13: 0.012 | AO13: 0.008 | AP13: 0.011 | AQ13: 0.01 | AR13: 0.01 | AS13: 0.01
C14: 01:00:00 | D14: =IF($AK$9=$AR$10,$AR14,$AS14) -> 0.006 | E14: =D14*$C$4*$C$5 -> 0 | F14: =F$9 -> 1440 | G14: =$G$9 -> 720 | H14: =$H$9 -> 1080 | I14: =$I$9 -> 1250 | L14: 0 | M14: 0 | N14: 0 | O14: 0 | Q14: 01:00:00 | R14: =IF(L14>$L$7,1,0) -> 0 | S14: 0 | T14: 0 | U14: 0 | W14: 01:00:00 | X14: 1440 | Y14: 720 | Z14: 1080 | AA14: 1250 | AC14: 01:00:00 | AD14: 1 | AE14: 1 | AF14: 1 | AG14: 1 | AJ14: 01:00:00 | AK14: 0.008 | AL14: 0.005 | AM14: 0.006 | AN14: 0.005 | AO14: 0.004 | AP14: 0.006 | AQ14: 0.006 | AR14: 0.006 | AS14: 0.006
C15: 02:00:00 | D15: =IF($AK$9=$AR$10,$AR15,$AS15) -> 0.004 | E15: 0 | F15: 1440 | G15: 720 | H15: 1080 | I15: 1250 | L15: 0 | M15: 0 | N15: 0 | O15: 0 | Q15: 02:00:00 | R15: =IF(L15>$L$7,1,0) -> 0 | S15: 0 | T15: 0 | U15: 0 | W15: 02:00:00 | X15: 1440 | Y15: 720 | Z15: 1080 | AA15: 1250 | AC15: 02:00:00 | AD15: 1 | AE15: 1 | AF15: 1 | AG15: 1 | AJ15: 02:00:00 | AK15: 0.006 | AL15: 0.003 | AM15: 0.003 | AN15: 0.004 | AO15: 0.001 | AP15: 0.005 | AQ15: 0.004 | AR15: 0.005 | AS15: 0.004
C16: 03:00:00 | D16: 0.002 | E16: 0 | F16: 1440 | G16: 720 | H16: 1080 | I16: 1250 | L16: 0 | M16: 0 | N16: 0 | O16: 0 | Q16: 03:00:00 | R16: 0 | S16: 0 | T16: 0 | U16: 0 | W16: 03:00:00 | X16: 1440 | Y16: 720 | Z16: 1080 | AA16: 1250 | AC16: 03:00:00 | AD16: 1 | AE16: 1 | AF16: 1 | AG16: 1 | AJ16: 03:00:00 | AK16: 0.006 | AL16: 0.003 | AM16: 0.003 | AN16: 0.003 | AO16: 0.001 | AP16: 0.004 | AQ16: 0.004 | AR16: 0.005 | AS16: 0.002
C17: 04:00:00 | D17: 0.002 | E17: 0 | F17: 1440 | G17: 720 | H17: 1080 | I17: 1250 | L17: 0 | M17: 0 | N17: 0 | O17: 0 | Q17: 04:00:00 | R17: 0 | S17: 0 | T17: 0 | U17: 0 | W17: 04:00:00 | X17: 1440 | Y17: 720 | Z17: 1080 | AA17: 1250 | AC17: 04:00:00 | AD17: 1 | AE17: 1 | AF17: 1 | AG17: 1 | AJ17: 04:00:00 | AK17: 0.008 | AL17: 0.006 | AM17: 0.005 | AN17: 0.004 | AO17: 0.001 | AP17: 0.007 | AQ17: 0.007 | AR17: 0.009 | AS17: 0.002
C18: 05:00:00 | D18: 0.007 | E18: 0 | F18: 1440 | G18: 720 | H18: 1080 | I18: 1250 | L18: 0 | M18: 0 | N18: 0 | O18: =$E18/I$5 -> 0 | Q18: 05:00:00 | R18: 0 | S18: 0 | T18: 0 | U18: 0 | W18: 05:00:00 | X18: 1440 | Y18: 720 | Z18: 1080 | AA18: 1250 | AC18: 05:00:00 | AD18: 1 | AE18: 1 | AF18: 1 | AG18: 1 | AJ18: 05:00:00 | AK18: 0.015 | AL18: 0.019 | AM18: 0.018 | AN18: 0.01 | AO18: 0.006 | AP18: 0.022 | AQ18: 0.025 | AR18: 0.03 | AS18: 0.007
C19: 06:00:00 | D19: 0.023 | E19: 0 | F19: 1440 | G19: 720 | H19: 1080 | I19: 1250 | L19: 0 | M19: 0 | N19: 0 | O19: =$E19/I$5 -> 0 | Q19: 06:00:00 | R19: 0 | S19: 0 | T19: 0 | U19: 0 | W19: 06:00:00 | X19: 1440 | Y19: 720 | Z19: 1080 | AA19: 1250 | AC19: 06:00:00 | AD19: 1 | AE19: 1 | AF19: 1 | AG19: 1 | AJ19: 06:00:00 | AK19: 0.034 | AL19: 0.048 | AM19: 0.045 | AN19: 0.028 | AO19: 0.02 | AP19: 0.051 | AQ19: 0.058 | AR19: 0.054 | AS19: 0.023
C20: 07:00:00 | D20: 0.067 | E20: 0 | F20: 1440 | G20: 720 | H20: 1080 | I20: 1250 | L20: 0 | M20: 0 | N20: 0 | O20: =$E20/I$5 -> 0 | Q20: 07:00:00 | R20: 0 | S20: 0 | T20: 0 | U20: 0 | W20: 07:00:00 | X20: 1440 | Y20: 720 | Z20: 1080 | AA20: 1250 | AC20: 07:00:00 | AD20: 1 | AE20: 1 | AF20: 1 | AG20: 1 | AJ20: 07:00:00 | AK20: 0.056 | AL20: 0.072 | AM20: 0.072 | AN20: 0.063 | AO20: 0.034 | AP20: 0.069 | AQ20: 0.077 | AR20: 0.071 | AS20: 0.067
C21: 08:00:00 | D21: 0.066 | E21: 0 | F21: 1440 | G21: 720 | H21: 1080 | I21: 1250 | L21: 0 | M21: 0 | N21: 0 | O21: 0 | Q21: 08:00:00 | R21: 0 | S21: 0 | T21: 0 | U21: 0 | W21: 08:00:00 | X21: 1440 | Y21: 720 | Z21: 1080 | AA21: 1250 | AC21: 08:00:00 | AD21: 1 | AE21: 1 | AF21: 1 | AG21: 1 | AJ21: 08:00:00 | AK21: 0.054 | AL21: 0.059 | AM21: 0.06 | AN21: 0.06 | AO21: 0.035 | AP21: 0.055 | AQ21: 0.053 | AR21: 0.058 | AS21: 0.066
C22: 09:00:00 | D22: 0.054 | E22: 0 | F22: 1440 | G22: 720 | H22: 1080 | I22: 1250 | L22: 0 | M22: 0 | N22: 0 | O22: 0 | Q22: 09:00:00 | R22: 0 | S22: 0 | T22: 0 | U22: 0 | W22: 09:00:00 | X22: 1440 | Y22: 720 | Z22: 1080 | AA22: 1250 | AC22: 09:00:00 | AD22: 1 | AE22: 1 | AF22: 1 | AG22: 1 | AJ22: 09:00:00 | AK22: 0.053 | AL22: 0.05 | AM22: 0.044 | AN22: 0.049 | AO22: 0.037 | AP22: 0.046 | AQ22: 0.037 | AR22: 0.047 | AS22: 0.054
C23: 10:00:00 | D23: 0.051 | E23: 0 | F23: 1440 | G23: 720 | H23: 1080 | I23: 1250 | L23: 0 | M23: 0 | N23: 0 | O23: 0 | Q23: 10:00:00 | R23: 0 | S23: 0 | T23: 0 | U23: 0 | W23: 10:00:00 | X23: 1440 | Y23: 720 | Z23: 1080 | AA23: 1250 | AC23: 10:00:00 | AD23: 1 | AE23: 1 | AF23: 1 | AG23: 1 | AJ23: 10:00:00 | AK23: 0.056 | AL23: 0.051 | AM23: 0.044 | AN23: 0.048 | AO23: 0.047 | AP23: 0.046 | AQ23: 0.037 | AR23: 0.046 | AS23: 0.051
C24: 11:00:00 | D24: 0.056 | E24: 0 | F24: 1440 | G24: 720 | H24: 1080 | I24: 1250 | L24: 0 | M24: 0 | N24: 0 | O24: 0 | Q24: 11:00:00 | R24: 0 | S24: 0 | T24: 0 | U24: 0 | W24: 11:00:00 | X24: 1440 | Y24: 720 | Z24: 1080 | AA24: 1250 | AC24: 11:00:00 | AD24: 1 | AE24: 1 | AF24: 1 | AG24: 1 | AJ24: 11:00:00 | AK24: 0.058 | AL24: 0.053 | AM24: 0.046 | AN24: 0.05 | AO24: 0.056 | AP24: 0.049 | AQ24: 0.042 | AR24: 0.05 | AS24: 0.056
C25: 12:00:00 | D25: 0.071 | E25: 0 | F25: 1440 | G25: 720 | H25: 1080 | I25: 1250 | L25: 0 | M25: 0 | N25: 0 | O25: 0 | Q25: 12:00:00 | R25: 0 | S25: 0 | T25: 0 | U25: 0 | W25: 12:00:00 | X25: 1440 | Y25: 720 | Z25: 1080 | AA25: 1250 | AC25: 12:00:00 | AD25: 1 | AE25: 1 | AF25: 1 | AG25: 1 | AJ25: 12:00:00 | AK25: 0.06 | AL25: 0.054 | AM25: 0.049 | AN25: 0.052 | AO25: 0.055 | AP25: 0.052 | AQ25: 0.045 | AR25: 0.053 | AS25: 0.071
C26: 13:00:00 | D26: 0.066 | E26: 0 | F26: 1440 | G26: 720 | H26: 1080 | I26: 1250 | L26: 0 | M26: 0 | N26: 0 | O26: 0 | Q26: 13:00:00 | R26: 0 | S26: 0 | T26: 0 | U26: 0 | W26: 13:00:00 | X26: 1440 | Y26: 720 | Z26: 1080 | AA26: 1250 | AC26: 13:00:00 | AD26: 1 | AE26: 1 | AF26: 1 | AG26: 1 | AJ26: 13:00:00 | AK26: 0.062 | AL26: 0.057 | AM26: 0.05 | AN26: 0.055 | AO26: 0.056 | AP26: 0.053 | AQ26: 0.045 | AR26: 0.054 | AS26: 0.066
C27: 14:00:00 | D27: 0.06 | E27: 0 | F27: 1440 | G27: 720 | H27: 1080 | I27: 1250 | L27: 0 | M27: 0 | N27: 0 | O27: 0 | Q27: 14:00:00 | R27: 0 | S27: 0 | T27: 0 | U27: 0 | W27: 14:00:00 | X27: 1440 | Y27: 720 | Z27: 1080 | AA27: 1250 | AC27: 14:00:00 | AD27: 1 | AE27: 1 | AF27: 1 | AG27: 1 | AJ27: 14:00:00 | AK27: 0.067 | AL27: 0.064 | AM27: 0.056 | AN27: 0.062 | AO27: 0.061 | AP27: 0.06 | AQ27: 0.057 | AR27: 0.063 | AS27: 0.06
C28: 15:00:00 | D28: 0.062 | E28: 0 | F28: 1440 | G28: 720 | H28: 1080 | I28: 1250 | L28: 0 | M28: 0 | N28: 0 | O28: 0 | Q28: 15:00:00 | R28: 0 | S28: 0 | T28: 0 | U28: 0 | W28: 15:00:00 | X28: 1440 | Y28: 720 | Z28: 1080 | AA28: 1250 | AC28: 15:00:00 | AD28: 1 | AE28: 1 | AF28: 1 | AG28: 1 | AJ28: 15:00:00 | AK28: 0.074 | AL28: 0.075 | AM28: 0.08 | AN28: 0.071 | AO28: 0.071 | AP28: 0.07 | AQ28: 0.073 | AR28: 0.069 | AS28: 0.062
C29: 16:00:00 | D29: 0.063 | E29: 0 | F29: 1440 | G29: 720 | H29: 1080 | I29: 1250 | L29: 0 | M29: 0 | N29: 0 | O29: 0 | Q29: 16:00:00 | R29: 0 | S29: 0 | T29: 0 | U29: 0 | W29: 16:00:00 | X29: 1440 | Y29: 720 | Z29: 1080 | AA29: 1250 | AC29: 16:00:00 | AD29: 1 | AE29: 1 | AF29: 1 | AG29: 1 | AJ29: 16:00:00 | AK29: 0.08 | AL29: 0.083 | AM29: 0.088 | AN29: 0.083 | AO29: 0.08 | AP29: 0.077 | AQ29: 0.087 | AR29: 0.072 | AS29: 0.063
C30: 17:00:00 | D30: 0.075 | E30: 0 | F30: 1440 | G30: 720 | H30: 1080 | I30: 1250 | L30: 0 | M30: 0 | N30: 0 | O30: 0 | Q30: 17:00:00 | R30: 0 | S30: 0 | T30: 0 | U30: 0 | W30: 17:00:00 | X30: 1440 | Y30: 720 | Z30: 1080 | AA30: 1250 | AC30: 17:00:00 | AD30: 1 | AE30: 1 | AF30: 1 | AG30: 1 | AJ30: 17:00:00 | AK30: 0.077 | AL30: 0.083 | AM30: 0.089 | AN30: 0.093 | AO30: 0.107 | AP30: 0.081 | AQ30: 0.09 | AR30: 0.077 | AS30: 0.075
C31: 18:00:00 | D31: 0.07 | E31: 0 | F31: 1440 | G31: 720 | H31: 1080 | I31: 1250 | L31: 0 | M31: 0 | N31: 0 | O31: 0 | Q31: 18:00:00 | R31: 0 | S31: 0 | T31: 0 | U31: 0 | W31: 18:00:00 | X31: 1440 | Y31: 720 | Z31: 1080 | AA31: 1250 | AC31: 18:00:00 | AD31: 1 | AE31: 1 | AF31: 1 | AG31: 1 | AJ31: 18:00:00 | AK31: 0.06 | AL31: 0.062 | AM31: 0.059 | AN31: 0.072 | AO31: 0.085 | AP31: 0.065 | AQ31: 0.068 | AR31: 0.062 | AS31: 0.07
C32: 19:00:00 | D32: 0.053 | E32: 0 | F32: 1440 | G32: 720 | H32: 1080 | I32: 1250 | L32: 0 | M32: 0 | N32: 0 | O32: 0 | Q32: 19:00:00 | R32: 0 | S32: 0 | T32: 0 | U32: 0 | W32: 19:00:00 | X32: 1440 | Y32: 720 | Z32: 1080 | AA32: 1250 | AC32: 19:00:00 | AD32: 1 | AE32: 1 | AF32: 1 | AG32: 1 | AJ32: 19:00:00 | AK32: 0.045 | AL32: 0.043 | AM32: 0.048 | AN32: 0.049 | AO32: 0.066 | AP32: 0.049 | AQ32: 0.049 | AR32: 0.044 | AS32: 0.053
C33: 20:00:00 | D33: 0.044 | E33: 0 | F33: 1440 | G33: 720 | H33: 1080 | I33: 1250 | L33: 0 | M33: 0 | N33: 0 | O33: 0 | Q33: 20:00:00 | R33: 0 | S33: 0 | T33: 0 | U33: 0 | W33: 20:00:00 | X33: 1440 | Y33: 720 | Z33: 1080 | AA33: 1250 | AC33: 20:00:00 | AD33: 1 | AE33: 1 | AF33: 1 | AG33: 1 | AJ33: 20:00:00 | AK33: 0.036 | AL33: 0.034 | AM33: 0.036 | AN33: 0.04 | AO33: 0.06 | AP33: 0.039 | AQ33: 0.04 | AR33: 0.035 | AS33: 0.044
C34: 21:00:00 | D34: 0.035 | E34: 0 | F34: 1440 | G34: 720 | H34: 1080 | I34: 1250 | L34: 0 | M34: 0 | N34: 0 | O34: 0 | Q34: 21:00:00 | R34: 0 | S34: 0 | T34: 0 | U34: 0 | W34: 21:00:00 | X34: 1440 | Y34: 720 | Z34: 1080 | AA34: 1250 | AC34: 21:00:00 | AD34: 1 | AE34: 1 | AF34: 1 | AG34: 1 | AJ34: 21:00:00 | AK34: 0.031 | AL34: 0.03 | AM34: 0.031 | AN34: 0.039 | AO34: 0.049 | AP34: 0.036 | AQ34: 0.037 | AR34: 0.033 | AS34: 0.035
C35: 22:00:00 | D35: =IF($AK$9=$AR$10,$AR35,$AS35) -> 0.033 | E35: 0 | F35: 1440 | G35: 720 | H35: 1080 | I35: 1250 | L35: 0 | M35: 0 | N35: 0 | O35: 0 | Q35: 22:00:00 | R35: 0 | S35: 0 | T35: 0 | U35: 0 | W35: 22:00:00 | X35: 1440 | Y35: 720 | Z35: 1080 | AA35: 1250 | AC35: 22:00:00 | AD35: 1 | AE35: 1 | AF35: 1 | AG35: 1 | AJ35: 22:00:00 | AK35: 0.024 | AL35: 0.023 | AM35: 0.026 | AN35: 0.028 | AO35: 0.038 | AP35: 0.028 | AQ35: 0.029 | AR35: 0.026 | AS35: 0.033
C36: 23:00:00 | D36: 0.019 | E36: 0 | F36: 1440 | G36: 720 | H36: 1080 | I36: 1250 | L36: 0 | M36: 0 | N36: 0 | O36: 0 | Q36: 23:00:00 | R36: 0 | S36: 0 | T36: 0 | U36: 0 | W36: 23:00:00 | X36: 1440 | Y36: 720 | Z36: 1080 | AA36: 1250 | AC36: 23:00:00 | AD36: 1 | AE36: 1 | AF36: 1 | AG36: 1 | AJ36: 23:00:00 | AK36: 0.018 | AL36: 0.016 | AM36: 0.02 | AN36: 0.019 | AO36: 0.02 | AP36: 0.02 | AQ36: 0.019 | AR36: 0.021 | AS36: 0.019
AJ37: Total | AK37: 1 | AL37: 1 | AM37: 0.99 | AN37: 1 | AO37: 1 | AP37: 1 | AQ37: 1 | AR37: 1 | AS37: 1
B38: Vol Check | C38: =SUM(D13:D36) -> 0.999 | E38: Daily Capacity | F38: =SUM(F13:F36) -> 34560 | G38: =SUM(G13:G36) -> 17280 | H38: =SUM(H13:H36) -> 25920 | I38: =SUM(I13:I36) -> 30000 | K38: Max d/c | L38: =MAX(L13:L36) -> 0 | M38: =MAX(M13:M36) -> 0 | N38: =MAX(N13:N36) -> 0 | O38: =MAX(O13:O36) -> 0 | Q38: Sum | R38: =SUM(R18:R33)/16 -> 0 | S38: =SUM(S18:S33)/16 -> 0 | T38: 0 | U38: 0 | W38: Sum | X38: =SUM(X18:X33) -> 23040 | Y38: =SUM(Y18:Y33) -> 11520 | Z38: 17280 | AA38: 20000 | AC38: Sum | AD38: =SUM(AD13:AD36) -> 24 | AE38: =SUM(AE13:AE36) -> 24 | AF38: 24 | AG38: 24
X40: =X38/F10 -> 32 | Y40: =Y38/G10 -> 16 | Z40: =Z38/H10 -> 24 | AA40: =AA38/I10 -> 16
D67: Intersection Control | G67: Max Demand-to-Capacity d/c | H67: 16-hour V/C Efficiency | I67: 16-Hour Excess Capacity (lane hours) | J67: Total Hours below Capacity per Day | K67: Veh Safety | L67: Ped safety | M67: Bicyclist Safety
D68: Signal - Four-lane | G68: =L37 -> 0 | H68: =Q37 -> 0 | I68: =X40 -> 32 | J68: =AA37 -> 0 | K68: Low | L68: Low | M68: Low
D69: Signal - Two-Lane | G69: =M37 -> 0 | H69: =R37 -> 0 | I69: =Y40 -> 16 | J69: =AB37 -> 0 | K69: Low | L69: High | M69: High
D70: Signal - Three-Lane | G70: =N37 -> 0 | H70: =S37 -> 0 | I70: =Z40 -> 24 | J70: =AC37 -> 0 | K70: Medium | L70: Medium | M70: High
D71: Roundabout | G71: =O37 -> 0 | H71: =T37 -> 0 | I71: =AA40 -> 16 | J71: =AD37 -> 0 | K71: High | L71: High | M71: High

Sheet Calculation F
B1: Proposed Cross Section
B4: AADT | C4: ='Step 3D Int Capacity Summary'!G21 -> 0 | F4: Signal - Four Lane | G4: Signal - Two Lane | H4: Signal - Three Lane | I4: Roundabout
B5: d | C5: ='Step 3D Int Capacity Summary'!G23 -> 0 | E5: s | F5: 1800 | G5: 1800 | H5: 1800 | I5: 1250
B6: k | C6: ='Step 3D Int Capacity Summary'!G24 -> 0 | E6: g/C | F6: 0.4 | G6: 0.4 | H6: 0.4
E7: # lanes | F7: 2 | G7: 1 | H7: 1.5 | I7: 1 | K7: Optimum v/c | L7: 0.6
B8: peak hour | C8: =C4*C5*C6 -> 0 | D8: veh/h
E9: CAP | F9: =F5*F6*F7 -> 1440 | G9: =G5*G6*G7 -> 720 | H9: =H5*H6*H7 -> 1080 | I9: =I5 -> 1250 | AJ9: Type | AK9: ='Step 1 User Input'!D41 -> 0
E10: Lane Capacity | F10: =F9/F7 -> 720 | G10: =G9/G7 -> 720 | H10: =H9/H7 -> 720 | I10: =I9/I7 -> 1250 | AR10: Distributor | AS10: Access
C11: Time | D11: % of Daily Traffic | E11: Hourly Demand | F11: Capacity | L11: d/c | Q11: Time | R11: 16-Hour Efficiency | W11: Time | X11: 16-Hour Excess Capacity | AC11: Time | AD11: Hours below Capacity | AJ11: Hour Starting | AK11: Functional Class
F12: Signal - Four Lane | G12: Signal Two-Lane | H12: Signal Three-Lane | I12: Roundabout | L12: Signal - Four Lane | M12: Signal Two-Lane | N12: Signal Three-Lane | O12: Roundabout | R12: Signal - Four Lane | S12: Signal Two-Lane | T12: Signal Three-Lane | U12: Roundabout | X12: Signal - Four Lane | Y12: Signal Two-Lane | Z12: Signal Three-Lane | AA12: Roundabout | AD12: Signal - Four Lane | AE12: Signal Two-Lane | AF12: Signal Three-Lane | AG12: Roundabout | AJ12: Hour Starting | AK12: Rural Interstate | AL12: Rural Principal Arterial | AM12: Rural Minor Arterial | AN12: Rural Major Collector | AO12: Rural Minor Collector | AP12: Urban Interstate | AQ12: Urban Other Frwy & Expwy | AR12: Urban Principal Arterial | AS12: Urban Minor Arterial
C13: 00:00:00 | D13: =IF($AK$9=$AR$10,$AR13,$AS13) -> 0.01 | E13: =D13*$C$4*$C$5 -> 0 | F13: =F$9 -> 1440 | G13: =$G$9 -> 720 | H13: =$H$9 -> 1080 | I13: =$I$9 -> 1250 | L13: =$E13/F$9 -> 0 | M13: 0 | N13: 0 | O13: =$E13/I$5 -> 0 | Q13: 00:00:00 | R13: =IF(L13>$L$7,1,0) -> 0 | S13: =IF(M13>$L$7,1,0) -> 0 | T13: 0 | U13: 0 | W13: 00:00:00 | X13: =IF($E13<F13,F13-$E13,0) -> 1440 | Y13: 720 | Z13: 1080 | AA13: 1250 | AC13: 00:00:00 | AD13: =IF($E13<F13,1,0) -> 1 | AE13: 1 | AF13: 1 | AG13: 1 | AJ13: 00:00:00 | AK13: 0.011 | AL13: 0.009 | AM13: 0.012 | AN13: 0.012 | AO13: 0.008 | AP13: 0.011 | AQ13: 0.01 | AR13: 0.01 | AS13: 0.01
C14: 01:00:00 | D14: =IF($AK$9=$AR$10,$AR14,$AS14) -> 0.006 | E14: =D14*$C$4*$C$5 -> 0 | F14: =F$9 -> 1440 | G14: =$G$9 -> 720 | H14: =$H$9 -> 1080 | I14: =$I$9 -> 1250 | L14: 0 | M14: 0 | N14: 0 | O14: 0 | Q14: 01:00:00 | R14: =IF(L14>$L$7,1,0) -> 0 | S14: 0 | T14: 0 | U14: 0 | W14: 01:00:00 | X14: 1440 | Y14: 720 | Z14: 1080 | AA14: 1250 | AC14: 01:00:00 | AD14: 1 | AE14: 1 | AF14: 1 | AG14: 1 | AJ14: 01:00:00 | AK14: 0.008 | AL14: 0.005 | AM14: 0.006 | AN14: 0.005 | AO14: 0.004 | AP14: 0.006 | AQ14: 0.006 | AR14: 0.006 | AS14: 0.006
C15: 02:00:00 | D15: =IF($AK$9=$AR$10,$AR15,$AS15) -> 0.004 | E15: 0 | F15: 1440 | G15: 720 | H15: 1080 | I15: 1250 | L15: 0 | M15: 0 | N15: 0 | O15: 0 | Q15: 02:00:00 | R15: =IF(L15>$L$7,1,0) -> 0 | S15: 0 | T15: 0 | U15: 0 | W15: 02:00:00 | X15: 1440 | Y15: 720 | Z15: 1080 | AA15: 1250 | AC15: 02:00:00 | AD15: 1 | AE15: 1 | AF15: 1 | AG15: 1 | AJ15: 02:00:00 | AK15: 0.006 | AL15: 0.003 | AM15: 0.003 | AN15: 0.004 | AO15: 0.001 | AP15: 0.005 | AQ15: 0.004 | AR15: 0.005 | AS15: 0.004
C16: 03:00:00 | D16: 0.002 | E16: 0 | F16: 1440 | G16: 720 | H16: 1080 | I16: 1250 | L16: 0 | M16: 0 | N16: 0 | O16: 0 | Q16: 03:00:00 | R16: 0 | S16: 0 | T16: 0 | U16: 0 | W16: 03:00:00 | X16: 1440 | Y16: 720 | Z16: 1080 | AA16: 1250 | AC16: 03:00:00 | AD16: 1 | AE16: 1 | AF16: 1 | AG16: 1 | AJ16: 03:00:00 | AK16: 0.006 | AL16: 0.003 | AM16: 0.003 | AN16: 0.003 | AO16: 0.001 | AP16: 0.004 | AQ16: 0.004 | AR16: 0.005 | AS16: 0.002
C17: 04:00:00 | D17: 0.002 | E17: 0 | F17: 1440 | G17: 720 | H17: 1080 | I17: 1250 | L17: 0 | M17: 0 | N17: 0 | O17: 0 | Q17: 04:00:00 | R17: 0 | S17: 0 | T17: 0 | U17: 0 | W17: 04:00:00 | X17: 1440 | Y17: 720 | Z17: 1080 | AA17: 1250 | AC17: 04:00:00 | AD17: 1 | AE17: 1 | AF17: 1 | AG17: 1 | AJ17: 04:00:00 | AK17: 0.008 | AL17: 0.006 | AM17: 0.005 | AN17: 0.004 | AO17: 0.001 | AP17: 0.007 | AQ17: 0.007 | AR17: 0.009 | AS17: 0.002
C18: 05:00:00 | D18: 0.007 | E18: 0 | F18: 1440 | G18: 720 | H18: 1080 | I18: 1250 | L18: 0 | M18: 0 | N18: 0 | O18: =$E18/I$5 -> 0 | Q18: 05:00:00 | R18: 0 | S18: 0 | T18: 0 | U18: 0 | W18: 05:00:00 | X18: 1440 | Y18: 720 | Z18: 1080 | AA18: 1250 | AC18: 05:00:00 | AD18: 1 | AE18: 1 | AF18: 1 | AG18: 1 | AJ18: 05:00:00 | AK18: 0.015 | AL18: 0.019 | AM18: 0.018 | AN18: 0.01 | AO18: 0.006 | AP18: 0.022 | AQ18: 0.025 | AR18: 0.03 | AS18: 0.007
C19: 06:00:00 | D19: 0.023 | E19: 0 | F19: 1440 | G19: 720 | H19: 1080 | I19: 1250 | L19: 0 | M19: 0 | N19: 0 | O19: =$E19/I$5 -> 0 | Q19: 06:00:00 | R19: 0 | S19: 0 | T19: 0 | U19: 0 | W19: 06:00:00 | X19: 1440 | Y19: 720 | Z19: 1080 | AA19: 1250 | AC19: 06:00:00 | AD19: 1 | AE19: 1 | AF19: 1 | AG19: 1 | AJ19: 06:00:00 | AK19: 0.034 | AL19: 0.048 | AM19: 0.045 | AN19: 0.028 | AO19: 0.02 | AP19: 0.051 | AQ19: 0.058 | AR19: 0.054 | AS19: 0.023
C20: 07:00:00 | D20: 0.067 | E20: 0 | F20: 1440 | G20: 720 | H20: 1080 | I20: 1250 | L20: 0 | M20: 0 | N20: 0 | O20: =$E20/I$5 -> 0 | Q20: 07:00:00 | R20: 0 | S20: 0 | T20: 0 | U20: 0 | W20: 07:00:00 | X20: 1440 | Y20: 720 | Z20: 1080 | AA20: 1250 | AC20: 07:00:00 | AD20: 1 | AE20: 1 | AF20: 1 | AG20: 1 | AJ20: 07:00:00 | AK20: 0.056 | AL20: 0.072 | AM20: 0.072 | AN20: 0.063 | AO20: 0.034 | AP20: 0.069 | AQ20: 0.077 | AR20: 0.071 | AS20: 0.067
C21: 08:00:00 | D21: 0.066 | E21: 0 | F21: 1440 | G21: 720 | H21: 1080 | I21: 1250 | L21: 0 | M21: 0 | N21: 0 | O21: 0 | Q21: 08:00:00 | R21: 0 | S21: 0 | T21: 0 | U21: 0 | W21: 08:00:00 | X21: 1440 | Y21: 720 | Z21: 1080 | AA21: 1250 | AC21: 08:00:00 | AD21: 1 | AE21: 1 | AF21: 1 | AG21: 1 | AJ21: 08:00:00 | AK21: 0.054 | AL21: 0.059 | AM21: 0.06 | AN21: 0.06 | AO21: 0.035 | AP21: 0.055 | AQ21: 0.053 | AR21: 0.058 | AS21: 0.066
C22: 09:00:00 | D22: 0.054 | E22: 0 | F22: 1440 | G22: 720 | H22: 1080 | I22: 1250 | L22: 0 | M22: 0 | N22: 0 | O22: 0 | Q22: 09:00:00 | R22: 0 | S22: 0 | T22: 0 | U22: 0 | W22: 09:00:00 | X22: 1440 | Y22: 720 | Z22: 1080 | AA22: 1250 | AC22: 09:00:00 | AD22: 1 | AE22: 1 | AF22: 1 | AG22: 1 | AJ22: 09:00:00 | AK22: 0.053 | AL22: 0.05 | AM22: 0.044 | AN22: 0.049 | AO22: 0.037 | AP22: 0.046 | AQ22: 0.037 | AR22: 0.047 | AS22: 0.054
C23: 10:00:00 | D23: 0.051 | E23: 0 | F23: 1440 | G23: 720 | H23: 1080 | I23: 1250 | L23: 0 | M23: 0 | N23: 0 | O23: 0 | Q23: 10:00:00 | R23: 0 | S23: 0 | T23: 0 | U23: 0 | W23: 10:00:00 | X23: 1440 | Y23: 720 | Z23: 1080 | AA23: 1250 | AC23: 10:00:00 | AD23: 1 | AE23: 1 | AF23: 1 | AG23: 1 | AJ23: 10:00:00 | AK23: 0.056 | AL23: 0.051 | AM23: 0.044 | AN23: 0.048 | AO23: 0.047 | AP23: 0.046 | AQ23: 0.037 | AR23: 0.046 | AS23: 0.051
C24: 11:00:00 | D24: 0.056 | E24: 0 | F24: 1440 | G24: 720 | H24: 1080 | I24: 1250 | L24: 0 | M24: 0 | N24: 0 | O24: 0 | Q24: 11:00:00 | R24: 0 | S24: 0 | T24: 0 | U24: 0 | W24: 11:00:00 | X24: 1440 | Y24: 720 | Z24: 1080 | AA24: 1250 | AC24: 11:00:00 | AD24: 1 | AE24: 1 | AF24: 1 | AG24: 1 | AJ24: 11:00:00 | AK24: 0.058 | AL24: 0.053 | AM24: 0.046 | AN24: 0.05 | AO24: 0.056 | AP24: 0.049 | AQ24: 0.042 | AR24: 0.05 | AS24: 0.056
C25: 12:00:00 | D25: 0.071 | E25: 0 | F25: 1440 | G25: 720 | H25: 1080 | I25: 1250 | L25: 0 | M25: 0 | N25: 0 | O25: 0 | Q25: 12:00:00 | R25: 0 | S25: 0 | T25: 0 | U25: 0 | W25: 12:00:00 | X25: 1440 | Y25: 720 | Z25: 1080 | AA25: 1250 | AC25: 12:00:00 | AD25: 1 | AE25: 1 | AF25: 1 | AG25: 1 | AJ25: 12:00:00 | AK25: 0.06 | AL25: 0.054 | AM25: 0.049 | AN25: 0.052 | AO25: 0.055 | AP25: 0.052 | AQ25: 0.045 | AR25: 0.053 | AS25: 0.071
C26: 13:00:00 | D26: 0.066 | E26: 0 | F26: 1440 | G26: 720 | H26: 1080 | I26: 1250 | L26: 0 | M26: 0 | N26: 0 | O26: 0 | Q26: 13:00:00 | R26: 0 | S26: 0 | T26: 0 | U26: 0 | W26: 13:00:00 | X26: 1440 | Y26: 720 | Z26: 1080 | AA26: 1250 | AC26: 13:00:00 | AD26: 1 | AE26: 1 | AF26: 1 | AG26: 1 | AJ26: 13:00:00 | AK26: 0.062 | AL26: 0.057 | AM26: 0.05 | AN26: 0.055 | AO26: 0.056 | AP26: 0.053 | AQ26: 0.045 | AR26: 0.054 | AS26: 0.066
C27: 14:00:00 | D27: 0.06 | E27: 0 | F27: 1440 | G27: 720 | H27: 1080 | I27: 1250 | L27: 0 | M27: 0 | N27: 0 | O27: 0 | Q27: 14:00:00 | R27: 0 | S27: 0 | T27: 0 | U27: 0 | W27: 14:00:00 | X27: 1440 | Y27: 720 | Z27: 1080 | AA27: 1250 | AC27: 14:00:00 | AD27: 1 | AE27: 1 | AF27: 1 | AG27: 1 | AJ27: 14:00:00 | AK27: 0.067 | AL27: 0.064 | AM27: 0.056 | AN27: 0.062 | AO27: 0.061 | AP27: 0.06 | AQ27: 0.057 | AR27: 0.063 | AS27: 0.06
C28: 15:00:00 | D28: 0.062 | E28: 0 | F28: 1440 | G28: 720 | H28: 1080 | I28: 1250 | L28: 0 | M28: 0 | N28: 0 | O28: 0 | Q28: 15:00:00 | R28: 0 | S28: 0 | T28: 0 | U28: 0 | W28: 15:00:00 | X28: 1440 | Y28: 720 | Z28: 1080 | AA28: 1250 | AC28: 15:00:00 | AD28: 1 | AE28: 1 | AF28: 1 | AG28: 1 | AJ28: 15:00:00 | AK28: 0.074 | AL28: 0.075 | AM28: 0.08 | AN28: 0.071 | AO28: 0.071 | AP28: 0.07 | AQ28: 0.073 | AR28: 0.069 | AS28: 0.062
C29: 16:00:00 | D29: 0.063 | E29: 0 | F29: 1440 | G29: 720 | H29: 1080 | I29: 1250 | L29: 0 | M29: 0 | N29: 0 | O29: 0 | Q29: 16:00:00 | R29: 0 | S29: 0 | T29: 0 | U29: 0 | W29: 16:00:00 | X29: 1440 | Y29: 720 | Z29: 1080 | AA29: 1250 | AC29: 16:00:00 | AD29: 1 | AE29: 1 | AF29: 1 | AG29: 1 | AJ29: 16:00:00 | AK29: 0.08 | AL29: 0.083 | AM29: 0.088 | AN29: 0.083 | AO29: 0.08 | AP29: 0.077 | AQ29: 0.087 | AR29: 0.072 | AS29: 0.063
C30: 17:00:00 | D30: 0.075 | E30: 0 | F30: 1440 | G30: 720 | H30: 1080 | I30: 1250 | L30: 0 | M30: 0 | N30: 0 | O30: 0 | Q30: 17:00:00 | R30: 0 | S30: 0 | T30: 0 | U30: 0 | W30: 17:00:00 | X30: 1440 | Y30: 720 | Z30: 1080 | AA30: 1250 | AC30: 17:00:00 | AD30: 1 | AE30: 1 | AF30: 1 | AG30: 1 | AJ30: 17:00:00 | AK30: 0.077 | AL30: 0.083 | AM30: 0.089 | AN30: 0.093 | AO30: 0.107 | AP30: 0.081 | AQ30: 0.09 | AR30: 0.077 | AS30: 0.075
C31: 18:00:00 | D31: 0.07 | E31: 0 | F31: 1440 | G31: 720 | H31: 1080 | I31: 1250 | L31: 0 | M31: 0 | N31: 0 | O31: 0 | Q31: 18:00:00 | R31: 0 | S31: 0 | T31: 0 | U31: 0 | W31: 18:00:00 | X31: 1440 | Y31: 720 | Z31: 1080 | AA31: 1250 | AC31: 18:00:00 | AD31: 1 | AE31: 1 | AF31: 1 | AG31: 1 | AJ31: 18:00:00 | AK31: 0.06 | AL31: 0.062 | AM31: 0.059 | AN31: 0.072 | AO31: 0.085 | AP31: 0.065 | AQ31: 0.068 | AR31: 0.062 | AS31: 0.07
C32: 19:00:00 | D32: 0.053 | E32: 0 | F32: 1440 | G32: 720 | H32: 1080 | I32: 1250 | L32: 0 | M32: 0 | N32: 0 | O32: 0 | Q32: 19:00:00 | R32: 0 | S32: 0 | T32: 0 | U32: 0 | W32: 19:00:00 | X32: 1440 | Y32: 720 | Z32: 1080 | AA32: 1250 | AC32: 19:00:00 | AD32: 1 | AE32: 1 | AF32: 1 | AG32: 1 | AJ32: 19:00:00 | AK32: 0.045 | AL32: 0.043 | AM32: 0.048 | AN32: 0.049 | AO32: 0.066 | AP32: 0.049 | AQ32: 0.049 | AR32: 0.044 | AS32: 0.053
C33: 20:00:00 | D33: 0.044 | E33: 0 | F33: 1440 | G33: 720 | H33: 1080 | I33: 1250 | L33: 0 | M33: 0 | N33: 0 | O33: 0 | Q33: 20:00:00 | R33: 0 | S33: 0 | T33: 0 | U33: 0 | W33: 20:00:00 | X33: 1440 | Y33: 720 | Z33: 1080 | AA33: 1250 | AC33: 20:00:00 | AD33: 1 | AE33: 1 | AF33: 1 | AG33: 1 | AJ33: 20:00:00 | AK33: 0.036 | AL33: 0.034 | AM33: 0.036 | AN33: 0.04 | AO33: 0.06 | AP33: 0.039 | AQ33: 0.04 | AR33: 0.035 | AS33: 0.044
C34: 21:00:00 | D34: 0.035 | E34: 0 | F34: 1440 | G34: 720 | H34: 1080 | I34: 1250 | L34: 0 | M34: 0 | N34: 0 | O34: 0 | Q34: 21:00:00 | R34: 0 | S34: 0 | T34: 0 | U34: 0 | W34: 21:00:00 | X34: 1440 | Y34: 720 | Z34: 1080 | AA34: 1250 | AC34: 21:00:00 | AD34: 1 | AE34: 1 | AF34: 1 | AG34: 1 | AJ34: 21:00:00 | AK34: 0.031 | AL34: 0.03 | AM34: 0.031 | AN34: 0.039 | AO34: 0.049 | AP34: 0.036 | AQ34: 0.037 | AR34: 0.033 | AS34: 0.035
C35: 22:00:00 | D35: =IF($AK$9=$AR$10,$AR35,$AS35) -> 0.033 | E35: 0 | F35: 1440 | G35: 720 | H35: 1080 | I35: 1250 | L35: 0 | M35: 0 | N35: 0 | O35: 0 | Q35: 22:00:00 | R35: 0 | S35: 0 | T35: 0 | U35: 0 | W35: 22:00:00 | X35: 1440 | Y35: 720 | Z35: 1080 | AA35: 1250 | AC35: 22:00:00 | AD35: 1 | AE35: 1 | AF35: 1 | AG35: 1 | AJ35: 22:00:00 | AK35: 0.024 | AL35: 0.023 | AM35: 0.026 | AN35: 0.028 | AO35: 0.038 | AP35: 0.028 | AQ35: 0.029 | AR35: 0.026 | AS35: 0.033
C36: 23:00:00 | D36: 0.019 | E36: 0 | F36: 1440 | G36: 720 | H36: 1080 | I36: 1250 | L36: 0 | M36: 0 | N36: 0 | O36: 0 | Q36: 23:00:00 | R36: 0 | S36: 0 | T36: 0 | U36: 0 | W36: 23:00:00 | X36: 1440 | Y36: 720 | Z36: 1080 | AA36: 1250 | AC36: 23:00:00 | AD36: 1 | AE36: 1 | AF36: 1 | AG36: 1 | AJ36: 23:00:00 | AK36: 0.018 | AL36: 0.016 | AM36: 0.02 | AN36: 0.019 | AO36: 0.02 | AP36: 0.02 | AQ36: 0.019 | AR36: 0.021 | AS36: 0.019
AJ37: Total | AK37: 1 | AL37: 1 | AM37: 0.99 | AN37: 1 | AO37: 1 | AP37: 1 | AQ37: 1 | AR37: 1 | AS37: 1
B38: Vol Check | C38: =SUM(D13:D36) -> 0.999 | E38: Daily Capacity | F38: =SUM(F13:F36) -> 34560 | G38: =SUM(G13:G36) -> 17280 | H38: =SUM(H13:H36) -> 25920 | I38: =SUM(I13:I36) -> 30000 | K38: Max d/c | L38: =MAX(L13:L36) -> 0 | M38: =MAX(M13:M36) -> 0 | N38: =MAX(N13:N36) -> 0 | O38: =MAX(O13:O36) -> 0 | Q38: Sum | R38: =SUM(R18:R33)/16 -> 0 | S38: =SUM(S18:S33)/16 -> 0 | T38: 0 | U38: 0 | W38: Sum | X38: =SUM(X18:X33) -> 23040 | Y38: =SUM(Y18:Y33) -> 11520 | Z38: 17280 | AA38: 20000 | AC38: Sum | AD38: =SUM(AD13:AD36) -> 24 | AE38: =SUM(AE13:AE36) -> 24 | AF38: 24 | AG38: 24
X40: =X38/F10 -> 32 | Y40: =Y38/G10 -> 16 | Z40: =Z38/H10 -> 24 | AA40: =AA38/I10 -> 16
D67: Intersection Control | G67: Max Demand-to-Capacity d/c | H67: 16-hour V/C Efficiency | I67: 16-Hour Excess Capacity (lane hours) | J67: Total Hours below Capacity per Day | K67: Veh Safety | L67: Ped safety | M67: Bicyclist Safety
D68: Signal - Four-lane | G68: =L37 -> 0 | H68: =Q37 -> 0 | I68: =V39 -> 0 | J68: =AA37 -> 0 | K68: Low | L68: Low | M68: Low
D69: Signal - Two-Lane | G69: =M37 -> 0 | H69: =R37 -> 0 | I69: =W39 -> 0 | J69: =AB37 -> 0 | K69: Low | L69: High | M69: High
D70: Signal - Three-Lane | G70: =N37 -> 0 | H70: =S37 -> 0 | I70: =X39 -> 0 | J70: =AC37 -> 0 | K70: Medium | L70: Medium | M70: High
D71: Roundabout | G71: =O37 -> 0 | H71: =T37 -> 0 | I71: =Y39 -> 0 | J71: =AD37 -> 0 | K71: High | L71: High | M71: High

Sheet matrix
G1: Score | H1: Safety | I1: Economic | J1: Environmental | K1: Social | L1: Mode Shift
B2: Bus lanes | C2: Remove | D2: Remove bus lanes | E2: =_xlfn.CONCAT(B2," - ",C2) -> Bus lanes - Remove | F2: Remove bus lanes | G2: =-1+1+-2+-2+-2+-3 -> -9 | H2: Low Adverse effect: Conflicts and friction due to the need for buses to pull in and out of traffic or stop in the travel lane. Low Positive effect: Reduced crossing distance for people walking and biking. | I2: Medium Adverse effect: Reduced ability to move passengers to and from jobs and businesses; increased bus cycle time may also require additional buses to be added to maintain headways, adding to operating costs. | J2: Medium Adverse effect: Induces personal vehicle use if it negatively effects transit operations. | K2: Medium Adverse effect: Reduces utility of riding the bus which may promote driving, reduce time spent active (walking to/from transit), increase interaction with others, and reduce consistent, reliable access for zero- or low- car households. | L2: High Adverse effect: Bus reliability and travel times can be significantly slowed by traffic if a bus lane is removed, making transit a less viable and competitive option. In areas where congestion is low, removing a bus lane is likely to have insignificant impacts.
B3: Bus lanes | C3: Narrow | D3: Narrow bus lanes | E3: =_xlfn.CONCAT(B3," - ",C3) -> Bus lanes - Narrow | F3: Narrow bus lanes | G3: =-1+0+0+0+0 -> -1 | H3: Low Adverse effect: If roadway is curved or lane is below 11', or lane is shared with bicycles. | I3: No significant effect | J3: No significant effect | K3: No significant effect | L3: No significant effect
B4: Bus lanes | C4: Widen | D4: Widen bus lanes | E4: Bus lanes - Widen | F4: Widen bus lanes | G4: =1+0+0+0+0 -> 1 | H4: Low Positive effect: If roadway is curved or lane is below 11', or lane is shared with bicycles. | I4: No significant effect | J4: No significant effect | K4: No significant effect | L4: No significant effect
B5: Bus lanes | C5: Add | D5: Add bus lanes | E5: Bus lanes - Add | F5: Add bus lanes | G5: =1+-1+2+2+2+3 -> 9 | H5: Low Positive effect: Removes conflicts and friction from buses pulling in and out of traffic or stopping in the travel lane. Low Adverse effect: Increased crossing distance for people walking and biking. | I5: Medium Positive effect: Improved ability to move passengers to and from jobs and businesses; reduced bus cycle time may also require fewer buses to be added to maintain headways, reducing operating costs. | J5: Medium Positive effect: Reduces personal vehicle use if it positively effects transit operations. | K5: Medium Positive effect: Increases utility of riding the bus which may reduce driving, increase time spent active (walking to/from transit), increase interaction with others, and improve consistent, reliable access for zero- or low- car households. | L5: High Positive effect: Bus reliability and travel times can be significantly improved, making transit a more viable and competitive option. In areas where congestion is low, adding a bus lane is likely to have insignificant impacts.
B6: Bike Lanes | C6: Remove | D6: Remove bus lanes | E6: Bike Lanes - Remove | F6: Remove bike lanes | G6: =-3+-2+-2+-3+-3 -> -13 | H6: High Adverse effect: Removed exclusive biking space leads to reduced comfort of bicyclists, likely leading to more riding in the sidewalk or travel lanes, increased conflicts and lack of predictable behavior, and less use and less expectation of bicyclist presence and behavior The Caltrans Local Roadway Safety Manual cites a 55% CMF for addition of separated bike lanes and 65% CMF for painted bike lanes. | I6: Medium Adverse effect: Decrease in accessibility impacts local businesses and individuals' travel costs and options. | J6: Medium Adverse effect: Due to induced driving causing increased emissions. | K6: High Adverse effect: reduced access to physical activity, reduced incentive for local trips affecting community building, and increased direct exposure to emissions. Reduces ability for some communities (zero- or low-car households, younger/older populations, disabled populations, underserved communities, etc.) to reach the goods and services they need. | L6: High Adverse effect: Unless there is a low stress, direct alternate route, removing a bike lane is likely to make biking an inviable mode for many, decreasing bike mode split.
B7: Bike Lanes | C7: Narrow | D7: Narrow bus lanes | E7: Bike Lanes - Narrow | F7: Narrow bike lanes | G7: =-2-2-2-2-2 -> -10 | H7: Medium Adverse effect: If reduces width below minimally safe width or reduces the comfort of bicyclists, leading to less use and less expectation of bicyclist presence and behavior; reduced separation from motor vehicles can also lead to decreased visibility of bicyclists. | I7: Low/Medium Adverse effect: If the reduction decreases the comfort of bicyclists it causes a decrease in accessibility that impacts local businesses and individuals' travel costs and options | J7: Medium Adverse effect: If the reduction decreases the comfort of bicyclists, causing a decrease in ridership, it induces driving and related emissions. | K7: Medium Adverse effect: If the reduction decreases the comfort of bicyclists, causing a decrease in ridership, it reduces physical activity and reduces local trips, affecting community building. Reduces ability for some communities (zero- or low-car households, younger/older populations, disabled populations, underserved communities, etc.) to reach the goods and services they need. | L7: Medium Adverse effect: If the reduction decreases the comfort of bicyclists, it is likely to cause a decrease in ridership.
B8: Bike Lanes | C8: Widen | E8: Bike Lanes - Widen | F8: Widen bike lanes | G8: =2+2+2+2+2 -> 10 | H8: Medium Positive effect: especially if it increases width above minimally safe width or increases the comfort of bicyclists, leading to greater use and greater expectation of bicyclist presence and behavior; increased separation from motor vehicles can also lead to increased visibility of bicyclists | I8: Low/Medium Positive effect: If the increase improves the comfort of bicyclists it causes an increase in accessibility that impacts local businesses and individuals' travel costs and options. | J8: Medium Positive effect: If the increase improves the comfort of bicyclists causing an increase in ridership, it reduces driving and related emissions. | K8: Medium Positive effect: If the increase improves the comfort of bicyclists, causing an increase in ridership, it increases physical activity and reduces local trips, affecting community building. Increases ability for some communities (zero- or low-car households, younger/older populations, disabled populations, underserved communities, etc.) to reach the goods and services they need. | L8: Medium Positive effect: If the widening increases the comfort of bicyclists, it is likely to cause an increase in ridership.
B9: Bike Lanes | C9: Add | E9: Bike Lanes - Add | F9: Add bike lanes | G9: =3+2+2+3+3 -> 13 | H9: High Positive safety effect: Added exclusive biking space leads to increased comfort of bicyclists, leading to increased use and expectation of bicyclist presence and behavior. The Caltrans Loacal Roadway Safety Manual cites a 55% CMF for addition of separated bike lanes and 65% CMF for painted bike lanes. | I9: Medium Positive effect: Increase in accessibility impacts local businesses and individuals' travel costs and options | J9: Medium Positive effect: Reduced driving causing reduced emissions . | K9: High Positive effect: increased access to physical activity, increased incentive for local trips, causing community building, and decreased direct exposure to emissions. Increases ability for some communities (zero- or low-car households, younger/older populations, disabled populations, underserved communities, etc.) to reach the goods and services they need. | L9: High Positive effect: May increase viability of biking for transportation, thereby increasing ridership.
B10: Pedestrian Infrastructure | C10: Remove | E10: Pedestrian Infrastructure - Remove | F10: Remove pedestrian infrastructure | G10: =-3+-3+-2+-3+-3 -> -14 | H10: High Adverse effect: Would force people to walk in or along facilities dedicated to and designed for other users; likely also leads to reduced use from pedestrians and less expectation of pedestrian presence. Removes access for those requiring ADA facilities. The Caltrans Local Roadway Safety Manual cites an 80% CRF for addition of sidewalks. | I10: High Adverse effect: Decrease in accessibility impacts local businesses and individuals' travel costs and options; removes space that can be used to support area businesses (sandwich boards, bike parking, benches, etc.) | J10: Medium Adverse effect: Reduced propensity to walk to destinations, inducing driving and related emissions | K10: High Adverse effect: Reduces access and propensity to walk to destinations, which promotes physical activity, socialization, community building, and propensity for local trips. Also decreases destination accessibility, placemaking, inviting atmosphere. Reduces ability for some communities (zero- or low-car households, younger/older populations, disabled populations, underserved communities, etc.) to reach the goods and services they need. | L10: High Adverse effect: Significantly reduces access and propensity to walk to destinations, reducing walking mode split.
B11: Pedestrian Infrastructure | C11: Narrow | E11: Pedestrian Infrastructure - Narrow | F11: Narrow pedestrian infrastructure | G11: =-2-2-2-3-2 -> -11 | H11: Medium Adverse effect: If it reduces width below minimally safe width or ADA standard widths. | I11: Medium Adverse effect: Decrease in accessibility impacts local businesses and individuals' travel costs and options; removes space that can be used to support area businesses (sandwich boards, bike parking, benches, etc.). | J11: Medium Adverse effect: Reduced propensity to walk to destinations, inducing driving and related emissions | K11: High Adverse effect: Reduces access and propensity to walk to destinations, which promotes physical activity, socialization, community building, and propensity for local trips. Also decreases destination accessibility, placemaking, inviting atmosphere. Reduces ability for some communities (zero- or low-car households, younger/older populations, disabled populations, underserved communities, etc.) to reach the goods and services they need. | L11: Medium Adverse effect: Reduces propensity to walk to destinations, likely reducing walking mode split.
B12: Pedestrian Infrastructure | C12: Widen | E12: Pedestrian Infrastructure - Widen | F12: Widen pedestrian infrastructure | G12: =2+2+2+3+2 -> 11 | H12: Medium Positive safety effect: If it increases width above minimally safe width or ADA standard widths | I12: Medium Positive effect: Increase in accessibility impacts local businesses and individuals' travel costs and options; provides space that can be used to support area businesses (sandwich boards, bike parking, benches, etc.) | J12: Medium Positive effect: Increased propensity to walk to destinations, reducing driving and related emissions | K12: High Positive effect: Increases access and propensity to walk to destinations, which promotes physical activity, socialization, community building, and propensity for local trips. Also decreases destination accessibility, placemaking, inviting atmosphere. Reduces ability for some communities (zero- or low-car households, younger/older populations, disabled populations, underserved communities, etc.) to reach the goods and services they need. | L12: Medium Positive effect: Increases propensity to walk to destinations, likely increasing walking mode split.
B13: Pedestrian Infrastructure | C13: Add | E13: Pedestrian Infrastructure - Add | F13: Add pedestrian infrastructure | G13: =3+3+3+3+3 -> 15 | H13: High Positive effect: Added separation from motor vehicle traffic; people do not have to walk in or along facilities dedicated to and designed for other users; likely also leads to increased use from pedestrians and increased expectation of pedestrian presence. Adds access for those requiring ADA facilities. The Caltrans Local Roadway Safety Manual cites an 80% CRF for addition of sidewalks. | I13: High Positive effect: Increase in accessibility impacts local businesses and individuals' travel costs and options; provides space that can be used to support area businesses (sandwich boards, bike parking, benches, etc.) | J13: Medium Positive effect: Increased propensity to walk to destinations, reducing driving and related emissions | K13: High Positive effect: Increases access and propensity to walk to destinations, which promotes physical activity, socialization, community building, and propensity for local trips. Also decreases destination accessibility, placemaking, inviting atmosphere. Reduces ability for some communities (zero- or low-car households, younger/older populations, disabled populations, underserved communities, etc.) to reach the goods and services they need. | L13: High Positive effect: Significantly improves access and propensity to walk to destinations, increasing walking mode split.
B14: Vehicle Travel Lanes | C14: Remove | E14: Vehicle Travel Lanes - Remove | F14: Remove travel lanes | G14: =3+2-2+1-2+2+2+3 -> 9 | H14: Near Term: High Positive effect: Even if it contributes to congestion, queueing at slower speeds would reduce severity of crashes. Shorter crossing distances, reduced crossing exposure for pedestrians, more feasible clearance intervals for bicyclists. If it results in addition of a TWLT, the HSM provides a 0.71 CMF (SE=0.02) for conversion from a four-lane road (two through lanes each direction) to a three-lane road with TWLTL (Sec. 13.4.2.3). May increase propensity for double parking. Long Term: Medium Compound Positive effect: potentially inducing triple divergence in the long term and reducing ADT--the most closely associated factor with crash risk. | I14: Near Term: Medium Adverse effect: Reduced automotive capacity, more delay, higher cost of goods movement and lower mobility. Positive effect: opportunity for placemaking. Long Term: Low Positive effect: Potential for pass-by trips increased with mode shift from reduced vehicle travel lanes | J14: Near Term: Medium Adverse effect: Local air quality effects related to number of stops, stop-and-go traffic, idling (vehicles occupy smaller area for longer period of time). Long Term: Medium Positive effect: Reduced long-term demand for driving and developments associated with driving (pavement, smaller parking lots, less runoff, lower emissions). This probably swamps the short-term adverse effect in the long run. Short-term adverse effects mitigated with change in fleet characteristics (EVs). Long Term: Medium Adverse effect: If buses share a travel lane, congestion can decrease reliability and travel times, thereby decreasing the viability of and attractiveness of transit, reducing the liklihood for mode shift to transit. | K14: Medium Positive effect: Helps with placemaking: street crossings are shorter, vehicle speeds and volumes are likely lower, leading to improved health outcomes over time. This impact is reduced if transit shares the lane and is significantly affected by congestion. | L14: High Positive effect: If removing a lane increases motorist travel times, significantly increases likelihood of switching to different modes. This impact is reduced if transit shares the lane and is also affected by the congestion.
B15: Vehicle Travel Lanes | C15: Narrow | E15: Vehicle Travel Lanes - Narrow | F15: Narrow travel lanes | G15: =2+0+2+1+1 -> 6 | H15: Medium Positive effect: Unless existing lane widths were necessary for design vehicles. Can reduce speeds (reduced severity). | I15: No significant effect | J15: Medium Positive effect: Slows speeds and reduces emissions. | K15: Low Positive effect: Vehicle speeds are likely lower. | L15: Low Positive effect: Reduces speeds and travel times, thereby reducing propensity to drive.
B16: Vehicle Travel Lanes | C16: Widen | E16: Vehicle Travel Lanes - Widen | F16: Widen travel lanes | G16: =-2+0-2-1-1 -> -6 | H16: Medium Adverse effect: Unless existing lane widths were inappropriate for design vehicles. Allows/promotes higher speeds (inceased severity. | I16: No significant effect | J16: Medium Adverse effect: Increases speeds, increases emissions | K16: Low Adverse effect: Vehicle speeds are likely higher. | L16: Low Adverse effect: Increases speeds and travel times, thereby increasing propensity to drive.
B17: Vehicle Travel Lanes | C17: Add | E17: Vehicle Travel Lanes - Add | F17: Add travel lanes | G17: =-3-2+2-1+2-2-2-3 -> -9 | H17: Near Term: High Adverse effect: Allows/promotes higher speeds (inceased severity). Longer crossing distances. More challenging clearance intervals for bicyclists. May increase propensity for double parking. Long Term: Medium Compound adverse effect: Potentially inducing more driving in the long term and increasing ADT--the most closely associated factor with crash risk. | I17: Near Term: Medium Positive effect: Increased automotive capacity, lower cost of goods movement and improved mobility. Adverse effect: Less opportunity for placemaking. Long Term: Low Adverse effect: Potential for reduced pass-by trips with induced driving demand (as opposed to other modes) | J17: Near Term: Medium Positive effect: Improved local air quality effects related to number of stops, stop-and-go traffic, idling(vehicles occupy smaller area for longer period of time). Long Term: Medium Adverse effect: Induced demand and developments associated with driving (more pavement, bigger parking lots, more runoff, more emissions). Short-term positive effects mitigated with change in fleet characteristics (EVs). Long Term: Medium Positive effect: If buses share a travel lane, decreased congestion can improve reliability and travel times, increasing attractiveness of transit, reducing the amount of induced demand. | K17: Medium Adverse effect: Impacts opportunities for placemaking: street crossings are longer, vehicle speeds and volumes are likely higher, induced demand can increase driving, neagatively effecting health outcomes over time. This impact is reduced if transit shares the lane and is significantly affected by congestion. | L17: High Adverse effect: If adding a lane decreases motorist travel times, significantly decreases likelihood of switching to different modes. This impact is reduced if transit shares the lane and is also affected by congestion.
B18: Vehicle Travel Lanes | C18: One to Two Way Conversion | E18: Vehicle Travel Lanes - One to Two Way Conversion | F18: One to Two Way Conversion | G18: =1+3+0+3+0 -> 7 | H18: Low Positive impact: Converting streets from one-way to two-way can increase safety by slowing speeds, decreasing risk of a double threat for pedestrians, and creating more pedestrian visibility during left-turns; two-way streets have more conflict points than one way streets, negating some safety benefits and leading to the "low" benefit rating. | I18: High Positive effect: Converting streets from one-way to two-way increase access to and awareness of businesses. Studies show high impact to business revenue and property values for converted streets. | J18: No significant effect | K18: High Positive effect: Slower speeds and improved access often improves neighborhood livability and increases biking and walking traffic. Case studies have indicate correlation with a decline in crime in areas near converted streets. | L18: No sigificant effect: Likely increases access for people driving but also slows speeds and creates a more friendly environment for people walking and biking.
B19: Vehicle Travel Lanes | C19: Remove TWLT | E19: Vehicle Travel Lanes - Remove TWLT | F19: Remove TWLTL | G19: =-2-1+1+0+1 -> -1 | H19: Medium Adverse effect: Removing a two way left turn lane may increase the frequency of rear end crashes and reduces the opportunties for pedestrian refuge islands but positively reduces crossing distance if refuge islands did not exist; removing a TWLT may generate a desire for additional motor vehicle lanes to maintain similar traffic may often allows for a four to three lane conversion, which can decreate pedestrian exposure and crossing distance;motor vehicle safety benefits are most seen in environments with many acc ess points. Removes opportunities to have a wide center planted median in areas along a TWLT without access points. | I19: Low Adverse effect: Decreases motor vehicle access to businesses/services in areas where there are driveways/access points. | J19: Low Positive effect: Decreased capacity/motor vehicle access may lead to decreased volumes over time. | K19: No significant effect | L19: Low Positive effect: Decreased capacity/motor vehicle access may lead to decreased volumes over time
B20: Vehicle Travel Lanes | C20: Add TWLT | E20: Vehicle Travel Lanes - Add TWLT | F20: Add TWLTL | G20: =2+1+-1+0-1 -> 1 | H20: Medium Positive effect: Adding a two way left turn lane may decrease the frequency of rear end crashes; two way left turn lanes can provide space for pedestrian refuge islands but adversely creates longer crossing distances if refuge islands are not provided; often allows for a four to three lane conversion, which can decreate pedestrian exposure and crossing distance; benefits are most seen in environments with many access points. In areas without access points, a TWLT can be turned into a wide center planted median. | I20: Low Positive effect: Increases motor vehicle access to businesses/services in areas where there are driveways/access points. | J20: Low Adverse effect: Increased capacity/motor vehicle access may lead to increased volumes over time. | K20: No significant effect | L20: Low Adverse effect: Increased capacity/motor vehicle access may lead to increased volumes over time
B21: Median | C21: Remove | E21: Median - Remove | F21: Remove median | G21: =-3+3+1+2-3+0 -> 0 | H21: High Adverse effect: Motorized vehicle crash rate increases. Greatly increased potential for head-on collisions. Vehicle-vehicle conflict points increased. Veh-ped conflict points increased; eliminates median refuge for crossings.Increases vehicle-bicycle crash frequency at signalized intersections.Increases vehicle-bicycle conflict points. High Positive effect: Decrease in speeds, affects all modes. | I21: Low Positive effect: Could increase sales for auto-dependent businesses such as gas stations if access is improved. Low Adverse effect: Could reduce sales receipts if people are less willing to shop as a result of fewer pedestrian crossing opportunities (and perceived safety and comfort along a street). | J21: Medium Positive effect: May decrease VMT/emissions due to less direct access to sites with off-site parking. Medium Adverse effect: If landscaped median - stormwater management/drainage effects (increase runoff area). | K21: Medium/High Adverse effect: Decreases pedestrian street crossing quality of service. Creates potential barrier(s) in pedestrian network. | L21: No significant effect
B22: Median | C22: Narrow | E22: Median - Narrow | F22: Narrow median | G22: =-1-1 -> -2 | H22: Low Adverse effect: If the median is reduced to be less than 6 feet wide, it can not serve as a pedestrian refuge. Narrowing the median also generally provides less separation. (HSM Sec. 13.4.2.7) | I22: Low Adverse effect: Reduces opportunity for planted median (opportunity for placemaking). | J22: No significant effect | K22: No significant effect | L22: No significant effect
B23: Median | C23: Widen | E23: Median - Widen | F23: Widen median | G23: =1+1 -> 2 | H23: Low Positive effect: If the median is widened to be 6 ft or greater, it can serve as a pedestrian refuge. Widening the median also generally provides greater separation and improved safety results. (HSM Sec. 13.4.2.7) | I23: Low Positive effect: Wide planted median is opportunity for placemaking. | J23: No significant effect | K23: No significant effect | L23: No significant effect
B24: Median | C24: Add | E24: Median - Add | F24: Add median | G24: =3-3+1-1+2-2+3 -> 3 | H24: High Positive effect: Motorized vehicle crash rate decreases. Greatly reduced potential for head-on collisions.Vehicle-vehicle conflict points decreased. Veh-ped conflict points decreased; provides median refuge for crossings. Reduces vehicle-bicycle crash frequency at signalized intersections. Decreases vehicle-bicycle conflict points. High Adverse effect: Increase in speeds, affects all modes. | I24: Low Positive effect: Could improve sales receipts if people are more willing to shop as a result of sufficient pedestrian crossing opportunities (and perceived safety and comfort along a street) Low Adverse effect: decrease sales for auto-dependent businesses such as gas stations if access is affected. | J24: Medium Positive effect: If landscaped median: stormwater management/drainage benefits (reduce runoff area). Medium Adverse effect: May increase VMT/emissions due to less direct access to sites with off-site parking. | K24: Medium/High Positive effect: Increases pedestrian street crossing quality of service. Increases continuity of pedestrian network. Improves opportunities for treated midblock crossings. | L24: No significant effect
B25: Parking | C25: Remove | E25: Parking - Remove | F25: Remove parking | G25: =1-1-2-2+2-1+3 -> 0 | H25: Low Positive effect: Decreased conflicts from parking maneuvers; reduced access to parking may decrease driving demand/VMT, thereby reducing crashes. Low Adverse effect: All else is equal, increased likelihood of double parking (hazardous behavior); street parking can act as traffic calming . | I25: Medium Adverse effect: decreased meter revenue, may make customer access (finding parking) more difficult for businesses without off-street parking, and may remove space for loading/unloading delivery vehicle.s | J25: Medium Near-Term: Adverse effect: Increased circling for parking and associated emissions -- provided all else equal, and that street parking constitutes a meaningful share of area parking. Long-Term: Positive effect: Decreased parking access can reduce demand for driving over time, reducing VMT/emissions. | K25: Low Adverse effect: All else equal, increases amount of time spent circling for parking, with decreased utility for motorists. | L25: High Positive effect: Decreasing parking supply can increase barriers to driving, increases likelihood of switching to different modes.
B26: Parking | C26: Narrow | E26: Parking - Narrow | F26: Narrow parking | G26: =1-1 -> 0 | H26: Low Positive effect: Reduce pedestrian crossing exposure. Low Adverse effect: If bicycle facilities are adjacent, it may increase likelihood of "dooring"; may increase conflicts between pe. | I26: No significant effect unless narrowing affects ability to use parking as loading zones, in which case there would be a medium negative effect | J26: No significant effect | K26: No significant effect | L26: No significant effect
B27: Parking | C27: Widen | E27: Parking - Widen | F27: Widen parking | G27: =1-1 -> 0 | H27: Low Adverse effect: Increase pedestrian crossing exposure. Low Positive effect: If bicycle facilities are adjacent, it may decrease likelihood of "dooring"; may decrease conflicts between people entering/exiting their vehicles and moving motor vehicles. | I27: No significant effect unless widening allows parking to be used as a loading zone, in which case there would be a medium positive effect | J27: No significant effect | K27: No significant effect | L27: No significant effect
B28: Parking | C28: Add | E28: Parking - Add | F28: Add parking | G28: =1-1+2+2-2+1-3 -> 0 | H28: Low Adverse effect: Increased conflicts from parking maneuvers; increased access to parking may increase driving demand/VMT, thereby increasing crashes. Potential sight distance issues for driveways or at intersections Low Positive effect: All else is equal, decreased likelihood of double parking (hazardous behavior); street parking can act as traffic calming and serves as a buffer to sidewalks and some bicycle facilities | I28: Medium Positive effect: Increased access to commercial uses, if managed appropriately, ability to serve for loading/unloading delivery vehicles, and may improve customer access (finding parking) for businesses without off-street parking. | J28: Medium Positive effect: Decreased circling for parking and associated emissions -- provided all else equal, and that street parking constitutes a meaningful share of area parking. Long-Term: Adverse effect: Increased parking access can induce demand for driving over time, increasing VMT/emissions. | K28: Low Positive effect: All else equal, decreases amount of time spent circling for parking, with increased utility for motorists. | L28: High Adverse effect: Increasing parking supply can decrease barriers to driving, increasing propensity of driving.

Sheet matrix2
G1: Score | H1: Safety | I1: Economic | J1: Environmental | K1: Social | L1: Mode Shift
B2: Bus lanes | C2: Remove | D2: Remove bus lanes | E2: =_xlfn.CONCAT(B2," - ",C2) -> Bus lanes - Remove | F2: Remove bus lanes | G2: =-1+1+-2+-2+-2+-3 -> -9 | H2: r | I2: rr | J2: rr | K2: rr | L2: rrr
B3: Bus lanes | C3: Narrow | D3: Narrow bus lanes | E3: =_xlfn.CONCAT(B3," - ",C3) -> Bus lanes - Narrow | F3: Narrow bus lanes | G3: =-1+0+0+0+0 -> -1 | H3: r | I3: x | J3: x | K3: x | L3: x
B4: Bus lanes | C4: Widen | D4: Widen bus lanes | E4: Bus lanes - Widen | F4: Widen bus lanes | G4: =1+0+0+0+0 -> 1 | H4: a | I4: x | J4: x | K4: x | L4: x
B5: Bus lanes | C5: Add | D5: Add bus lanes | E5: Bus lanes - Add | F5: Add bus lanes | G5: =1+-1+2+2+2+3 -> 9 | H5: a r | I5: aa | J5: aa | K5: aa | L5: aaa
B6: Bike Lanes | C6: Remove | D6: Remove bus lanes | E6: Bike Lanes - Remove | F6: Remove bike lanes | G6: =-3+-2+-2+-3+-3 -> -13 | H6: rrr | I6: rr | J6: rr | K6: rrr | L6: rrr
B7: Bike Lanes | C7: Narrow | D7: Narrow bus lanes | E7: Bike Lanes - Narrow | F7: Narrow bike lanes | G7: =-2-2-2-2-2 -> -10 | H7: rr | I7: rr | J7: rr | K7: rr | L7: rr
B8: Bike Lanes | C8: Widen | E8: Bike Lanes - Widen | F8: Widen bike lanes | G8: =2+2+2+2+2 -> 10 | H8: aa | I8: aa | J8: aa | K8: aa | L8: aa
B9: Bike Lanes | C9: Add | E9: Bike Lanes - Add | F9: Add bike lanes | G9: =3+2+2+3+3 -> 13 | H9: aaa | I9: aa | J9: aa | K9: aaa | L9: aaa
B10: Pedestrian Infrastructure | C10: Remove | E10: Pedestrian Infrastructure - Remove | F10: Remove pedestrian infrastructure | G10: =-3+-3+-2+-3+-3 -> -14 | H10: rrr | I10: rrr | J10: rr | K10: rrr | L10: rrr
B11: Pedestrian Infrastructure | C11: Narrow | E11: Pedestrian Infrastructure - Narrow | F11: Narrow pedestrian infrastructure | G11: =-2-2-2-3-2 -> -11 | H11: rr | I11: rr | J11: rr | K11: rrr | L11: rr
B12: Pedestrian Infrastructure | C12: Widen | E12: Pedestrian Infrastructure - Widen | F12: Widen pedestrian infrastructure | G12: =2+2+2+3+2 -> 11 | H12: aa | I12: aa | J12: aa | K12: aaa | L12: aa
B13: Pedestrian Infrastructure | C13: Add | E13: Pedestrian Infrastructure - Add | F13: Add pedestrian infrastructure | G13: =3+3+3+3+3 -> 15 | H13: aaa | I13: aaa | J13: aa | K13: aaa | L13: aaa
B14: Vehicle Travel Lanes | C14: Remove | E14: Vehicle Travel Lanes - Remove | F14: Remove travel lanes | G14: =3+2-2+1-2+2+2+3 -> 9 | H14: Near Term: aaa Long term: aa | I14: Near Term: rr Long term: a | J14: Near Term: rr Long term: aa/rr | K14: aa | L14: aaa
B15: Vehicle Travel Lanes | C15: Narrow | E15: Vehicle Travel Lanes - Narrow | F15: Narrow travel lanes | G15: =2+0+2+1+1 -> 6 | H15: aa | I15: x | J15: aa | K15: a | L15: a
B16: Vehicle Travel Lanes | C16: Widen | E16: Vehicle Travel Lanes - Widen | F16: Widen travel lanes | G16: =-2+0-2-1-1 -> -6 | H16: rr | I16: x | J16: rr | K16: r | L16: r
B17: Vehicle Travel Lanes | C17: Add | E17: Vehicle Travel Lanes - Add | F17: Add travel lanes | G17: =-3-2+2-1+2-2-2-3 -> -9 | H17: Near Term: rrr Long Term: rr | I17: Near Term: aa/rr Long Term: r | J17: Near Term: aa Long Term: rr | K17: rr | L17: rrr
B18: Vehicle Travel Lanes | C18: One to Two Way Conversion | E18: Vehicle Travel Lanes - One to Two Way Conversion | F18: One to Two Way Conversion | G18: =1+3+0+3+0 -> 7 | H18: a | I18: aaa | J18: x | K18: aaa | L18: x
B19: Vehicle Travel Lanes | C19: Remove TWLT | E19: Vehicle Travel Lanes - Remove TWLT | F19: Remove TWLTL | G19: =-2-1+1+0+1 -> -1 | H19: rr | I19: r | J19: a | K19: x | L19: a
B20: Vehicle Travel Lanes | C20: Add TWLT | E20: Vehicle Travel Lanes - Add TWLT | F20: Add TWLTL | G20: =2+1+-1+0-1 -> 1 | H20: aa | I20: a | J20: r | K20: x | L20: r
B21: Median | C21: Remove | E21: Median - Remove | F21: Remove median | G21: =-3+3+1+2-3+0 -> 0 | H21: rrr/aaa | I21: a/r | J21: aa/rr | K21: rrr | L21: x
B22: Median | C22: Narrow | E22: Median - Narrow | F22: Narrow median | G22: =-1-1 -> -2 | H22: r | I22: r | J22: x | K22: x | L22: x
B23: Median | C23: Widen | E23: Median - Widen | F23: Widen median | G23: =1+1 -> 2 | H23: a | I23: a | J23: x | K23: x | L23: x
B24: Median | C24: Add | E24: Median - Add | F24: Add median | G24: =3-3+1-1+2-2+3 -> 3 | H24: aaa/rrr | I24: a/r | J24: aa/rr | K24: aaa | L24: x
B25: Parking | C25: Remove | E25: Parking - Remove | F25: Remove parking | G25: =1-1-2-2+2-1+3 -> 0 | H25: a/r | I25: rr | J25: Near Term: rr Long term: aa | K25: r | L25: aaa
B26: Parking | C26: Narrow | E26: Parking - Narrow | F26: Narrow parking | G26: =1-1 -> 0 | H26: a/r | I26: x | J26: x | K26: x | L26: x
B27: Parking | C27: Widen | E27: Parking - Widen | F27: Widen parking | G27: =1-1 -> 0 | H27: r/a | I27: x | J27: x | K27: x | L27: x
B28: Parking | C28: Add | E28: Parking - Add | F28: Add parking | G28: =1-1+2+2-2+1-3 -> 0 | H28: r/a | I28: aa | J28: Near Term: aa Long Term: rr | K28: a | L28: rrr

Sheet main lookups
B1: Vehicle speed (interpret as ≤) | D1: Traffic Volume | E1: Street Parking Present | F1: Ped Volume / Land Use | G1: Ped Concatenate | H1: Bike Concatenate | I1: # Lanes | J1: Bike Facility | K1: Bike Facility Independent Width (lane only) | L1: Vehicle-bicycle lane buffer (buffer b/w bike lane and vehicle space) | M1: Ped Facility | N1: Ped Facility Independent Width | O1: Pedestrian Buffer | P1: Vehicle Travel Lane | Q1: Parking Lane Width
A2: <2000 | B2: 20 | C2: 0 | D2: 2000 | E2: Y | F2: Low | G2: =_xlfn.CONCAT(B2,F2,E2) -> 20LowY | H2: =_xlfn.CONCAT(B2,D2,I2,E2) -> 202000No CenterlineY | I2: No Centerline | J2: Mixed traffic | K2: 0 | L2: 0 | M2: 6 ft + 2 ft buffer + pkg | N2: 6 | O2: 2 | P2: =VLOOKUP($J2,'ancillary lookups'!$B$28:$C$34,2,FALSE) -> 15 | Q2: =VLOOKUP($E2,'ancillary lookups'!$B$21:$C$23,2,FALSE) -> 8
A3: <2000 | B3: 20 | C3: 0 | D3: 2000 | E3: N | F3: Low | G3: =_xlfn.CONCAT(B3,F3,E3) -> 20LowN | H3: =_xlfn.CONCAT(B3,D3,I3,E3) -> 202000No CenterlineN | I3: No Centerline | J3: Mixed traffic | K3: 0 | L3: 0 | M3: 6 ft + 4 ft buffer | N3: 6 | O3: 4 | P3: =VLOOKUP($J3,'ancillary lookups'!$B$28:$C$34,2,FALSE) -> 15 | Q3: =VLOOKUP($E3,'ancillary lookups'!$B$21:$C$23,2,FALSE) -> 0
A4: <2000 | B4: 20 | C4: 0 | D4: 2000 | E4: Y | F4: Medium | G4: 20MediumY | H4: 202000No CenterlineY | I4: No Centerline | J4: Mixed traffic | K4: 0 | L4: 0 | M4: 8 ft + 2 ft buffer + pkg | N4: 8 | O4: 2 | P4: =VLOOKUP($J4,'ancillary lookups'!$B$28:$C$34,2,FALSE) -> 15 | Q4: =VLOOKUP($E4,'ancillary lookups'!$B$21:$C$23,2,FALSE) -> 8
A5: <2000 | B5: 20 | C5: 0 | D5: 2000 | E5: N | F5: Medium | G5: 20MediumN | H5: 202000No CenterlineN | I5: No Centerline | J5: Mixed traffic | K5: 0 | L5: 0 | M5: 8 ft + 4 ft buffer | N5: 8 | O5: 4 | P5: =VLOOKUP($J5,'ancillary lookups'!$B$28:$C$34,2,FALSE) -> 15 | Q5: =VLOOKUP($E5,'ancillary lookups'!$B$21:$C$23,2,FALSE) -> 0
A6: <2000 | B6: 20 | C6: 0 | D6: 2000 | E6: Y | F6: High | G6: 20HighY | H6: 202000No CenterlineY | I6: No Centerline | J6: Mixed traffic | K6: 0 | L6: 0 | M6: 10 ft + 2 ft buffer + pkg | N6: 10 | O6: 2 | P6: =VLOOKUP($J6,'ancillary lookups'!$B$28:$C$34,2,FALSE) -> 15 | Q6: =VLOOKUP($E6,'ancillary lookups'!$B$21:$C$23,2,FALSE) -> 8
A7: <2000 | B7: 20 | C7: 0 | D7: 2000 | E7: N | F7: High | G7: 20HighN | H7: 202000No CenterlineN | I7: No Centerline | J7: Mixed traffic | K7: 0 | L7: 0 | M7: 10 ft + 4 ft buffer | N7: 10 | O7: 4 | P7: =VLOOKUP($J7,'ancillary lookups'!$B$28:$C$34,2,FALSE) -> 15 | Q7: =VLOOKUP($E7,'ancillary lookups'!$B$21:$C$23,2,FALSE) -> 0
A8: 2000-4000 | B8: 20 | C8: 2000 | D8: 4000 | E8: Y | F8: Low | G8: 20LowY | H8: 204000No CenterlineY | I8: No Centerline | J8: Mixed traffic | K8: 0 | L8: 0 | M8: 6 ft + 2 ft buffer + pkg | N8: 6 | O8: 2 | P8: =VLOOKUP($J8,'ancillary lookups'!$B$28:$C$34,2,FALSE) -> 15 | Q8: =VLOOKUP($E8,'ancillary lookups'!$B$21:$C$23,2,FALSE) -> 8
A9: 2000-4000 | B9: 20 | C9: 2000 | D9: 4000 | E9: N | F9: Low | G9: 20LowN | H9: 204000No CenterlineN | I9: No Centerline | J9: Mixed traffic | K9: 0 | L9: 0 | M9: 6 ft + 4 ft buffer | N9: 6 | O9: 4 | P9: =VLOOKUP($J9,'ancillary lookups'!$B$28:$C$34,2,FALSE) -> 15 | Q9: =VLOOKUP($E9,'ancillary lookups'!$B$21:$C$23,2,FALSE) -> 0
A10: 2000-4000 | B10: 20 | C10: 2000 | D10: 4000 | E10: Y | F10: Medium | G10: 20MediumY | H10: 204000No CenterlineY | I10: No Centerline | J10: Mixed traffic | K10: 0 | L10: 0 | M10: 8 ft + 2 ft buffer + pkg | N10: 8 | O10: 2 | P10: =VLOOKUP($J10,'ancillary lookups'!$B$28:$C$34,2,FALSE) -> 15 | Q10: =VLOOKUP($E10,'ancillary lookups'!$B$21:$C$23,2,FALSE) -> 8
A11: 2000-4000 | B11: 20 | C11: 2000 | D11: 4000 | E11: N | F11: Medium | G11: 20MediumN | H11: 204000No CenterlineN | I11: No Centerline | J11: Mixed traffic | K11: 0 | L11: 0 | M11: 8 ft + 4 ft buffer | N11: 8 | O11: 4 | P11: =VLOOKUP($J11,'ancillary lookups'!$B$28:$C$34,2,FALSE) -> 15 | Q11: =VLOOKUP($E11,'ancillary lookups'!$B$21:$C$23,2,FALSE) -> 0
A12: 2000-4000 | B12: 20 | C12: 2000 | D12: 4000 | E12: Y | F12: High | G12: 20HighY | H12: 204000No CenterlineY | I12: No Centerline | J12: Mixed traffic | K12: 0 | L12: 0 | M12: 10 ft + 2 ft buffer + pkg | N12: 10 | O12: 2 | P12: =VLOOKUP($J12,'ancillary lookups'!$B$28:$C$34,2,FALSE) -> 15 | Q12: =VLOOKUP($E12,'ancillary lookups'!$B$21:$C$23,2,FALSE) -> 8
A13: 2000-4000 | B13: 20 | C13: 2000 | D13: 4000 | E13: N | F13: High | G13: 20HighN | H13: 204000No CenterlineN | I13: No Centerline | J13: Mixed traffic | K13: 0 | L13: 0 | M13: 10 ft + 4 ft buffer | N13: 10 | O13: 4 | P13: =VLOOKUP($J13,'ancillary lookups'!$B$28:$C$34,2,FALSE) -> 15 | Q13: =VLOOKUP($E13,'ancillary lookups'!$B$21:$C$23,2,FALSE) -> 0
A14: >4000 | B14: 20 | C14: 4000 | D14: 999999 | E14: Y | F14: Low | G14: 20LowY | H14: 20999999No CenterlineY | I14: No Centerline | J14: Bike lane | K14: 5.5 | L14: 0 | M14: 6 ft + 2 ft buffer + pkg | N14: 6 | O14: 2 | P14: =VLOOKUP($J14,'ancillary lookups'!$B$28:$C$34,2,FALSE) -> 10 | Q14: =VLOOKUP($E14,'ancillary lookups'!$B$21:$C$23,2,FALSE) -> 8
A15: >4000 | B15: 20 | C15: 4000 | D15: 999999 | E15: N | F15: Low | G15: 20LowN | H15: 20999999No CenterlineN | I15: No Centerline | J15: Bike lane | K15: 5.5 | L15: 0 | M15: 6 ft + 4 ft buffer | N15: 6 | O15: 4 | P15: =VLOOKUP($J15,'ancillary lookups'!$B$28:$C$34,2,FALSE) -> 10 | Q15: =VLOOKUP($E15,'ancillary lookups'!$B$21:$C$23,2,FALSE) -> 0
A16: >4000 | B16: 20 | C16: 4000 | D16: 999999 | E16: Y | F16: Medium | G16: 20MediumY | H16: 20999999No CenterlineY | I16: No Centerline | J16: Bike lane | K16: 5.5 | L16: 0 | M16: 8 ft + 2 ft buffer + pkg | N16: 8 | O16: 2 | P16: =VLOOKUP($J16,'ancillary lookups'!$B$28:$C$34,2,FALSE) -> 10 | Q16: =VLOOKUP($E16,'ancillary lookups'!$B$21:$C$23,2,FALSE) -> 8
A17: >4000 | B17: 20 | C17: 4000 | D17: 999999 | E17: N | F17: Medium | G17: 20MediumN | H17: 20999999No CenterlineN | I17: No Centerline | J17: Bike lane | K17: 5.5 | L17: 0 | M17: 8 ft + 4 ft buffer | N17: 8 | O17: 4 | P17: =VLOOKUP($J17,'ancillary lookups'!$B$28:$C$34,2,FALSE) -> 10 | Q17: =VLOOKUP($E17,'ancillary lookups'!$B$21:$C$23,2,FALSE) -> 0
A18: >4000 | B18: 20 | C18: 4000 | D18: 999999 | E18: Y | F18: High | G18: 20HighY | H18: 20999999No CenterlineY | I18: No Centerline | J18: Bike lane | K18: 5.5 | L18: 0 | M18: 10 ft + 2 ft buffer + pkg | N18: 10 | O18: 2 | P18: =VLOOKUP($J18,'ancillary lookups'!$B$28:$C$34,2,FALSE) -> 10 | Q18: =VLOOKUP($E18,'ancillary lookups'!$B$21:$C$23,2,FALSE) -> 8
A19: >4000 | B19: 20 | C19: 4000 | D19: 999999 | E19: N | F19: High | G19: 20HighN | H19: 20999999No CenterlineN | I19: No Centerline | J19: Bike lane | K19: 5.5 | L19: 0 | M19: 10 ft + 4 ft buffer | N19: 10 | O19: 4 | P19: =VLOOKUP($J19,'ancillary lookups'!$B$28:$C$34,2,FALSE) -> 10 | Q19: =VLOOKUP($E19,'ancillary lookups'!$B$21:$C$23,2,FALSE) -> 0
A20: <1500 | B20: 25 | C20: 0 | D20: 1500 | E20: Y | F20: Low | G20: 25LowY | H20: 251500No centerlineY | I20: No centerline | J20: Mixed traffic | K20: 0 | L20: 0 | M20: 6 ft + 2 ft buffer + pkg | N20: 6 | O20: 2 | P20: =VLOOKUP($J20,'ancillary lookups'!$B$28:$C$34,2,FALSE) -> 15 | Q20: =VLOOKUP($E20,'ancillary lookups'!$B$21:$C$23,2,FALSE) -> 8
A21: <1500 | B21: 25 | C21: 0 | D21: 1500 | E21: N | F21: Low | G21: 25LowN | H21: 251500No centerlineN | I21: No centerline | J21: Mixed traffic | K21: 0 | L21: 0 | M21: 6 ft + 4 ft buffer | N21: 6 | O21: 4 | P21: =VLOOKUP($J21,'ancillary lookups'!$B$28:$C$34,2,FALSE) -> 15 | Q21: =VLOOKUP($E21,'ancillary lookups'!$B$21:$C$23,2,FALSE) -> 0
A22: <1500 | B22: 25 | C22: 0 | D22: 1500 | E22: Y | F22: Medium | G22: 25MediumY | H22: 251500No centerlineY | I22: No centerline | J22: Mixed traffic | K22: 0 | L22: 0 | M22: 8 ft + 2 ft buffer + pkg | N22: 8 | O22: 2 | P22: =VLOOKUP($J22,'ancillary lookups'!$B$28:$C$34,2,FALSE) -> 15 | Q22: =VLOOKUP($E22,'ancillary lookups'!$B$21:$C$23,2,FALSE) -> 8
A23: <1500 | B23: 25 | C23: 0 | D23: 1500 | E23: N | F23: Medium | G23: 25MediumN | H23: 251500No centerlineN | I23: No centerline | J23: Mixed traffic | K23: 0 | L23: 0 | M23: 8 ft + 4 ft buffer | N23: 8 | O23: 4 | P23: =VLOOKUP($J23,'ancillary lookups'!$B$28:$C$34,2,FALSE) -> 15 | Q23: =VLOOKUP($E23,'ancillary lookups'!$B$21:$C$23,2,FALSE) -> 0
A24: <1500 | B24: 25 | C24: 0 | D24: 1500 | E24: Y | F24: High | G24: 25HighY | H24: 251500No centerlineY | I24: No centerline | J24: Mixed traffic | K24: 0 | L24: 0 | M24: 10 ft + 2 ft buffer + pkg | N24: 10 | O24: 2 | P24: =VLOOKUP($J24,'ancillary lookups'!$B$28:$C$34,2,FALSE) -> 15 | Q24: =VLOOKUP($E24,'ancillary lookups'!$B$21:$C$23,2,FALSE) -> 8
A25: <1500 | B25: 25 | C25: 0 | D25: 1500 | E25: N | F25: High | G25: 25HighN | H25: 251500No centerlineN | I25: No centerline | J25: Mixed traffic | K25: 0 | L25: 0 | M25: 10 ft + 4 ft buffer | N25: 10 | O25: 4 | P25: =VLOOKUP($J25,'ancillary lookups'!$B$28:$C$34,2,FALSE) -> 15 | Q25: =VLOOKUP($E25,'ancillary lookups'!$B$21:$C$23,2,FALSE) -> 0
A26: 1500-3000 | B26: 25 | C26: 1500 | D26: 3000 | E26: Y | F26: Low | G26: 25LowY | H26: 2530002x1Y | I26: 2x1 | J26: Bike lane | K26: 5.5 | L26: 1 | M26: 6 ft + 2 ft buffer + pkg | N26: 6 | O26: 2 | P26: =VLOOKUP($J26,'ancillary lookups'!$B$28:$C$34,2,FALSE) -> 10 | Q26: =VLOOKUP($E26,'ancillary lookups'!$B$21:$C$23,2,FALSE) -> 8
A27: 1500-3000 | B27: 25 | C27: 1500 | D27: 3000 | E27: N | F27: Low | G27: 25LowN | H27: 2530002x1N | I27: 2x1 | J27: Bike lane | K27: 5.5 | L27: 0 | M27: 6 ft + 4 ft buffer | N27: 6 | O27: 4 | P27: =VLOOKUP($J27,'ancillary lookups'!$B$28:$C$34,2,FALSE) -> 10 | Q27: =VLOOKUP($E27,'ancillary lookups'!$B$21:$C$23,2,FALSE) -> 0
A28: 1500-3000 | B28: 25 | C28: 1500 | D28: 3000 | E28: Y | F28: Medium | G28: 25MediumY | H28: 2530002x1Y | I28: 2x1 | J28: Bike lane | K28: 5.5 | L28: 1 | M28: 8 ft + 2 ft buffer + pkg | N28: 8 | O28: 2 | P28: =VLOOKUP($J28,'ancillary lookups'!$B$28:$C$34,2,FALSE) -> 10 | Q28: =VLOOKUP($E28,'ancillary lookups'!$B$21:$C$23,2,FALSE) -> 8
A29: 1500-3000 | B29: 25 | C29: 1500 | D29: 3000 | E29: N | F29: Medium | G29: 25MediumN | H29: 2530002x1N | I29: 2x1 | J29: Bike lane | K29: 5.5 | L29: 0 | M29: 8 ft + 4 ft buffer | N29: 8 | O29: 4 | P29: =VLOOKUP($J29,'ancillary lookups'!$B$28:$C$34,2,FALSE) -> 10 | Q29: =VLOOKUP($E29,'ancillary lookups'!$B$21:$C$23,2,FALSE) -> 0
A30: 1500-3000 | B30: 25 | C30: 1500 | D30: 3000 | E30: Y | F30: High | G30: 25HighY | H30: 2530002x1Y | I30: 2x1 | J30: Bike lane | K30: 5.5 | L30: 1 | M30: 10 ft + 2 ft buffer + pkg | N30: 10 | O30: 2 | P30: =VLOOKUP($J30,'ancillary lookups'!$B$28:$C$34,2,FALSE) -> 10 | Q30: =VLOOKUP($E30,'ancillary lookups'!$B$21:$C$23,2,FALSE) -> 8
A31: 1500-3000 | B31: 25 | C31: 1500 | D31: 3000 | E31: N | F31: High | G31: 25HighN | H31: 2530002x1N | I31: 2x1 | J31: Bike lane | K31: 5.5 | L31: 0 | M31: 10 ft + 4 ft buffer | N31: 10 | O31: 4 | P31: =VLOOKUP($J31,'ancillary lookups'!$B$28:$C$34,2,FALSE) -> 10 | Q31: =VLOOKUP($E31,'ancillary lookups'!$B$21:$C$23,2,FALSE) -> 0
A32: 3000-6000 | B32: 25 | C32: 3000 | D32: 6000 | E32: Y | F32: Low | G32: 25LowY | H32: 2560002x1Y | I32: 2x1 | J32: Buffered bike lane | K32: 5.5 | L32: 1 | M32: 6 ft + 2 ft buffer + pkg | N32: 6 | O32: 2 | P32: =VLOOKUP($J32,'ancillary lookups'!$B$28:$C$34,2,FALSE) -> 10 | Q32: =VLOOKUP($E32,'ancillary lookups'!$B$21:$C$23,2,FALSE) -> 8
A33: 3000-6000 | B33: 25 | C33: 3000 | D33: 6000 | E33: N | F33: Low | G33: 25LowN | H33: 2560002x1N | I33: 2x1 | J33: Buffered bike lane | K33: 5.5 | L33: 1 | M33: 6 ft + 4 ft buffer | N33: 6 | O33: 4 | P33: =VLOOKUP($J33,'ancillary lookups'!$B$28:$C$34,2,FALSE) -> 10 | Q33: =VLOOKUP($E33,'ancillary lookups'!$B$21:$C$23,2,FALSE) -> 0
A34: 3000-6000 | B34: 25 | C34: 3000 | D34: 6000 | E34: Y | F34: Medium | G34: 25MediumY | H34: 2560002x1Y | I34: 2x1 | J34: Buffered bike lane | K34: 5.5 | L34: 1 | M34: 8 ft + 2 ft buffer + pkg | N34: 8 | O34: 2 | P34: =VLOOKUP($J34,'ancillary lookups'!$B$28:$C$34,2,FALSE) -> 10 | Q34: =VLOOKUP($E34,'ancillary lookups'!$B$21:$C$23,2,FALSE) -> 8
A35: 3000-6000 | B35: 25 | C35: 3000 | D35: 6000 | E35: N | F35: Medium | G35: 25MediumN | H35: 2560002x1N | I35: 2x1 | J35: Buffered bike lane | K35: 5.5 | L35: 1 | M35: 8 ft + 4 ft buffer | N35: 8 | O35: 4 | P35: =VLOOKUP($J35,'ancillary lookups'!$B$28:$C$34,2,FALSE) -> 10 | Q35: =VLOOKUP($E35,'ancillary lookups'!$B$21:$C$23,2,FALSE) -> 0
A36: 3000-6000 | B36: 25 | C36: 3000 | D36: 6000 | E36: Y | F36: High | G36: 25HighY | H36: 2560002x1Y | I36: 2x1 | J36: Buffered bike lane | K36: 5.5 | L36: 1 | M36: 10 ft + 2 ft buffer + pkg | N36: 10 | O36: 2 | P36: =VLOOKUP($J36,'ancillary lookups'!$B$28:$C$34,2,FALSE) -> 10 | Q36: =VLOOKUP($E36,'ancillary lookups'!$B$21:$C$23,2,FALSE) -> 8
A37: 3000-6000 | B37: 25 | C37: 3000 | D37: 6000 | E37: N | F37: High | G37: 25HighN | H37: 2560002x1N | I37: 2x1 | J37: Buffered bike lane | K37: 5.5 | L37: 1 | M37: 10 ft + 4 ft buffer | N37: 10 | O37: 4 | P37: =VLOOKUP($J37,'ancillary lookups'!$B$28:$C$34,2,FALSE) -> 10 | Q37: =VLOOKUP($E37,'ancillary lookups'!$B$21:$C$23,2,FALSE) -> 0
A38: >6000 | B38: 25 | C38: 6000 | D38: 999999 | E38: Y | F38: Low | G38: 25LowY | H38: 259999992x1Y | I38: 2x1 | J38: Protected bike lane or grade separated cycle track (light separation) | K38: 6 | L38: 2 | M38: 6 ft + 2 ft buffer + pkg | N38: 6 | O38: 2 | P38: =VLOOKUP($J38,'ancillary lookups'!$B$28:$C$34,2,FALSE) -> 10 | Q38: =VLOOKUP($E38,'ancillary lookups'!$B$21:$C$23,2,FALSE) -> 8
A39: >6000 | B39: 25 | C39: 6000 | D39: 999999 | E39: N | F39: Low | G39: 25LowN | H39: 259999992x1N | I39: 2x1 | J39: Protected bike lane or grade separated cycle track (light separation) | K39: 6 | L39: 1 | M39: 6 ft + 4 ft buffer | N39: 6 | O39: 4 | P39: =VLOOKUP($J39,'ancillary lookups'!$B$28:$C$34,2,FALSE) -> 10 | Q39: =VLOOKUP($E39,'ancillary lookups'!$B$21:$C$23,2,FALSE) -> 0
A40: >6000 | B40: 25 | C40: 6000 | D40: 999999 | E40: Y | F40: Medium | G40: 25MediumY | H40: 259999992x1Y | I40: 2x1 | J40: Protected bike lane or grade separated cycle track (light separation) | K40: 6 | L40: 2 | M40: 8 ft + 2 ft buffer + pkg | N40: 8 | O40: 2 | P40: =VLOOKUP($J40,'ancillary lookups'!$B$28:$C$34,2,FALSE) -> 10 | Q40: =VLOOKUP($E40,'ancillary lookups'!$B$21:$C$23,2,FALSE) -> 8
A41: >6000 | B41: 25 | C41: 6000 | D41: 999999 | E41: N | F41: Medium | G41: 25MediumN | H41: 259999992x1N | I41: 2x1 | J41: Protected bike lane or grade separated cycle track (light separation) | K41: 6 | L41: 1 | M41: 8 ft + 4 ft buffer | N41: 8 | O41: 4 | P41: =VLOOKUP($J41,'ancillary lookups'!$B$28:$C$34,2,FALSE) -> 10 | Q41: =VLOOKUP($E41,'ancillary lookups'!$B$21:$C$23,2,FALSE) -> 0
A42: >6000 | B42: 25 | C42: 6000 | D42: 999999 | E42: Y | F42: High | G42: 25HighY | H42: 259999992x1Y | I42: 2x1 | J42: Protected bike lane or grade separated cycle track (light separation) | K42: 6 | L42: 2 | M42: 10 ft + 2 ft buffer + pkg | N42: 10 | O42: 2 | P42: =VLOOKUP($J42,'ancillary lookups'!$B$28:$C$34,2,FALSE) -> 10 | Q42: =VLOOKUP($E42,'ancillary lookups'!$B$21:$C$23,2,FALSE) -> 8
A43: >6000 | B43: 25 | C43: 6000 | D43: 999999 | E43: N | F43: High | G43: 25HighN | H43: 259999992x1N | I43: 2x1 | J43: Protected bike lane or grade separated cycle track (light separation) | K43: 6 | L43: 1 | M43: 10 ft + 4 ft buffer | N43: 10 | O43: 4 | P43: =VLOOKUP($J43,'ancillary lookups'!$B$28:$C$34,2,FALSE) -> 10 | Q43: =VLOOKUP($E43,'ancillary lookups'!$B$21:$C$23,2,FALSE) -> 0
A44: >6000 | B44: 25 | C44: 0 | D44: 999999 | E44: Y | F44: Low | G44: 25LowY | H44: 259999992x2Y | I44: 2x2 | J44: Protected bike lane or grade separated cycle track (light separation) | K44: 6 | L44: 2 | M44: 6 ft + 2 ft buffer + pkg | N44: 6 | O44: 2 | P44: =VLOOKUP($J44,'ancillary lookups'!$B$28:$C$34,2,FALSE) -> 10 | Q44: =VLOOKUP($E44,'ancillary lookups'!$B$21:$C$23,2,FALSE) -> 8
A45: >6000 | B45: 25 | C45: 0 | D45: 999999 | E45: N | F45: Low | G45: 25LowN | H45: 259999992x2N | I45: 2x2 | J45: Protected bike lane or grade separated cycle track (light separation) | K45: 6 | L45: 2 | M45: 6 ft + 4 ft buffer | N45: 6 | O45: 4 | P45: =VLOOKUP($J45,'ancillary lookups'!$B$28:$C$34,2,FALSE) -> 10 | Q45: =VLOOKUP($E45,'ancillary lookups'!$B$21:$C$23,2,FALSE) -> 0
A46: >6000 | B46: 25 | C46: 0 | D46: 999999 | E46: Y | F46: Medium | G46: 25MediumY | H46: 259999992x2Y | I46: 2x2 | J46: Protected bike lane or grade separated cycle track (light separation) | K46: 6 | L46: 2 | M46: 8 ft + 2 ft buffer + pkg | N46: 8 | O46: 2 | P46: =VLOOKUP($J46,'ancillary lookups'!$B$28:$C$34,2,FALSE) -> 10 | Q46: =VLOOKUP($E46,'ancillary lookups'!$B$21:$C$23,2,FALSE) -> 8
A47: >6000 | B47: 25 | C47: 0 | D47: 999999 | E47: N | F47: Medium | G47: 25MediumN | H47: 259999992x2N | I47: 2x2 | J47: Protected bike lane or grade separated cycle track (light separation) | K47: 6 | L47: 2 | M47: 8 ft + 4 ft buffer | N47: 8 | O47: 4 | P47: =VLOOKUP($J47,'ancillary lookups'!$B$28:$C$34,2,FALSE) -> 10 | Q47: =VLOOKUP($E47,'ancillary lookups'!$B$21:$C$23,2,FALSE) -> 0
A48: >6000 | B48: 25 | C48: 0 | D48: 999999 | E48: Y | F48: High | G48: 25HighY | H48: 259999992x2Y | I48: 2x2 | J48: Protected bike lane or grade separated cycle track (light separation) | K48: 6 | L48: 2 | M48: 10 ft + 2 ft buffer + pkg | N48: 10 | O48: 2 | P48: =VLOOKUP($J48,'ancillary lookups'!$B$28:$C$34,2,FALSE) -> 10 | Q48: =VLOOKUP($E48,'ancillary lookups'!$B$21:$C$23,2,FALSE) -> 8
A49: >6000 | B49: 25 | C49: 0 | D49: 999999 | E49: N | F49: High | G49: 25HighN | H49: 259999992x2N | I49: 2x2 | J49: Protected bike lane or grade separated cycle track (light separation) | K49: 6 | L49: 2 | M49: 10 ft + 4 ft buffer | N49: 10 | O49: 4 | P49: =VLOOKUP($J49,'ancillary lookups'!$B$28:$C$34,2,FALSE) -> 10 | Q49: =VLOOKUP($E49,'ancillary lookups'!$B$21:$C$23,2,FALSE) -> 0
A50: <=6000 | B50: 30 | C50: 0 | D50: 6000 | E50: Y | F50: Low | G50: 30LowY | H50: 306000AnyY | I50: Any | J50: Protected bike lane or grade separated cycle track (light separation) | K50: 6 | L50: 2 | M50: 6 ft + 2 ft buffer + pkg | N50: 6 | O50: 2 | P50: =VLOOKUP($J50,'ancillary lookups'!$B$28:$C$34,2,FALSE) -> 10 | Q50: =VLOOKUP($E50,'ancillary lookups'!$B$21:$C$23,2,FALSE) -> 8
A51: <=6000 | B51: 30 | C51: 0 | D51: 6000 | E51: N | F51: Low | G51: 30LowN | H51: 306000AnyN | I51: Any | J51: Protected bike lane or grade separated cycle track (light separation) | K51: 6 | L51: 1 | M51: 6 ft + 4 ft buffer | N51: 6 | O51: 4 | P51: =VLOOKUP($J51,'ancillary lookups'!$B$28:$C$34,2,FALSE) -> 10 | Q51: =VLOOKUP($E51,'ancillary lookups'!$B$21:$C$23,2,FALSE) -> 0
A52: <=6000 | B52: 30 | C52: 0 | D52: 6000 | E52: Y | F52: Medium | G52: 30MediumY | H52: 306000AnyY | I52: Any | J52: Protected bike lane or grade separated cycle track (light separation) | K52: 6 | L52: 2 | M52: 8 ft + 2 ft buffer + pkg | N52: 8 | O52: 2 | P52: =VLOOKUP($J52,'ancillary lookups'!$B$28:$C$34,2,FALSE) -> 10 | Q52: =VLOOKUP($E52,'ancillary lookups'!$B$21:$C$23,2,FALSE) -> 8
A53: <=6000 | B53: 30 | C53: 0 | D53: 6000 | E53: N | F53: Medium | G53: 30MediumN | H53: 306000AnyN | I53: Any | J53: Protected bike lane or grade separated cycle track (light separation) | K53: 6 | L53: 1 | M53: 8 ft + 4 ft buffer | N53: 8 | O53: 4 | P53: =VLOOKUP($J53,'ancillary lookups'!$B$28:$C$34,2,FALSE) -> 10 | Q53: =VLOOKUP($E53,'ancillary lookups'!$B$21:$C$23,2,FALSE) -> 0
A54: <=6000 | B54: 30 | C54: 0 | D54: 6000 | E54: Y | F54: High | G54: 30HighY | H54: 306000AnyY | I54: Any | J54: Protected bike lane or grade separated cycle track (light separation) | K54: 6 | L54: 2 | M54: 10 ft + 2 ft buffer + pkg | N54: 10 | O54: 2 | P54: =VLOOKUP($J54,'ancillary lookups'!$B$28:$C$34,2,FALSE) -> 10 | Q54: =VLOOKUP($E54,'ancillary lookups'!$B$21:$C$23,2,FALSE) -> 8
A55: <=6000 | B55: 30 | C55: 0 | D55: 6000 | E55: N | F55: High | G55: 30HighN | H55: 306000AnyN | I55: Any | J55: Protected bike lane or grade separated cycle track (light separation) | K55: 6 | L55: 1 | M55: 10 ft+ 4 ft buffer | N55: 10 | O55: 4 | P55: =VLOOKUP($J55,'ancillary lookups'!$B$28:$C$34,2,FALSE) -> 10 | Q55: =VLOOKUP($E55,'ancillary lookups'!$B$21:$C$23,2,FALSE) -> 0
A56: >6000 | B56: 30 | C56: 6000 | D56: 999999 | E56: Y | F56: Low | G56: 30LowY | H56: 30999999AnyY | I56: Any | J56: Protected bike lane or grade separated cycle track (light separation) | K56: 6 | L56: 2 | M56: 6 ft + 2 ft buffer + pkg | N56: 6 | O56: 2 | P56: =VLOOKUP($J56,'ancillary lookups'!$B$28:$C$34,2,FALSE) -> 10 | Q56: =VLOOKUP($E56,'ancillary lookups'!$B$21:$C$23,2,FALSE) -> 8
A57: >6000 | B57: 30 | C57: 6000 | D57: 999999 | E57: N | F57: Low | G57: 30LowN | H57: 30999999AnyN | I57: Any | J57: Protected bike lane or grade separated cycle track (light separation) | K57: 6 | L57: 2 | M57: 6 ft + 4 ft buffer | N57: 6 | O57: 4 | P57: =VLOOKUP($J57,'ancillary lookups'!$B$28:$C$34,2,FALSE) -> 10 | Q57: =VLOOKUP($E57,'ancillary lookups'!$B$21:$C$23,2,FALSE) -> 0
A58: >6000 | B58: 30 | C58: 6000 | D58: 999999 | E58: Y | F58: Medium | G58: 30MediumY | H58: 30999999AnyY | I58: Any | J58: Protected bike lane or grade separated cycle track (light separation) | K58: 6 | L58: 2 | M58: 8 ft + 2 ft buffer + pkg | N58: 8 | O58: 2 | P58: =VLOOKUP($J58,'ancillary lookups'!$B$28:$C$34,2,FALSE) -> 10 | Q58: =VLOOKUP($E58,'ancillary lookups'!$B$21:$C$23,2,FALSE) -> 8
A59: >6000 | B59: 30 | C59: 6000 | D59: 999999 | E59: N | F59: Medium | G59: 30MediumN | H59: 30999999AnyN | I59: Any | J59: Protected bike lane or grade separated cycle track (light separation) | K59: 6 | L59: 2 | M59: 8 ft + 4 ft buffer | N59: 8 | O59: 4 | P59: =VLOOKUP($J59,'ancillary lookups'!$B$28:$C$34,2,FALSE) -> 10 | Q59: =VLOOKUP($E59,'ancillary lookups'!$B$21:$C$23,2,FALSE) -> 0
A60: >6000 | B60: 30 | C60: 6000 | D60: 999999 | E60: Y | F60: High | G60: 30HighY | H60: 30999999AnyY | I60: Any | J60: Protected bike lane or grade separated cycle track (light separation) | K60: 6 | L60: 2 | M60: 10 ft + 2 ft buffer + pkg | N60: 10 | O60: 2 | P60: =VLOOKUP($J60,'ancillary lookups'!$B$28:$C$34,2,FALSE) -> 10 | Q60: =VLOOKUP($E60,'ancillary lookups'!$B$21:$C$23,2,FALSE) -> 8
A61: >6000 | B61: 30 | C61: 6000 | D61: 999999 | E61: N | F61: High | G61: 30HighN | H61: 30999999AnyN | I61: Any | J61: Protected bike lane or grade separated cycle track (light separation) | K61: 6 | L61: 2 | M61: 10 ft+ 4 ft buffer | N61: 10 | O61: 4 | P61: =VLOOKUP($J61,'ancillary lookups'!$B$28:$C$34,2,FALSE) -> 10 | Q61: =VLOOKUP($E61,'ancillary lookups'!$B$21:$C$23,2,FALSE) -> 0
A62: Any | B62: 35 | C62: 0 | D62: 999999 | E62: Y | F62: Low | G62: 35LowY | H62: 35999999AnyY | I62: Any | J62: Protected bike lane or grade separated cycle track (heavy separation) | K62: 6 | L62: 2 | M62: 6 ft + 2 ft buffer + pkg | N62: 6 | O62: 2 | P62: =VLOOKUP($J62,'ancillary lookups'!$B$28:$C$34,2,FALSE) -> 10 | Q62: =VLOOKUP($E62,'ancillary lookups'!$B$21:$C$23,2,FALSE) -> 8
A63: Any | B63: 35 | C63: 0 | D63: 999999 | E63: N | F63: Low | G63: 35LowN | H63: 35999999AnyN | I63: Any | J63: Protected bike lane or grade separated cycle track (heavy separation) | K63: 6 | L63: 5 | M63: 6 ft + 4 ft buffer | N63: 6 | O63: 4 | P63: =VLOOKUP($J63,'ancillary lookups'!$B$28:$C$34,2,FALSE) -> 10 | Q63: =VLOOKUP($E63,'ancillary lookups'!$B$21:$C$23,2,FALSE) -> 0
A64: Any | B64: 35 | C64: 0 | D64: 999999 | E64: Y | F64: Medium | G64: 35MediumY | H64: 35999999AnyY | I64: Any | J64: Protected bike lane or grade separated cycle track (heavy separation) | K64: 6 | L64: 2 | M64: 8 ft + 2 ft buffer + pkg | N64: 8 | O64: 2 | P64: =VLOOKUP($J64,'ancillary lookups'!$B$28:$C$34,2,FALSE) -> 10 | Q64: =VLOOKUP($E64,'ancillary lookups'!$B$21:$C$23,2,FALSE) -> 8
A65: Any | B65: 35 | C65: 0 | D65: 999999 | E65: N | F65: Medium | G65: 35MediumN | H65: 35999999AnyN | I65: Any | J65: Protected bike lane or grade separated cycle track (heavy separation) | K65: 6 | L65: 5 | M65: 8 ft + 4 ft buffer | N65: 8 | O65: 4 | P65: =VLOOKUP($J65,'ancillary lookups'!$B$28:$C$34,2,FALSE) -> 10 | Q65: =VLOOKUP($E65,'ancillary lookups'!$B$21:$C$23,2,FALSE) -> 0
A66: Any | B66: 35 | C66: 0 | D66: 999999 | E66: Y | F66: High | G66: 35HighY | H66: 35999999AnyY | I66: Any | J66: Protected bike lane or grade separated cycle track (heavy separation) | K66: 6 | L66: 2 | M66: 10 ft + 2 ft buffer + pkg | N66: 10 | O66: 2 | P66: =VLOOKUP($J66,'ancillary lookups'!$B$28:$C$34,2,FALSE) -> 10 | Q66: =VLOOKUP($E66,'ancillary lookups'!$B$21:$C$23,2,FALSE) -> 8
A67: Any | B67: 35 | C67: 0 | D67: 999999 | E67: N | F67: High | G67: =_xlfn.CONCAT(B67,F67,E67) -> 35HighN | H67: =_xlfn.CONCAT(B67,D67,I67,E67) -> 35999999AnyN | I67: Any | J67: Protected bike lane or grade separated cycle track (heavy separation) | K67: 6 | L67: 5 | M67: 10 ft + 4 ft buffer | N67: 10 | O67: 4 | P67: =VLOOKUP($J67,'ancillary lookups'!$B$28:$C$34,2,FALSE) -> 10 | Q67: =VLOOKUP($E67,'ancillary lookups'!$B$21:$C$23,2,FALSE) -> 0
A68: Any | B68: >35 | C68: 0 | D68: 999999 | E68: Y | F68: Low | G68: >35LowY | H68: >35999999AnyY | I68: Any | J68: Grade separated cycle track or multi use path | K68: 6 | L68: 0 | M68: 6 ft + 2 ft buffer + pkg | N68: 6 | O68: 2 | P68: =VLOOKUP($J68,'ancillary lookups'!$B$28:$C$34,2,FALSE) -> 10 | Q68: =VLOOKUP($E68,'ancillary lookups'!$B$21:$C$23,2,FALSE) -> 8
A69: Any | B69: >35 | C69: 0 | D69: 999999 | E69: N | F69: Low | G69: >35LowN | H69: >35999999AnyN | I69: Any | J69: Grade separated cycle track or multi use path | K69: 6 | L69: 6 | M69: 6 ft + 4 ft buffer | N69: 6 | O69: 4 | P69: =VLOOKUP($J69,'ancillary lookups'!$B$28:$C$34,2,FALSE) -> 10 | Q69: =VLOOKUP($E69,'ancillary lookups'!$B$21:$C$23,2,FALSE) -> 0
A70: Any | B70: >35 | C70: 0 | D70: 999999 | E70: Y | F70: Medium | G70: >35MediumY | H70: >35999999AnyY | I70: Any | J70: Grade separated cycle track or multi use path | K70: 6 | L70: 0 | M70: 8 ft + 2 ft buffer + pkg | N70: 8 | O70: 2 | P70: =VLOOKUP($J70,'ancillary lookups'!$B$28:$C$34,2,FALSE) -> 10 | Q70: =VLOOKUP($E70,'ancillary lookups'!$B$21:$C$23,2,FALSE) -> 8
A71: Any | B71: >35 | C71: 0 | D71: 999999 | E71: N | F71: Medium | G71: >35MediumN | H71: >35999999AnyN | I71: Any | J71: Grade separated cycle track or multi use path | K71: 6 | L71: 6 | M71: 8 ft + 4 ft buffer | N71: 8 | O71: 4 | P71: =VLOOKUP($J71,'ancillary lookups'!$B$28:$C$34,2,FALSE) -> 10 | Q71: =VLOOKUP($E71,'ancillary lookups'!$B$21:$C$23,2,FALSE) -> 0
A72: Any | B72: >35 | C72: 0 | D72: 999999 | E72: Y | F72: High | G72: >35HighY | H72: >35999999AnyY | I72: Any | J72: Grade separated cycle track or multi use path | K72: 6 | L72: 0 | M72: 10 ft + 2 ft buffer + pkg | N72: 10 | O72: 2 | P72: =VLOOKUP($J72,'ancillary lookups'!$B$28:$C$34,2,FALSE) -> 10 | Q72: =VLOOKUP($E72,'ancillary lookups'!$B$21:$C$23,2,FALSE) -> 8
A73: Any | B73: >35 | C73: 0 | D73: 999999 | E73: N | F73: High | G73: >35HighN | H73: >35999999AnyN | I73: Any | J73: Grade separated cycle track or multi use path | K73: 6 | L73: 6 | M73: 10 ft + 4 ft buffer | N73: 10 | O73: 4 | P73: =VLOOKUP($J73,'ancillary lookups'!$B$28:$C$34,2,FALSE) -> 10 | Q73: =VLOOKUP($E73,'ancillary lookups'!$B$21:$C$23,2,FALSE) -> 0

Sheet ancillary lookups
B1: Street Buffer Width | F1: Road Element Widths
B2: Bike lane type,street parking presence | C2: Width | F2: Element | G2: Width
B3: Mixed traffic,Y | C3: 0 | F3: Bus Lane | G3: 11
B4: Mixed traffic,N | C4: 0 | F4: TWLTL | G4: 11
B5: Bike lane,Y | C5: 1 | F5: Median
B6: Bike lane,N | C6: 0 | F6: Shared Use Path | G6: 10
B7: Buffered bike lane,Y | C7: 1 | F7: Vehicle Lane Width | G7: 10
B8: Buffered bike lane,N | C8: 1 | F8: Vehicle Lane - Bus | G8: 11
B9: Separated bike lane (light separation),Y | C9: 2 | F9: Vehicle Lane - Freight | G9: 11
B10: Separated bike lane (light separation),N | C10: 1
B11: Separated bike lane (heavy separation),Y | C11: 2
B12: Separated bike lane (heavy separation),N | C12: 5 | F12: Two-Way Bike lane Widths
F13: Element | G13: Width
F14: Two-way bike lane | G14: 10
B15: Vehicle Travel Lane Lookups, parking presence | C15: Width | D15: Notes | F15: Separation, Parking | G15: 3
B16: Mixed Traffic,Y | C16: =15+8*2 -> 31 | D16: includes 8 feet x 2 for parking lane width | F16: Separation, No parking | G16: 2
B17: Mixed Traffic,N
B20: Parking Lane Width Lookups
B21: Presence? | C21: Width
B22: Y | C22: 8
B23: N | C23: 0
B27: Vehicle Lane Width Lookups | D27: <----Possible changes given transit and heavy truck presence
B28: Bike lane condition | C28: Width
B29: Mixed Traffic | C29: 15
B30: Bike lane | C30: 10
B31: Buffered bike lane | C31: 10
B32: Protected bike lane or grade separated cycle track (light separation) | C32: 10
B33: Protected bike lane or grade separated cycle track (heavy separation) | C33: 10
B34: Grade separated cycle track or multi use path | C34: 10
B38: Pedestrian Buffer Width Lookups
B39: Speed | C39: Ped Volume/Land Use | D39: Bike Facility | E39: Parking Presence
A40: =CONCATENATE(B40,",",C40,",",D40,",",E40) -> >35,Low,Mixed traffic,Y | B40: >35 | C40: Low | D40: Mixed traffic | E40: Y
A41: =CONCATENATE(B41,",",C41,",",D41,",",E41) -> >35,Low,Bike lane,Y | B41: >35 | C41: Low | D41: Bike lane | E41: Y | F41: Buffer Width | J41: Logic chain…
A42: >35,Low,Buffered bike lane,Y | B42: >35 | C42: Low | D42: Buffered bike lane | E42: Y | F42: 6 | J42: all 40mph are 6', unless SBL present (2')
A43: >35,Low,Separated bike lane (light separation),Y | B43: >35 | C43: Low | D43: Separated bike lane (light separation) | E43: Y | F43: 6 | J43: 30 and 35mph are 6' for high, 4' for medium, 4' for low (or 2' if parking), unless SBL present (2')
A44: >35,Low,Separated bike lane (heavy separation),Y | B44: >35 | C44: Low | D44: Separated bike lane (heavy separation) | E44: Y | F44: 6 | J44: 15-25 mph are 4' (except 2' for low if parking), unless SBL present (2')
A45: >35,Medium,Mixed traffic,Y | B45: >35 | C45: Medium | D45: Mixed traffic | E45: Y | F45: 6
A46: >35,Medium,Bike lane,Y | B46: >35 | C46: Medium | D46: Bike lane | E46: Y | F46: 6
A47: >35,Medium,Buffered bike lane,Y | B47: >35 | C47: Medium | D47: Buffered bike lane | E47: Y | F47: 6
A48: >35,Medium,Separated bike lane (light separation),Y | B48: >35 | C48: Medium | D48: Separated bike lane (light separation) | E48: Y | F48: 6
A49: >35,Medium,Separated bike lane (heavy separation),Y | B49: >35 | C49: Medium | D49: Separated bike lane (heavy separation) | E49: Y | F49: 6
A50: >35,High,Mixed traffic,Y | B50: >35 | C50: High | D50: Mixed traffic | E50: Y | F50: 6
A51: >35,High,Bike lane,Y | B51: >35 | C51: High | D51: Bike lane | E51: Y | F51: 6
A52: >35,High,Buffered bike lane,Y | B52: >35 | C52: High | D52: Buffered bike lane | E52: Y | F52: 6
A53: >35,High,Separated bike lane (light separation),Y | B53: >35 | C53: High | D53: Separated bike lane (light separation) | E53: Y | F53: 6
A54: >35,High,Separated bike lane (heavy separation),Y | B54: >35 | C54: High | D54: Separated bike lane (heavy separation) | E54: Y | F54: 6
A55: >35,Low,Mixed traffic,N | B55: >35 | C55: Low | D55: Mixed traffic | E55: N | F55: 2
A56: >35,Low,Bike lane,N | B56: >35 | C56: Low | D56: Bike lane | E56: N | F56: 2
A57: >35,Low,Buffered bike lane,N | B57: >35 | C57: Low | D57: Buffered bike lane | E57: N | F57: 6
A58: >35,Low,Separated bike lane (light separation),N | B58: >35 | C58: Low | D58: Separated bike lane (light separation) | E58: N | F58: 6
A59: >35,Low,Separated bike lane (heavy separation),N | B59: >35 | C59: Low | D59: Separated bike lane (heavy separation) | E59: N | F59: 6
A60: >35,Medium,Mixed traffic,N | B60: >35 | C60: Medium | D60: Mixed traffic | E60: N | F60: 6
A61: >35,Medium,Bike lane,N | B61: >35 | C61: Medium | D61: Bike lane | E61: N | F61: 6
A62: >35,Medium,Buffered bike lane,N | B62: >35 | C62: Medium | D62: Buffered bike lane | E62: N | F62: 6
A63: >35,Medium,Separated bike lane (light separation),N | B63: >35 | C63: Medium | D63: Separated bike lane (light separation) | E63: N | F63: 6
A64: >35,Medium,Separated bike lane (heavy separation),N | B64: >35 | C64: Medium | D64: Separated bike lane (heavy separation) | E64: N | F64: 6
A65: >35,High,Mixed traffic,N | B65: >35 | C65: High | D65: Mixed traffic | E65: N | F65: 6
A66: >35,High,Bike lane,N | B66: >35 | C66: High | D66: Bike lane | E66: N | F66: 6
A67: >35,High,Buffered bike lane,N | B67: >35 | C67: High | D67: Buffered bike lane | E67: N | F67: 6
A68: >35,High,Separated bike lane (light separation),N | B68: >35 | C68: High | D68: Separated bike lane (light separation) | E68: N | F68: 6
A69: >35,High,Separated bike lane (heavy separation),N | B69: >35 | C69: High | D69: Separated bike lane (heavy separation) | E69: N | F69: 6
A70: 35,Low,Mixed traffic,Y | B70: 35 | C70: Low | D70: Mixed traffic | E70: Y | F70: 2
A71: 35,Low,Bike lane,Y | B71: 35 | C71: Low | D71: Bike lane | E71: Y | F71: 2
A72: 35,Low,Buffered bike lane,Y | B72: 35 | C72: Low | D72: Buffered bike lane | E72: Y | F72: 2
A73: 35,Low,Separated bike lane (light separation),Y | B73: 35 | C73: Low | D73: Separated bike lane (light separation) | E73: Y | F73: 2
A74: 35,Low,Separated bike lane (heavy separation),Y | B74: 35 | C74: Low | D74: Separated bike lane (heavy separation) | E74: Y | F74: 2
A75: 35,Medium,Mixed traffic,Y | B75: 35 | C75: Medium | D75: Mixed traffic | E75: Y | F75: 2
A76: 35,Medium,Bike lane,Y | B76: 35 | C76: Medium | D76: Bike lane | E76: Y | F76: 2
A77: 35,Medium,Buffered bike lane,Y | B77: 35 | C77: Medium | D77: Buffered bike lane | E77: Y | F77: 4
A78: 35,Medium,Separated bike lane (light separation),Y | B78: 35 | C78: Medium | D78: Separated bike lane (light separation) | E78: Y | F78: 4
A79: 35,Medium,Separated bike lane (heavy separation),Y | B79: 35 | C79: Medium | D79: Separated bike lane (heavy separation) | E79: Y | F79: 4
A80: 35,High,Mixed traffic,Y | B80: 35 | C80: High | D80: Mixed traffic | E80: Y | F80: 2
A81: 35,High,Bike lane,Y | B81: 35 | C81: High | D81: Bike lane | E81: Y | F81: 2
A82: 35,High,Buffered bike lane,Y | B82: 35 | C82: High | D82: Buffered bike lane | E82: Y | F82: 6
A83: 35,High,Separated bike lane (light separation),Y | B83: 35 | C83: High | D83: Separated bike lane (light separation) | E83: Y | F83: 6
A84: 35,High,Separated bike lane (heavy separation),Y | B84: 35 | C84: High | D84: Separated bike lane (heavy separation) | E84: Y | F84: 6
A85: 35,Low,Mixed traffic,N | B85: 35 | C85: Low | D85: Mixed traffic | E85: N | F85: 2
A86: 35,Low,Bike lane,N | B86: 35 | C86: Low | D86: Bike lane | E86: N | F86: 2
A87: 35,Low,Buffered bike lane,N | B87: 35 | C87: Low | D87: Buffered bike lane | E87: N | F87: 4
A88: 35,Low,Separated bike lane (light separation),N | B88: 35 | C88: Low | D88: Separated bike lane (light separation) | E88: N | F88: 4
A89: 35,Low,Separated bike lane (heavy separation),N | B89: 35 | C89: Low | D89: Separated bike lane (heavy separation) | E89: N | F89: 4
A90: 35,Medium,Mixed traffic,N | B90: 35 | C90: Medium | D90: Mixed traffic | E90: N | F90: 2
A91: 35,Medium,Bike lane,N | B91: 35 | C91: Medium | D91: Bike lane | E91: N | F91: 2
A92: 35,Medium,Buffered bike lane,N | B92: 35 | C92: Medium | D92: Buffered bike lane | E92: N | F92: 4
A93: 35,Medium,Separated bike lane (light separation),N | B93: 35 | C93: Medium | D93: Separated bike lane (light separation) | E93: N | F93: 4
A94: 35,Medium,Separated bike lane (heavy separation),N | B94: 35 | C94: Medium | D94: Separated bike lane (heavy separation) | E94: N | F94: 4
A95: 35,High,Mixed traffic,N | B95: 35 | C95: High | D95: Mixed traffic | E95: N | F95: 2
A96: 35,High,Bike lane,N | B96: 35 | C96: High | D96: Bike lane | E96: N | F96: 2
A97: 35,High,Buffered bike lane,N | B97: 35 | C97: High | D97: Buffered bike lane | E97: N | F97: 6
A98: 35,High,Separated bike lane (light separation),N | B98: 35 | C98: High | D98: Separated bike lane (light separation) | E98: N | F98: 6
A99: 35,High,Separated bike lane (heavy separation),N | B99: 35 | C99: High | D99: Separated bike lane (heavy separation) | E99: N | F99: 6
A100: 30,Low,Mixed traffic,Y | B100: 30 | C100: Low | D100: Mixed traffic | E100: Y | F100: 2
A101: 30,Low,Bike lane,Y | B101: 30 | C101: Low | D101: Bike lane | E101: Y | F101: 2
A102: 30,Low,Buffered bike lane,Y | B102: 30 | C102: Low | D102: Buffered bike lane | E102: Y | F102: 2
A103: 30,Low,Separated bike lane (light separation),Y | B103: 30 | C103: Low | D103: Separated bike lane (light separation) | E103: Y | F103: 2
A104: 30,Low,Separated bike lane (heavy separation),Y | B104: 30 | C104: Low | D104: Separated bike lane (heavy separation) | E104: Y | F104: 2
A105: =CONCATENATE(B105,",",C105,",",D105,",",E105) -> 30,Medium,Mixed traffic,Y | B105: 30 | C105: Medium | D105: Mixed traffic | E105: Y | F105: 2
A106: 30,Medium,Bike lane,Y | B106: 30 | C106: Medium | D106: Bike lane | E106: Y | F106: 2
A107: 30,Medium,Buffered bike lane,Y | B107: 30 | C107: Medium | D107: Buffered bike lane | E107: Y | F107: 4
A108: 30,Medium,Separated bike lane (light separation),Y | B108: 30 | C108: Medium | D108: Separated bike lane (light separation) | E108: Y | F108: 4
A109: 30,Medium,Separated bike lane (heavy separation),Y | B109: 30 | C109: Medium | D109: Separated bike lane (heavy separation) | E109: Y | F109: 4
A110: 30,High,Mixed traffic,Y | B110: 30 | C110: High | D110: Mixed traffic | E110: Y | F110: 2
A111: 30,High,Bike lane,Y | B111: 30 | C111: High | D111: Bike lane | E111: Y | F111: 2
A112: 30,High,Buffered bike lane,Y | B112: 30 | C112: High | D112: Buffered bike lane | E112: Y | F112: 6
A113: 30,High,Separated bike lane (light separation),Y | B113: 30 | C113: High | D113: Separated bike lane (light separation) | E113: Y | F113: 6
A114: 30,High,Separated bike lane (heavy separation),Y | B114: 30 | C114: High | D114: Separated bike lane (heavy separation) | E114: Y | F114: 6
A115: 30,Low,Mixed traffic,N | B115: 30 | C115: Low | D115: Mixed traffic | E115: N | F115: 2
A116: 30,Low,Bike lane,N | B116: 30 | C116: Low | D116: Bike lane | E116: N | F116: 2
A117: 30,Low,Buffered bike lane,N | B117: 30 | C117: Low | D117: Buffered bike lane | E117: N | F117: 4
A118: 30,Low,Separated bike lane (light separation),N | B118: 30 | C118: Low | D118: Separated bike lane (light separation) | E118: N | F118: 4
A119: 30,Low,Separated bike lane (heavy separation),N | B119: 30 | C119: Low | D119: Separated bike lane (heavy separation) | E119: N | F119: 4
A120: 30,Medium,Mixed traffic,N | B120: 30 | C120: Medium | D120: Mixed traffic | E120: N | F120: 2
A121: 30,Medium,Bike lane,N | B121: 30 | C121: Medium | D121: Bike lane | E121: N | F121: 2
A122: 30,Medium,Buffered bike lane,N | B122: 30 | C122: Medium | D122: Buffered bike lane | E122: N | F122: 4
A123: 30,Medium,Separated bike lane (light separation),N | B123: 30 | C123: Medium | D123: Separated bike lane (light separation) | E123: N | F123: 4
A124: 30,Medium,Separated bike lane (heavy separation),N | B124: 30 | C124: Medium | D124: Separated bike lane (heavy separation) | E124: N | F124: 4
A125: 30,High,Mixed traffic,N | B125: 30 | C125: High | D125: Mixed traffic | E125: N | F125: 2
A126: 30,High,Bike lane,N | B126: 30 | C126: High | D126: Bike lane | E126: N | F126: 2
A127: 30,High,Buffered bike lane,N | B127: 30 | C127: High | D127: Buffered bike lane | E127: N | F127: 6
A128: 30,High,Separated bike lane (light separation),N | B128: 30 | C128: High | D128: Separated bike lane (light separation) | E128: N | F128: 6
A129: 30,High,Separated bike lane (heavy separation),N | B129: 30 | C129: High | D129: Separated bike lane (heavy separation) | E129: N | F129: 6
A130: 25,Low,Mixed traffic,Y | B130: 25 | C130: Low | D130: Mixed traffic | E130: Y | F130: 2
A131: 25,Low,Bike lane,Y | B131: 25 | C131: Low | D131: Bike lane | E131: Y | F131: 2
A132: 25,Low,Buffered bike lane,Y | B132: 25 | C132: Low | D132: Buffered bike lane | E132: Y | F132: 2
A133: 25,Low,Separated bike lane (light separation),Y | B133: 25 | C133: Low | D133: Separated bike lane (light separation) | E133: Y | F133: 2
A134: 25,Low,Separated bike lane (heavy separation),Y | B134: 25 | C134: Low | D134: Separated bike lane (heavy separation) | E134: Y | F134: 2
A135: 25,Medium,Mixed traffic,Y | B135: 25 | C135: Medium | D135: Mixed traffic | E135: Y | F135: 2
A136: 25,Medium,Bike lane,Y | B136: 25 | C136: Medium | D136: Bike lane | E136: Y | F136: 2
A137: 25,Medium,Buffered bike lane,Y | B137: 25 | C137: Medium | D137: Buffered bike lane | E137: Y | F137: 4
A138: 25,Medium,Separated bike lane (light separation),Y | B138: 25 | C138: Medium | D138: Separated bike lane (light separation) | E138: Y | F138: 4
A139: 25,Medium,Separated bike lane (heavy separation),Y | B139: 25 | C139: Medium | D139: Separated bike lane (heavy separation) | E139: Y | F139: 4
A140: 25,High,Mixed traffic,Y | B140: 25 | C140: High | D140: Mixed traffic | E140: Y | F140: 2
A141: 25,High,Bike lane,Y | B141: 25 | C141: High | D141: Bike lane | E141: Y | F141: 2
A142: 25,High,Buffered bike lane,Y | B142: 25 | C142: High | D142: Buffered bike lane | E142: Y | F142: 4
A143: 25,High,Separated bike lane (light separation),Y | B143: 25 | C143: High | D143: Separated bike lane (light separation) | E143: Y | F143: 4
A144: 25,High,Separated bike lane (heavy separation),Y | B144: 25 | C144: High | D144: Separated bike lane (heavy separation) | E144: Y | F144: 4
A145: 25,Low,Mixed traffic,N | B145: 25 | C145: Low | D145: Mixed traffic | E145: N | F145: 2
A146: 25,Low,Bike lane,N | B146: 25 | C146: Low | D146: Bike lane | E146: N | F146: 2
A147: 25,Low,Buffered bike lane,N | B147: 25 | C147: Low | D147: Buffered bike lane | E147: N | F147: 4
A148: 25,Low,Separated bike lane (light separation),N | B148: 25 | C148: Low | D148: Separated bike lane (light separation) | E148: N | F148: 4
A149: 25,Low,Separated bike lane (heavy separation),N | B149: 25 | C149: Low | D149: Separated bike lane (heavy separation) | E149: N | F149: 4
A150: 25,Medium,Mixed traffic,N | B150: 25 | C150: Medium | D150: Mixed traffic | E150: N | F150: 2
A151: 25,Medium,Bike lane,N | B151: 25 | C151: Medium | D151: Bike lane | E151: N | F151: 2
A152: 25,Medium,Buffered bike lane,N | B152: 25 | C152: Medium | D152: Buffered bike lane | E152: N | F152: 4
A153: 25,Medium,Separated bike lane (light separation),N | B153: 25 | C153: Medium | D153: Separated bike lane (light separation) | E153: N | F153: 4
A154: 25,Medium,Separated bike lane (heavy separation),N | B154: 25 | C154: Medium | D154: Separated bike lane (heavy separation) | E154: N | F154: 4
A155: 25,High,Mixed traffic,N | B155: 25 | C155: High | D155: Mixed traffic | E155: N | F155: 2
A156: 25,High,Bike lane,N | B156: 25 | C156: High | D156: Bike lane | E156: N | F156: 2
A157: 25,High,Buffered bike lane,N | B157: 25 | C157: High | D157: Buffered bike lane | E157: N | F157: 4
A158: 25,High,Separated bike lane (light separation),N | B158: 25 | C158: High | D158: Separated bike lane (light separation) | E158: N | F158: 4
A159: 25,High,Separated bike lane (heavy separation),N | B159: 25 | C159: High | D159: Separated bike lane (heavy separation) | E159: N | F159: 4
A160: 20,Low,Mixed traffic,Y | B160: 20 | C160: Low | D160: Mixed traffic | E160: Y | F160: 2
A161: 20,Low,Bike lane,Y | B161: 20 | C161: Low | D161: Bike lane | E161: Y | F161: 2
A162: 20,Low,Buffered bike lane,Y | B162: 20 | C162: Low | D162: Buffered bike lane | E162: Y | F162: 2
A163: 20,Low,Separated bike lane (light separation),Y | B163: 20 | C163: Low | D163: Separated bike lane (light separation) | E163: Y | F163: 2
A164: 20,Low,Separated bike lane (heavy separation),Y | B164: 20 | C164: Low | D164: Separated bike lane (heavy separation) | E164: Y | F164: 2
A165: 20,Medium,Mixed traffic,Y | B165: 20 | C165: Medium | D165: Mixed traffic | E165: Y | F165: 2
A166: 20,Medium,Bike lane,Y | B166: 20 | C166: Medium | D166: Bike lane | E166: Y | F166: 2
A167: 20,Medium,Buffered bike lane,Y | B167: 20 | C167: Medium | D167: Buffered bike lane | E167: Y | F167: 4
A168: 20,Medium,Separated bike lane (light separation),Y | B168: 20 | C168: Medium | D168: Separated bike lane (light separation) | E168: Y | F168: 4
A169: =CONCATENATE(B169,",",C169,",",D169,",",E169) -> 20,Medium,Separated bike lane (heavy separation),Y | B169: 20 | C169: Medium | D169: Separated bike lane (heavy separation) | E169: Y | F169: 4
A170: 20,High,Mixed traffic,Y | B170: 20 | C170: High | D170: Mixed traffic | E170: Y | F170: 2
A171: 20,High,Bike lane,Y | B171: 20 | C171: High | D171: Bike lane | E171: Y | F171: 2
A172: 20,High,Buffered bike lane,Y | B172: 20 | C172: High | D172: Buffered bike lane | E172: Y | F172: 4
A173: 20,High,Separated bike lane (light separation),Y | B173: 20 | C173: High | D173: Separated bike lane (light separation) | E173: Y | F173: 4
A174: 20,High,Separated bike lane (heavy separation),Y | B174: 20 | C174: High | D174: Separated bike lane (heavy separation) | E174: Y | F174: 4
A175: 20,Low,Mixed traffic,N | B175: 20 | C175: Low | D175: Mixed traffic | E175: N | F175: 2
A176: 20,Low,Bike lane,N | B176: 20 | C176: Low | D176: Bike lane | E176: N | F176: 2
A177: 20,Low,Buffered bike lane,N | B177: 20 | C177: Low | D177: Buffered bike lane | E177: N | F177: 4
A178: 20,Low,Separated bike lane (light separation),N | B178: 20 | C178: Low | D178: Separated bike lane (light separation) | E178: N | F178: 4
A179: 20,Low,Separated bike lane (heavy separation),N | B179: 20 | C179: Low | D179: Separated bike lane (heavy separation) | E179: N | F179: 4
A180: 20,Medium,Mixed traffic,N | B180: 20 | C180: Medium | D180: Mixed traffic | E180: N | F180: 2
A181: 20,Medium,Bike lane,N | B181: 20 | C181: Medium | D181: Bike lane | E181: N | F181: 2
A182: 20,Medium,Buffered bike lane,N | B182: 20 | C182: Medium | D182: Buffered bike lane | E182: N | F182: 4
A183: 20,Medium,Separated bike lane (light separation),N | B183: 20 | C183: Medium | D183: Separated bike lane (light separation) | E183: N | F183: 4
A184: 20,Medium,Separated bike lane (heavy separation),N | B184: 20 | C184: Medium | D184: Separated bike lane (heavy separation) | E184: N | F184: 4
A185: 20,High,Mixed traffic,N | B185: 20 | C185: High | D185: Mixed traffic | E185: N | F185: 2
A186: 20,High,Bike lane,N | B186: 20 | C186: High | D186: Bike lane | E186: N | F186: 2
A187: 20,High,Buffered bike lane,N | B187: 20 | C187: High | D187: Buffered bike lane | E187: N | F187: 4
A188: 20,High,Separated bike lane (light separation),N | B188: 20 | C188: High | D188: Separated bike lane (light separation) | E188: N | F188: 4
A189: 20,High,Separated bike lane (heavy separation),N | B189: 20 | C189: High | D189: Separated bike lane (heavy separation) | E189: N | F189: 4
A190: 25,Low,Mixed traffic,Y | B190: 25 | C190: Low | D190: Mixed traffic | E190: Y | F190: 2
A191: 25,Low,Bike lane,Y | B191: 25 | C191: Low | D191: Bike lane | E191: Y | F191: 2
A192: 25,Low,Buffered bike lane,Y | B192: 25 | C192: Low | D192: Buffered bike lane | E192: Y | F192: 2
A193: 25,Low,Separated bike lane (light separation),Y | B193: 25 | C193: Low | D193: Separated bike lane (light separation) | E193: Y | F193: 2
A194: 25,Low,Separated bike lane (heavy separation),Y | B194: 25 | C194: Low | D194: Separated bike lane (heavy separation) | E194: Y | F194: 2
A195: 25,Medium,Mixed traffic,Y | B195: 25 | C195: Medium | D195: Mixed traffic | E195: Y | F195: 2
A196: 25,Medium,Bike lane,Y | B196: 25 | C196: Medium | D196: Bike lane | E196: Y | F196: 2
A197: 25,Medium,Buffered bike lane,Y | B197: 25 | C197: Medium | D197: Buffered bike lane | E197: Y | F197: 4
A198: 25,Medium,Separated bike lane (light separation),Y | B198: 25 | C198: Medium | D198: Separated bike lane (light separation) | E198: Y | F198: 4
A199: 25,Medium,Separated bike lane (heavy separation),Y | B199: 25 | C199: Medium | D199: Separated bike lane (heavy separation) | E199: Y | F199: 4
A200: 25,High,Mixed traffic,Y | B200: 25 | C200: High | D200: Mixed traffic | E200: Y | F200: 2
A201: 25,High,Bike lane,Y | B201: 25 | C201: High | D201: Bike lane | E201: Y | F201: 2
A202: 25,High,Buffered bike lane,Y | B202: 25 | C202: High | D202: Buffered bike lane | E202: Y | F202: 4
A203: 25,High,Separated bike lane (light separation),Y | B203: 25 | C203: High | D203: Separated bike lane (light separation) | E203: Y | F203: 4
A204: 25,High,Separated bike lane (heavy separation),Y | B204: 25 | C204: High | D204: Separated bike lane (heavy separation) | E204: Y | F204: 4
A205: 25,Low,Mixed traffic,N | B205: 25 | C205: Low | D205: Mixed traffic | E205: N | F205: 2
A206: 25,Low,Bike lane,N | B206: 25 | C206: Low | D206: Bike lane | E206: N | F206: 2
A207: 25,Low,Buffered bike lane,N | B207: 25 | C207: Low | D207: Buffered bike lane | E207: N | F207: 4
A208: 25,Low,Separated bike lane (light separation),N | B208: 25 | C208: Low | D208: Separated bike lane (light separation) | E208: N | F208: 4
... 13 more rows

Sheet selections
B1: One-way/Two-way | D1: Primary Function | F1: Yes/No | I1: Name
B2: one-way | D2: Access | F2: Yes | I2: NCHRP Report 855 | M2: Dimensional value validations | Q2: FDOT Context Classifications
B3: two-way | D3: Distributor | F3: No | I3: FDOT Context Classification | M3: 0 | N3: 0 | R3: Description | S3: Expected Pedestrian Activity
M4: 0 | N4: 100 | Q4: C1 Natural | R4: Lands preserved in a natural or wilderness condition, including lands unsuitable for settlement due to natural conditions. | S4: Low
B5: Lanes | D5: Side | F5: Yes/No | Q5: C2 Rural | R5: Sparsely settled lands; may include agricultural land, grassland, woodland, and wetlands. | S5: Low
B6: No Centerline | D6: East | F6: Y | Q6: C2T Rural Town | R6: Small concentrations of developed areas immediately surrounded by rural and natural areas; includes many historic towns | S6: Low
B7: One | D7: West | F7: N | Q7: C3R Suburban Residential | R7: Mostly residential uses within large blocks and a disconnected/sparse roadway network | S7: Low
B8: Two | D8: East and West | Q8: C3C Suburban Commercial | R8: Mostly non-residential uses with large building footprints and large parking lots; buildings are within large blocks and a disconnected/sparse roadway network | S8: Medium
B9: Three | D9: North | Q9: C4 Urban General | R9: Mix of uses set within small blocks with a well-connected roadway network; may extend long distances; the roadway network usually connects to residential neighborhoods immediately along the corridor or behind the uses fronting the roadway | S9: Medium
B10: Four | D10: South | Q10: C5 Urban Center | R10: Mix of uses set within small blocks with a well-connected roadway network; typically concentrated around a few blocks and identified as part of the community, town, or city of a civic or economic center | S10: High
B11: Five | D11: North and South | Q11: C6 Urban Core | R11: Areas with the highest densities and with building heights typically greater than four floors within FDOT classified Large Urbanized Areas (population > 1,000,000); many are regional centers and destinations; buildings have mixed uses, are built up to the roadway, and are within a well-connected roadway network | S11: High
B13: Suggestions to Reduce Cross Section | D13: Controlling Intersection | F13: Controlling Intersection
B14: Reduce to one travel lane per direction. | D14: Signal - Four Lane | F14: Signal
B15: Remove median. | D15: Signal - Two Lane | F15: Roundabout | Q15: NCHRP Report 855 classifications
B16: Remove parking from both sides. | D16: Signal - Three Lane | Q16: Context | R16: Speed/Mobility/Access | S16: Associated Land Use for Ped Lookups
B17: Remove parking from one direction | D17: Roundabout | Q17: Rural | R17: H speed H mobility L access | S17: Low
Q18: Rural Town | R18: L/M speed M mobility H access | S18: Medium
Q19: Suburban | R19: M/H speed M mobility M access | S19: Low
Q20: Urban | R20: L/M speed M mobility M access | S20: Medium
Q21: Urban Core | R21: L speed M mobility M access | S21: High
